Body Name,Supplier Name,Account Number,Invoice Date,Document File Name,Cost Centre / Project Code,Cost Centre/Project Description,Subjective Account,Subjective description,Invoice Amount (Excluding VAT)
Cambridge City Council,2 Ton Productions Ltd,10326600,03/04/20,53598,9900,Cambridge Live  ,20118,Receipts In Advance - Other Entities And Individuals,"2,736.00"
Cambridge City Council,AA Global Language Services Ltd,10001100,01/03/20,55279,1203,Corporate Policy,62408,Translation Services,717.11
Cambridge City Council,ABC Food Law Ltd,10001400,14/04/20,54332,1419,Environmental Health Operational Support,64300,Conference Expenses,"1,072.50"
Cambridge City Council,ADC (East Anglia) Ltd,10002500,06/04/20,53880,1883,Flood Risk Management,60501,Cleaning Services,"1,875.00"
Cambridge City Council,ADC (East Anglia) Ltd,10002500,07/04/20,54029,1883,Flood Risk Management,60501,Cleaning Services,"1,875.00"
Cambridge City Council,Alboro Developments Ltd,10133300,31/03/20,53785,1031,Fleet Management - Operational,60303,Electricity,734.12
Cambridge City Council,Alboro Developments Ltd,10133300,02/04/20,53876,1031,Fleet Management - Operational,60400,Rents Payable,"15,124.00"
Cambridge City Council,Alboro Developments Ltd,10133300,06/04/20,53877,1031,Fleet Management - Operational,60403,Business Rates Payable,"7,870.55"
Cambridge City Council,Alboro Developments Ltd,10133300,29/02/20,54281,1031,Fleet Management - Operational,60303,Electricity,"1,081.85"
Cambridge City Council,Algar Signcraft Services (Cambridge) Ltd,10004300,14/04/20,54348,1866,Open Space Asset Maintenance,61703,"Purchase - Equipment, Furniture And Materials","2,000.00"
Cambridge City Council,Alliance Asbestos Services Ltd,10115400,15/04/20,54416,300007,Asbestos Removal,70003,CAPEX - Building Contractor/Works - Voids & Emergencies,"3,396.00"
Cambridge City Council,Ameycespa (East) Ltd,10005100,31/03/20,54439,1001,Cambridge Crematorium,64050,Waste Disposal Costs,517.64
Cambridge City Council,Amulet (Churchill Security Solutions) Ltd,10220900,26/03/20,55320,5024,E_invoicing Suspense Accounts,69100,Expenditure In Holding Account Awaiting Allocation,570.00
Cambridge City Council,Amulet (Churchill Security Solutions) Ltd,10220900,31/03/20,55321,5024,E_invoicing Suspense Accounts,69100,Expenditure In Holding Account Awaiting Allocation,"11,320.42"
Cambridge City Council,Amulet (Churchill Security Solutions) Ltd,10220900,31/03/20,55322,5024,E_invoicing Suspense Accounts,69100,Expenditure In Holding Account Awaiting Allocation,"9,364.18"
Cambridge City Council,Anglia Ruskin University,10006300,24/04/20,55273,1251,Culture and Community,61902,Catering Services,"1,575.00"
Cambridge City Council,Anglian Water Business (National) Ltd T/A Wave,10006400,24/04/20,55176,1870,Public Toilets,60302,Water And Sewerage,"1,189.23"
Cambridge City Council,Anglian Water Business (National) Ltd T/A Wave,10006400,24/04/20,55177,1870,Public Toilets,60302,Water And Sewerage,"2,756.74"
Cambridge City Council,Anglian Water Business (National) Ltd T/A Wave,10006400,17/02/20,55179,6102,Temporary Accommodation,60302,Water And Sewerage,"1,113.13"
Cambridge City Council,Anglian Water Business (National) Ltd T/A Wave,10006400,10/02/20,55188,1870,Public Toilets,60302,Water And Sewerage,608.51
Cambridge City Council,Anglian Water Business (National) Ltd T/A Wave,10006400,17/02/20,55205,1872,River Frontage Management,60302,Water And Sewerage,503.43
Cambridge City Council,APSE Manchester,10127800,03/04/20,54044,1857,Head of Streets & Open Spaces,62400,Consultancy Fees,"2,467.00"
Cambridge City Council,APT-Skidata Ltd,10115700,17/04/20,54975,1651,Grand Arcade Car Park,61702,"Maintenance - Equipment, Furniture And Materials","3,226.74"
Cambridge City Council,Atkins Ltd,10462700,10/03/20,53793,1454,Cambridge Northern Fringe East (CNFE),62400,Consultancy Fees,"2,000.00"
Cambridge City Council,Atkins Ltd,10462700,03/02/20,53923,1454,Cambridge Northern Fringe East (CNFE),62400,Consultancy Fees,"4,000.00"
Cambridge City Council,Autumn House Bed & Breakfast Ltd,10507100,27/04/20,55213,1502,Homelessness Costs,64401,B&B Accommodation,"1,320.00"
Cambridge City Council,B & JM Durkin,10496000,06/04/20,53999,1519,Shared Home Improvement Agency,60266,Rechargeable Repairs,501.00
Cambridge City Council,Barr Ellison LLP,10011801,22/04/20,55250,1524,COVID-19 Rough Sleepers Services,63200,Legal Fees,"1,506.00"
Cambridge City Council,Ben Wills,10116100,21/10/19,53164,300087,New Build Colville Road (Phase 2),70011,CAPEX - Decant Costs,"1,033.74"
Cambridge City Council,Ben Wills,10116100,25/04/20,55079,300087,New Build Colville Road (Phase 2),70011,CAPEX - Decant Costs,730.68
Cambridge City Council,Bermuda Community Room,10012500,21/04/20,54873,1057,Community Development Voluntary Support,64600,Grants And Contributions,800.00
Cambridge City Council,Bevan Brittan LLP,10012600,31/03/20,54028,1506,Housing Development Agency,63200,Legal Fees,"2,980.20"
Cambridge City Council,Bevan Brittan LLP,10012600,27/03/20,55244,1506,Housing Development Agency,60241,Specialist Investigations,"2,602.50"
Cambridge City Council,BFS Group Ltd t/a Bidfood,10303000,17/03/20,53489,1260,Corn Exchange and Guildhalls,61900,Catering And Vending Supplies,"1,071.54"
Cambridge City Council,Bidwells LLP  No 2 Account,10161000,13/02/20,51967,1073,Community Development - Admin,62400,Consultancy Fees,"1,800.00"
Cambridge City Council,Bidwells LLP  No 2 Account,10161000,31/03/20,55249,100154,Acquisition of land adjacent to Huntingdon Road Crematorium,70010,CAPEX - Other Professional Fees,"1,560.00"
Cambridge City Council,Biochemica Water Ltd,10218600,31/03/20,54004,6205,Citywide Schemes,60235,Housing Repairs - Other Premises Related Costs,"1,472.90"
Cambridge City Council,Boldfield Computing Ltd,10306300,01/04/20,53340,1263,Cambridge Live - Central,64073,ICT Maintenance and Support,"2,836.09"
Cambridge City Council,Boldfield Computing Ltd,10306300,01/04/20,53343,1263,Cambridge Live - Central,64073,ICT Maintenance and Support,"1,255.42"
Cambridge City Council,Boots UK Ltd,10014200,01/04/20,53531,6505,Ditchburn Extra Care,64800,Membership And Subscriptions,"1,400.00"
Cambridge City Council,Bsg Property Services Ltd,10015900,25/03/20,53654,200002,Mandatory Disabled Facilities Grants (Owner Occupiers),70015,CAPEX - Grants Paid,"1,209.00"
Cambridge City Council,Bsg Property Services Ltd,10015900,28/03/20,53655,200001,Mandatory Disabled Facilities Grants (Tenants),70015,CAPEX - Grants Paid,"4,920.00"
Cambridge City Council,Bsg Property Services Ltd,10015900,13/02/20,53903,200000,Repairs Assistance (Owner Occupiers),70018,CAPEX - Loans,"6,364.23"
Cambridge City Council,Bsg Property Services Ltd,10015900,26/03/20,53930,200001,Mandatory Disabled Facilities Grants (Tenants),70015,CAPEX - Grants Paid,"4,052.00"
Cambridge City Council,Bsg Property Services Ltd,10015900,25/03/20,54072,200001,Mandatory Disabled Facilities Grants (Tenants),70015,CAPEX - Grants Paid,"1,450.00"
Cambridge City Council,Bsg Property Services Ltd,10015900,07/04/20,54073,200001,Mandatory Disabled Facilities Grants (Tenants),70015,CAPEX - Grants Paid,"5,235.00"
Cambridge City Council,Bsg Property Services Ltd,10015900,26/03/20,54647,200002,Mandatory Disabled Facilities Grants (Owner Occupiers),70015,CAPEX - Grants Paid,"9,456.25"
Cambridge City Council,Bsg Property Services Ltd,10015900,23/03/20,54650,1519,Shared Home Improvement Agency,60266,Rechargeable Repairs,"5,153.00"
Cambridge City Council,Bsg Property Services Ltd,10015900,26/03/20,54652,1519,Shared Home Improvement Agency,60266,Rechargeable Repairs,"4,105.00"
Cambridge City Council,Bsg Property Services Ltd,10015900,24/04/20,55219,200002,Mandatory Disabled Facilities Grants (Owner Occupiers),70015,CAPEX - Grants Paid,"4,181.60"
Cambridge City Council,Bsg Property Services Ltd,10015900,18/09/19,55256,200001,Mandatory Disabled Facilities Grants (Tenants),70015,CAPEX - Grants Paid,"2,763.94"
Cambridge City Council,Businessclean (Cambridge) Ltd,10016800,19/03/20,53072,6208,Voids,60220,Housing Repairs - Work To Void Properties,"1,594.00"
Cambridge City Council,Businessclean (Cambridge) Ltd,10016800,31/03/20,53324,1502,Homelessness Costs,60501,Cleaning Services,605.00
Cambridge City Council,Businessclean (Cambridge) Ltd,10016800,31/03/20,53324,6102,Temporary Accommodation,60501,Cleaning Services,"3,317.00"
Cambridge City Council,Businessclean (Cambridge) Ltd,10016800,31/03/20,53349,6123,Ditchburn Place,60501,Cleaning Services,615.00
Cambridge City Council,Businessclean (Cambridge) Ltd,10016800,31/03/20,54047,6208,Voids,60220,Housing Repairs - Work To Void Properties,"1,688.00"
Cambridge City Council,Calfordseaden LLP,10339400,20/03/20,55297,300069,New Build - Ventress Close,70010,CAPEX - Other Professional Fees,"1,083.33"
Cambridge City Council,Cambridge & District Citizen's Advice Bureau,10017500,22/04/20,54876,1057,Community Development Voluntary Support,64600,Grants And Contributions,"75,000.00"
Cambridge City Council,Cambridge & District Citizen's Advice Bureau,10017500,22/04/20,54876,1509,Grants to Housing Agencies,64600,Grants And Contributions,"8,750.00"
Cambridge City Council,Cambridge Bid Limited,10017900,06/04/20,54663,5025,Business Improvement District (BID) Collection Fund,58702,BID Levy - Payment to BID Company,"150,000.00"
Cambridge City Council,Cambridge Bid Limited,10017900,31/03/20,54796,5025,Business Improvement District (BID) Collection Fund,58702,BID Levy - Payment to BID Company,"1,944.05"
Cambridge City Council,Cambridge Churches Homeless Project,10235200,24/03/20,53170,1522,Flexible Homelessness Support Grant,69150,Other Services,"1,375.00"
Cambridge City Council,Cambridge Cyrenians Ltd,10018700,30/03/20,54930,1509,Grants to Housing Agencies,64600,Grants And Contributions,"5,000.00"
Cambridge City Council,Cambridge Door Services,10116900,26/03/20,55292,8009,Insurance Fund,67302,Insurance Claim,"1,406.00"
Cambridge City Council,Cambridge Film Trust,10345800,20/04/20,54763,1057,Community Development Voluntary Support,64600,Grants And Contributions,"5,640.00"
Cambridge City Council,Cambridge Gateway Club,10019500,09/04/20,54144,1057,Community Development Voluntary Support,64600,Grants And Contributions,"1,000.00"
Cambridge City Council,Cambridge Handel Opera Company,10500500,16/04/20,54635,9900,Cambridge Live,20118,Receipts In Advance - Other Entities And Individuals,"2,385.00"
Cambridge City Council,Cambridge Housing Society Ltd,10019600,28/04/20,55172,1057,Community Development Voluntary Support,64600,Grants And Contributions,"4,250.00"
Cambridge City Council,Cambridge Housing Society Ltd,10019600,28/04/20,55172,1509,Grants to Housing Agencies,64600,Grants And Contributions,"11,000.00"
Cambridge City Council,Cambridge Housing Society Ltd,10019600,28/04/20,55172,1509,Grants to Housing Agencies,64600,Grants And Contributions,"3,750.00"
Cambridge City Council,Cambridge Investment Partnership LLP,10145700,11/03/20,52902,300087,New Build Colville Road (Phase 2),70002,CAPEX - Building Contractor/Works,"2,343.50"
Cambridge City Council,Cambridge Investment Partnership LLP,10145700,31/03/20,53873,300072,New Build In-Fill - Queensmeadow,70002,CAPEX - Building Contractor/Works,"105,770.38"
Cambridge City Council,Cambridge Investment Partnership LLP,10145700,02/04/20,53892,300077,New Build - Mill Road,70002,CAPEX - Building Contractor/Works,"235,237.00"
Cambridge City Council,Cambridge Investment Partnership LLP,10145700,31/03/20,53893,300073,New Build - Wulfstan Way,70002,CAPEX - Building Contractor/Works,"147,865.93"
Cambridge City Council,Cambridge Investment Partnership LLP,10145700,02/04/20,53894,300077,New Build - Mill Road,70002,CAPEX - Building Contractor/Works,"540,965.00"
Cambridge City Council,Cambridge Investment Partnership LLP,10145700,02/04/20,53895,300085,New Build Cromwell Road Redevelopment (HRA),70002,CAPEX - Building Contractor/Works,"207,224.77"
Cambridge City Council,Cambridge Investment Partnership LLP,10145700,02/04/20,53895,100225,Cromwell Road Redevelopment (GF),70001,CAPEX - Acquisition of Land & Exisiting Building,"173,823.23"
Cambridge City Council,Cambridge Investment Partnership LLP,10145700,31/03/20,53896,300078,New Build - Gunhild Way,70002,CAPEX - Building Contractor/Works,"104,584.43"
Cambridge City Council,Cambridge Investment Partnership LLP,10145700,01/04/20,53997,300069,New Build - Ventress Close,70002,CAPEX - Building Contractor/Works,"175,722.12"
Cambridge City Council,Cambridge Investment Partnership LLP,10145700,31/03/20,54001,300079,New Build - Markham Close,70002,CAPEX - Building Contractor/Works,"272,557.90"
Cambridge City Council,Cambridge Investment Partnership LLP,10145700,31/03/20,54014,300074,New Build - Colville Road Garages,70002,CAPEX - Building Contractor/Works,"178,674.45"
Cambridge City Council,Cambridge Investment Partnership LLP,10145700,01/04/20,54018,300064,New Build - Akeman Street,70002,CAPEX - Building Contractor/Works,"210,610.12"
Cambridge City Council,Cambridge Literary Festival,10019700,24/04/20,55068,9900,Cambridge Live,20119,Other Creditors - Other Entities And Individuals,"11,056.50"
Cambridge City Council,Cambridge Online,10154400,14/04/20,54212,1057,Community Development Voluntary Support,64600,Grants And Contributions,"7,500.00"
Cambridge City Council,Cambridge Online,10154400,28/04/20,55153,1057,Community Development Voluntary Support,64600,Grants And Contributions,"2,500.00"
Cambridge City Council,Cambridge Online,10154400,28/04/20,55153,1203,Corporate Policy,68300,Unallocated Budget,"2,500.00"
Cambridge City Council,Cambridge RUFC,10496400,26/03/20,54050,100272,[Completed] S106 Cambridge Rugby Club grant for floodlights,70024,CAPEX - Other Capital Expenditure,"45,000.00"
Cambridge City Council,Cambridge Victoria Homes,10361700,14/04/20,54290,1877,Project Delivery (Cost Recovered),62900,Events,842.00
Cambridge City Council,Cambridge Womens Resource Centre,10022400,08/04/20,54145,1057,Community Development Voluntary Support,64600,Grants And Contributions,"8,750.00"
Cambridge City Council,Cambridgeshire Community Foundation,10263800,14/04/20,54147,1203,Corporate Policy,62900,Events,"20,000.00"
Cambridge City Council,Cambridgeshire County Council,10022802,28/03/20,53456,8006,Accountancy and Support Services,62400,Consultancy Fees,"15,583.00"
Cambridge City Council,Cambridgeshire County Council,10022802,14/03/20,53979,9900,Cambridge Live,20118,Receipts In Advance - Other Entities And Individuals,609.00
Cambridge City Council,Cambridgeshire County Council,10022802,28/04/20,55162,1509,Grants to Housing Agencies,64600,Grants And Contributions,"5,000.00"
Cambridge City Council,Cambs & Peterborough NHS Foundation Trust,10023101,19/03/20,52582,1522,Flexible Homelessness Support Grant,50000,Government Grants Revenue Income - Ringfenced,"9,558.00"
Cambridge City Council,Care Quality Commission,10143200,20/03/20,54279,6505,Ditchburn Extra Care,64800,Membership And Subscriptions,"1,434.00"
Cambridge City Council,Carter Jonas LLP,10141403,31/03/20,55298,1506,Housing Development Agency,62400,Consultancy Fees,"3,428.00"
Cambridge City Council,Cedar Housing Solutions Ltd,10502700,20/04/20,54790,1522,Flexible Homelessness Support Grant,63900,Miscellaneous Expenses,"2,250.00"
Cambridge City Council,Centre 33,10025400,22/04/20,54877,1057,Community Development Voluntary Support,64600,Grants And Contributions,"9,125.00"
Cambridge City Council,Centre 33,10025400,22/04/20,54877,1509,Grants to Housing Agencies,64600,Grants And Contributions,"10,750.00"
Cambridge City Council,CFH Docmail Ltd,10025900,16/04/20,54639,1073,Community Development - Admin,64100,Postage And Courier Services,"6,203.30"
Cambridge City Council,CGM Group (East Anglia) Ltd,10117300,31/03/20,53370,1876,Arboriculture,64040,Tree Works,"5,614.84"
Cambridge City Council,CGM Group (East Anglia) Ltd,10117300,31/03/20,53370,1885,Reverse Agency (formerly Unclassified Routine),64040,Tree Works,"5,885.16"
Cambridge City Council,CGM Group (East Anglia) Ltd,10117300,31/03/20,53370,1876,Arboriculture,64040,Tree Works,"1,150.00"
Cambridge City Council,CGM Group (East Anglia) Ltd,10117300,31/03/20,53370,1885,Reverse Agency (formerly Unclassified Routine),64040,Tree Works,"1,150.00"
Cambridge City Council,Childcare Vouchers Limited,10028300,06/04/20,53810,5000,Salary Sacrifice Schemes Holding Account,60106,Childcare Admin Vouchers,"7,573.10"
Cambridge City Council,City View Digital Media Ltd,10030200,01/10/19,54441,1862,Open Space Asset Management,62005,"Advertising, Publicity And Marketing",990.00
Cambridge City Council,Clare Hopkins,10169100,07/04/20,54169,6203,Asset Management and Compliance,62400,Consultancy Fees,"5,872.50"
Cambridge City Council,CN Security Ltd,10291400,26/02/20,53780,750041,,63800,Security Services (Excluding Premises),960.00
Cambridge City Council,CN Security Ltd,10291400,26/02/20,53827,1206,Business Transformation Departmental Management,60248,Security Of Premises,"2,746.00"
Cambridge City Council,CN Security Ltd,10291400,26/02/20,53829,1206,Business Transformation Departmental Management,60248,Security Of Premises,"1,000.00"
Cambridge City Council,CN Security Ltd,10291400,26/02/20,53832,1206,Business Transformation Departmental Management,60248,Security Of Premises,"1,159.67"
Cambridge City Council,Come Clean Ltd T/A CCL Supplies,10031800,11/03/20,54122,9900,Streets & Open Spaces (Operations) - Indirect Costs,11600,Consumable Stores,"1,344.00"
Cambridge City Council,Come Clean Ltd T/A CCL Supplies,10031800,12/03/20,54122,9900,Streets & Open Spaces (Operations) - Indirect Costs,11600,Consumable Stores,"3,315.20"
Cambridge City Council,Comensura Ltd,10031900,01/04/20,53449,5024,E_invoicing Suspense Accounts,69100,Expenditure In Holding Account Awaiting Allocation,"48,204.63"
Cambridge City Council,Comensura Ltd,10031900,08/04/20,54082,5024,E_invoicing Suspense Accounts,69100,Expenditure In Holding Account Awaiting Allocation,"52,246.96"
Cambridge City Council,Comensura Ltd,10031900,15/04/20,54296,5024,E_invoicing Suspense Accounts,69100,Expenditure In Holding Account Awaiting Allocation,"31,916.96"
Cambridge City Council,Comensura Ltd,10031900,22/04/20,54878,5024,E_invoicing Suspense Accounts,69100,Expenditure In Holding Account Awaiting Allocation,"37,669.15"
Cambridge City Council,Comensura Ltd,10031900,29/04/20,55285,5024,E_invoicing Suspense Accounts,69100,Expenditure In Holding Account Awaiting Allocation,"38,336.75"
Cambridge City Council,Commend UK Ltd,10032100,15/04/20,54646,1651,Grand Arcade Car Park,61702,"Maintenance - Equipment, Furniture And Materials","2,295.39"
Cambridge City Council,Compserve Ltd,10032400,31/03/20,53248,9900,Cowley Road Compound,11721,Payments In Advance - Other Entities And Individuals,"1,025.26"
Cambridge City Council,Compton & Parkinson Ltd,10117700,09/04/20,54142,6207,Repairs Day to Day,60233,Housing Repairs - Work Given To External Contractors,855.22
Cambridge City Council,Cooleraid Ltd,10033001,17/04/20,54636,8018,Admin Building Allocation,64200,Subsistence,919.36
Cambridge City Council,COPE,10033300,20/04/20,54750,1057,Community Development Voluntary Support,64600,Grants And Contributions,"5,200.00"
Cambridge City Council,Core Learning Services Ltd,10156400,19/03/20,54460,8003,Human Resources - Organisational Development,64300,Conference Expenses,"6,990.00"
Cambridge City Council,Cosensa Learning & Development Ltd,10287400,01/02/20,53377,8003,Human Resources - Organisational Development,64300,Conference Expenses,932.01
Cambridge City Council,Countryside Properties (UK) Ltd,10033800,02/04/20,53742,100020,Development Of land at Clay Farm,70010,CAPEX - Other Professional Fees,"1,286.46"
Cambridge City Council,CWRP Relocation Ltd,10504300,31/03/20,55018,5104,Housing Infrastructure Fund,64600,Grants And Contributions,"2,142,161.82"
Cambridge City Council,D Carman BSSR Ltd,10118100,01/04/20,54141,8015,Guildhall,60201,Cyclical/Planned Maintenance - Building,"4,460.50"
Cambridge City Council,D Carman BSSR Ltd,10118100,14/04/20,54288,8025,Cowley Road Compound,60201,Cyclical/Planned Maintenance - Building,"19,442.61"
Cambridge City Council,D Carman BSSR Ltd,10118100,20/04/20,54725,300087,New Build Colville Road (Phase 2),70011,CAPEX - Decant Costs,"1,860.00"
Cambridge City Council,D S Movments,10354700,07/02/20,55308,6110,City Homes Estate Management,60503,Grounds Maintenance,920.00
Cambridge City Council,Data Capture Solutions Ltd,10345300,14/04/20,54339,8006,Accountancy and Support Services,64073,ICT Maintenance and Support,944.62
Cambridge City Council,"David G. Hall, Costs Lawyer",10360900,22/04/20,55251,1502,Homelessness Costs,63200,Legal Fees,510.00
Cambridge City Council,David Powell t/a D J Kitchens,10137900,30/03/20,53234,6208,Voids,60233,Housing Repairs - Work Given To External Contractors,"1,013.32"
Cambridge City Council,David Powell t/a D J Kitchens,10137900,30/03/20,53234,6207,Repairs Day to Day,60233,Housing Repairs - Work Given To External Contractors,506.68
Cambridge City Council,David Powell t/a D J Kitchens,10137900,30/03/20,53265,6207,Repairs Day to Day,60233,Housing Repairs - Work Given To External Contractors,"1,200.00"
Cambridge City Council,David Powell t/a D J Kitchens,10137900,30/03/20,53265,6208,Voids,60233,Housing Repairs - Work Given To External Contractors,650.00
Cambridge City Council,Dawling Ltd T/A J & J Drake,10118000,31/03/20,53479,6207,Repairs Day to Day,60233,Housing Repairs - Work Given To External Contractors,822.50
Cambridge City Council,Dennis Eagle Ltd,10036900,24/03/20,54447,1031,Fleet Management - Operational,61703,"Purchase - Equipment, Furniture And Materials",509.96
Cambridge City Council,Dennis Eagle Ltd,10036900,24/03/20,54447,1031,Fleet Management - Operational,61703,"Purchase - Equipment, Furniture And Materials",739.59
Cambridge City Council,Dennis Eagle Ltd,10036900,24/03/20,54447,1031,Fleet Management - Operational,61703,"Purchase - Equipment, Furniture And Materials",651.47
Cambridge City Council,Dennis Eagle Ltd,10036900,01/04/20,55026,1032,Garage- External Work,61703,"Purchase - Equipment, Furniture And Materials","1,019.44"
Cambridge City Council,Diners Club International,10037600,28/03/20,53450,5024,E_invoicing Suspense Accounts,69100,Expenditure In Holding Account Awaiting Allocation,935.60
Cambridge City Council,DJ Evans (Bury) Ltd,10038100,02/04/20,54866,9900,General Fund Balance Sheet,11600,Consumable Stores,"1,668.00"
Cambridge City Council,Eastfield Guest House Ltd,10262600,30/03/20,53437,1524,COVID-19 Rough Sleepers Services,64401,B&B Accommodation,"1,350.00"
Cambridge City Council,Eastfield Guest House Ltd,10262600,30/03/20,53440,1502,Homelessness Costs,64401,B&B Accommodation,"1,045.00"
Cambridge City Council,Eastfield Guest House Ltd,10262600,06/04/20,54193,1524,COVID-19 Rough Sleepers Services,64401,B&B Accommodation,"5,950.00"
Cambridge City Council,Eastfield Guest House Ltd,10262600,06/04/20,54197,1524,COVID-19 Rough Sleepers Services,64401,B&B Accommodation,"3,150.00"
Cambridge City Council,Eastfield Guest House Ltd,10262600,13/04/20,54561,1524,COVID-19 Rough Sleepers Services,64401,B&B Accommodation,602.08
Cambridge City Council,Eastfield Guest House Ltd,10262600,13/04/20,54577,1524,COVID-19 Rough Sleepers Services,64401,B&B Accommodation,"3,150.00"
Cambridge City Council,Eastfield Guest House Ltd,10262600,13/04/20,54578,1524,COVID-19 Rough Sleepers Services,64401,B&B Accommodation,"5,950.00"
Cambridge City Council,Eastfield Guest House Ltd,10262600,20/04/20,54766,1524,COVID-19 Rough Sleepers Services,64401,B&B Accommodation,"3,150.00"
Cambridge City Council,Eastfield Guest House Ltd,10262600,20/04/20,54767,1524,COVID-19 Rough Sleepers Services,64401,B&B Accommodation,"3,150.00"
Cambridge City Council,Eastfield Guest House Ltd,10262600,20/04/20,54768,1524,COVID-19 Rough Sleepers Services,64401,B&B Accommodation,"5,950.00"
Cambridge City Council,Eastfield Guest House Ltd,10262600,27/04/20,55115,1524,COVID-19 Rough Sleepers Services,64401,B&B Accommodation,"1,800.00"
Cambridge City Council,Eastfield Guest House Ltd,10262600,27/04/20,55116,1524,COVID-19 Rough Sleepers Services,64401,B&B Accommodation,"3,150.00"
Cambridge City Council,Eaton Electrical Systems Ltd,10437000,26/11/19,53506,1260,Corn Exchange and Guildhalls,60209,R & M Minor Works,"1,081.50"
Cambridge City Council,Eddie Barcan t/a Splendid Events,10215402,16/03/20,53543,780001,,62400,Consultancy Fees,"2,500.00"
Cambridge City Council,Eddington Residents Association,10472000,28/04/20,55269,1057,Community Development Voluntary Support,64600,Grants And Contributions,"2,690.00"
Cambridge City Council,Edmundson Electrical Ltd,10040600,02/04/20,54122,9900,General Fund Balance Sheet,11600,Consumable Stores,769.32
Cambridge City Council,Edmundson Electrical Ltd,10040600,15/04/20,54433,9900,General Fund Balance Sheet,11600,Consumable Stores,"1,032.96"
Cambridge City Council,Edmundson Electrical Ltd,10040600,22/04/20,55290,9900,General Fund Balance Sheet,11600,Consumable Stores,769.32
Cambridge City Council,Elior UK PLC,10040900,31/03/20,53576,6123,Ditchburn Place,61902,Catering Services,"14,213.29"
Cambridge City Council,Elior UK PLC,10040900,31/03/20,53765,6123,Ditchburn Place,61902,Catering Services,"6,086.84"
Cambridge City Council,Emma Smith,10254500,06/04/20,53869,100234,S106 Public art grant - Faith and Hope,70015,CAPEX - Grants Paid,"3,000.00"
Cambridge City Council,Emmaus Cambridge,10213100,27/04/20,55277,1524,COVID-19 Rough Sleepers Services,61703,"Purchase - Equipment, Furniture And Materials","1,250.00"
Cambridge City Council,Emmaus Cambridge,10213100,27/04/20,55277,6000,Housing Revenue Account - Net Cost of Service,61703,"Purchase - Equipment, Furniture And Materials","1,250.00"
Cambridge City Council,EMS Lifts Ltd,10041800,31/03/20,53568,6205,Citywide Schemes,60227,Housing Repairs - Lift Maintenance (Disabled),730.82
Cambridge City Council,EMS Lifts Ltd,10041800,15/04/20,54478,6205,Citywide Schemes,60227,Housing Repairs - Lift Maintenance (Disabled),"1,610.96"
Cambridge City Council,Encompass Network,10163100,09/04/20,54148,1057,Community Development Voluntary Support,64600,Grants And Contributions,"9,000.00"
Cambridge City Council,Encore PMG Ltd,,01/04/20,53459,6204,Client and Third Party Repairs,60233,Housing Repairs - Work Given To External Contractors,"1,024.26"
Cambridge City Council,Encore PMG Ltd,,01/04/20,53460,6204,Client and Third Party Repairs,60233,Housing Repairs - Work Given To External Contractors,"1,917.78"
Cambridge City Council,Encore PMG Ltd,,01/04/20,53462,6204,Client and Third Party Repairs,60233,Housing Repairs - Work Given To External Contractors,"1,024.26"
Cambridge City Council,Encore PMG Ltd,,01/04/20,53463,6204,Client and Third Party Repairs,60233,Housing Repairs - Work Given To External Contractors,501.30
Cambridge City Council,Entertainers (MOM) Ltd,10351900,31/03/20,53323,9900,Cambridge Live,20118,Receipts In Advance - Other Entities And Individuals,"8,126.07"
Cambridge City Council,Entitledto Ltd,10042600,01/03/20,54649,5062,3C ICT,64073,ICT Maintenance and Support,"2,600.00"
Cambridge City Council,Environmental Protection Strategies Ltd,10043100,30/03/20,53213,6204,Client and Third Party Repairs,60219,Housing Repairs - Insurances,"4,259.00"
Cambridge City Council,Ernst & Young LLP,10043500,22/04/20,55286,1453,Finance General Recharges,62100,Audit Fees,"10,006.00"
Cambridge City Council,ESPO,10043700,28/04/20,55324,5024,E_invoicing Suspense Accounts,69100,Expenditure In Holding Account Awaiting Allocation,"31,344.38"
Cambridge City Council,Euclid Limited,10044300,31/03/20,53563,1712,Taxicard Service,62001,Printing,"1,227.40"
Cambridge City Council,Evolve Guards Ltd,10506900,26/04/20,55125,1524,COVID-19 Rough Sleepers Services,64401,B&B Accommodation,"2,351.25"
Cambridge City Council,Facultatieve Technologies Ltd,10118300,14/04/20,54312,1001,Cambridge Crematorium,60202,Cyclical/Planned Maintenance - Fixed Plant,678.00
Cambridge City Council,Fenners Chambers,10045600,15/04/20,54927,1419,Environmental Health Operational Support,63200,Legal Fees,"1,000.00"
Cambridge City Council,Fenners Hotel,10491600,30/03/20,53587,1524,COVID-19 Rough Sleepers Services,64401,B&B Accommodation,"4,431.00"
Cambridge City Council,Fenners Hotel,10491600,06/04/20,53902,1524,COVID-19 Rough Sleepers Services,64401,B&B Accommodation,"7,754.25"
Cambridge City Council,Fenners Hotel,10491600,20/04/20,54828,1524,COVID-19 Rough Sleepers Services,64401,B&B Accommodation,"7,754.25"
Cambridge City Council,Fenners Hotel,10491600,13/04/20,54832,1524,COVID-19 Rough Sleepers Services,64401,B&B Accommodation,"7,754.25"
Cambridge City Council,Fenners Hotel,10491600,27/04/20,55161,1524,COVID-19 Rough Sleepers Services,64401,B&B Accommodation,"7,754.25"
Cambridge City Council,Financial Data Management plc,10497700,28/02/20,54254,6007,Departmental Overheads-Client,64100,Postage And Courier Services,"2,750.88"
Cambridge City Council,Financial Data Management plc,10497700,28/04/20,54255,6007,Departmental Overheads-Client,62001,Printing,"2,645.64"
Cambridge City Council,Foster Property Maintenance Ltd,10046700,01/04/20,53550,5024,E_invoicing Suspense Accounts,69100,Expenditure In Holding Account Awaiting Allocation,"82,908.59"
Cambridge City Council,Freeths LLP,10128501,28/02/20,52852,1506,Housing Development Agency,63300,Professional Services - General,808.00
Cambridge City Council,Freeths LLP,10128501,15/03/20,53172,1454,Cambridge Northern Fringe East (CNFE),62400,Consultancy Fees,"2,759.00"
Cambridge City Council,Freeths LLP,10128501,20/03/20,53813,1506,Housing Development Agency,62400,Consultancy Fees,"1,500.01"
Cambridge City Council,Freeths LLP,10128501,20/03/20,53813,1506,Housing Development Agency,62400,Consultancy Fees,"1,500.01"
Cambridge City Council,Freeths LLP,10128501,20/03/20,53813,1506,Housing Development Agency,62400,Consultancy Fees,"1,500.01"
Cambridge City Council,Freeths LLP,10128501,20/03/20,53813,1506,Housing Development Agency,62400,Consultancy Fees,"1,500.01"
Cambridge City Council,Freeths LLP,10128501,20/03/20,53813,1506,Housing Development Agency,62400,Consultancy Fees,"1,500.00"
Cambridge City Council,Freeths LLP,10128501,20/03/20,53813,1506,Housing Development Agency,62400,Consultancy Fees,"1,524.47"
Cambridge City Council,Freeths LLP,10128501,23/03/20,53885,1454,Cambridge Northern Fringe East (CNFE),63200,Legal Fees,"1,513.00"
Cambridge City Council,Freeths LLP,10128501,20/03/20,53972,1506,Housing Development Agency,62400,Consultancy Fees,"9,147.00"
Cambridge City Council,Freeths LLP,10128501,27/03/20,53992,300058,New Build - Anstey Way,70001,CAPEX - Acquisition of Land & Exisiting Building,"219,730.00"
Cambridge City Council,Friends of Histon Road Cemetery,10047100,20/04/20,54769,1057,Community Development Voluntary Support,64600,Grants And Contributions,"1,100.00"
Cambridge City Council,FSE Consult Ltd T/A Fire Safety Express,10047600,14/04/20,54276,6205,Citywide Schemes,60205,Fire Assessment And Safety,"2,432.50"
Cambridge City Council,Fuel Proof,10396100,30/03/20,53432,1203,Corporate Policy,60804,Other Premises Related Costs,827.10
Cambridge City Council,Gallagher Bassett International Ltd,10048202,07/04/20,54723,8009,Insurance Fund,67302,Insurance Claim,"9,462.52"
Cambridge City Council,Gaskin Brothers Ltd,10118700,24/03/20,52967,1066,Brown's Field Youth and Community Centre,60201,Cyclical/Planned Maintenance - Building,950.00
Cambridge City Council,Gaskin Brothers Ltd,10118700,09/04/20,54280,1866,Open Space Asset Maintenance,61702,"Maintenance - Equipment, Furniture And Materials","4,850.00"
Cambridge City Council,Gaskin Brothers Ltd,10118700,24/03/20,54566,100088,S106 Cherry Hinton Grounds improvements Phase 2,70002,CAPEX - Building Contractor/Works,"8,320.00"
Cambridge City Council,Gaskin Brothers Ltd,10118700,15/04/20,54568,1866,Open Space Asset Maintenance,61702,"Maintenance - Equipment, Furniture And Materials","2,850.00"
Cambridge City Council,Gaskin Brothers Ltd,10118700,23/04/20,55064,1872,River Frontage Management,60503,Grounds Maintenance,900.00
Cambridge City Council,Gaskin Brothers Ltd,10118700,23/04/20,55094,1862,Open Space Asset Management,60503,Grounds Maintenance,"1,050.00"
Cambridge City Council,Gatenbysanderson Limited,10048500,18/03/20,53848,8012,Procurement,60011,Agency Staff,"1,856.00"
Cambridge City Council,Gatenbysanderson Limited,10048500,10/03/20,53849,8012,Procurement,60011,Agency Staff,"1,856.00"
Cambridge City Council,Gatenbysanderson Limited,10048500,05/03/20,53850,8012,Procurement,60011,Agency Staff,"1,856.00"
Cambridge City Council,Gatenbysanderson Limited,10048500,27/03/20,53852,8012,Procurement,60011,Agency Staff,"2,320.00"
Cambridge City Council,Gatenbysanderson Limited,10048500,30/03/20,53853,8012,Procurement,60011,Agency Staff,"2,320.00"
Cambridge City Council,Gatenbysanderson Limited,10048500,20/04/20,54724,8002,Human Resources - Recruitment,60116,Staff Recruitment Costs,"4,822.80"
Cambridge City Council,Gerald Eve LLP,10151601,15/04/20,54417,9900,General Fund Balance Sheet,20119,Other Creditors - Other Entities And Individuals,743.00
Cambridge City Council,Gerald Eve LLP,10151601,01/04/20,54482,1758,Other Commercial Properties,62400,Consultancy Fees,"5,500.00"
Cambridge City Council,Glo-Bell London Ltd,10119000,07/04/20,54146,8017,Mandela House,60201,Cyclical/Planned Maintenance - Building,715.00
Cambridge City Council,Glo-Bell London Ltd,10119000,20/04/20,54755,8025,Cowley Road Compound,60201,Cyclical/Planned Maintenance - Building,894.40
Cambridge City Council,Glo-Bell London Ltd,10119000,20/04/20,54759,8025,Cowley Road Compound,60201,Cyclical/Planned Maintenance - Building,894.40
Cambridge City Council,Green Energy Switch Ltd,10051400,31/03/20,53658,6209,Energy Rating,62400,Consultancy Fees,800.00
Cambridge City Council,Ground Control Ltd,10264600,31/03/20,53564,1774,"Cambridge Road Retail Park, Haverhill",60503,Grounds Maintenance,"1,193.68"
Cambridge City Council,Hanover & Princess Court Residents Association,10053200,20/04/20,55011,1057,Community Development Voluntary Support,64600,Grants And Contributions,975.00
Cambridge City Council,Hewitsons LLP,10054300,31/03/20,53436,1758,Other Commercial Properties,62400,Consultancy Fees,"2,150.00"
Cambridge City Council,Hiab Ltd,10396600,13/02/20,54011,1302,Cashiers,61703,"Purchase - Equipment, Furniture And Materials",546.55
Cambridge City Council,Hickton Consultants Ltd,10426800,31/03/20,53768,6205,Citywide Schemes,60217,Housing Repairs - Heating / Boiler Servicing,"2,256.00"
Cambridge City Council,HM Revenue & Customs,10144206,07/04/20,53929,9900,General Fund Balance Sheet,21003,Construction Industry Tax (Cis),"21,118.56"
Cambridge City Council,HM Revenue & Customs,10144206,22/04/20,54998,9900,General Fund Balance Sheet,10013,CCC General Account Bank Account,"602,598.60"
Cambridge City Council,HM Revenue & Customs (SDLT),10144205,24/04/20,55263,300087,New Build Colville Road (Phase 2),70001,CAPEX - Acquisition of Land & Exisiting Building,"4,933.00"
Cambridge City Council,Home-Start Cambridgeshire,10055700,28/04/20,55163,1057,Community Development Voluntary Support,64600,Grants And Contributions,"8,000.00"
Cambridge City Council,Hometrack Data Systems Limited,10055800,31/03/20,54187,1512,Sub-Regional Housing Strategy Co-ordinator,64800,Membership And Subscriptions,"14,500.00"
Cambridge City Council,Howden Joinery Ltd,10056300,09/04/20,54433,9900,General Fund Balance Sheet,11600,Consumable Stores,659.70
Cambridge City Council,Howden Joinery Ltd,10056300,09/04/20,54433,9900,General Fund Balance Sheet,11600,Consumable Stores,663.00
Cambridge City Council,Howsafe Ltd,10056400,08/04/20,55290,9900,General Fund Balance Sheet,11600,Consumable Stores,594.00
Cambridge City Council,Illuminate,10058000,09/04/20,54153,1057,Community Development Voluntary Support,64600,Grants And Contributions,"1,000.00"
Cambridge City Council,J Mattison T/A Mattison Contract Beds,,06/03/20,55044,6000,Housing Revenue Account - Net Cost of Service,61703,"Purchase - Equipment, Furniture And Materials","2,300.00"
Cambridge City Council,Jade Security Services Ltd,10060400,31/03/20,54461,5024,E_invoicing Suspense Accounts,69100,Expenditure In Holding Account Awaiting Allocation,"1,641.00"
Cambridge City Council,James Button & Co,10060600,17/04/20,55241,1419,Environmental Health Operational Support,64800,Membership And Subscriptions,725.00
Cambridge City Council,Jimmys Cambridge,10061600,28/04/20,55173,1509,Grants to Housing Agencies,64600,Grants And Contributions,"13,750.00"
Cambridge City Council,Jimmys Cambridge,10061600,28/04/20,55173,1509,Grants to Housing Agencies,64600,Grants And Contributions,"6,982.00"
Cambridge City Council,Jimmys Cambridge,10061600,28/04/20,55173,1509,Grants to Housing Agencies,64600,Grants And Contributions,750.00
Cambridge City Council,Jimmys Cambridge,10061600,28/04/20,55173,1509,Grants to Housing Agencies,64600,Grants And Contributions,"1,125.00"
Cambridge City Council,KCS Asbestos,10063801,23/04/20,55252,300007,Asbestos Removal,70002,CAPEX - Building Contractor/Works,650.00
Cambridge City Council,Keep Playing t/a Level Water,10333400,28/04/20,55171,1057,Community Development Voluntary Support,64600,Grants And Contributions,"3,500.00"
Cambridge City Council,Kestrel Fencing,10119900,31/03/20,53373,300088,Estate Investment,70020,CAPEX - Feasibility/investigatory work,"6,170.81"
Cambridge City Council,Kestrel Fencing,10119900,31/03/20,53374,6110,City Homes Estate Management,60503,Grounds Maintenance,645.52
Cambridge City Council,KH Construction (Cambridge) Ltd,10475200,01/04/20,54204,8009,Insurance Fund,67302,Insurance Claim,"1,955.00"
Cambridge City Council,LA Directories Ltd,10164900,01/04/20,54573,1803,Revenue Overheads,62400,Consultancy Fees,995.00
Cambridge City Council,Landmark Chambers,10065300,31/01/20,53878,1758,Other Commercial Properties,63200,Legal Fees,"5,000.00"
Cambridge City Council,LGSS - Cambridgeshire Pension Fund,10022801,10/04/20,54885,9900,General Fund Balance Sheet,11712,Payments In Advance - Other Local Authorities,"8,905,000.00"
Cambridge City Council,LGSS - Cambridgeshire Pension Fund,10022801,22/04/20,54990,9900,General Fund Balance Sheet,10013,CCC General Account Bank Account,"481,084.11"
Cambridge City Council,Live Nation (Music) Uk Ltd,10332300,31/03/20,54199,9900,Cambridge Live,20118,Receipts In Advance - Other Entities And Individuals,"38,375.22"
Cambridge City Council,Lynch Healthcare Ltd,10199600,26/03/20,53904,200001,Mandatory Disabled Facilities Grants (Tenants),70015,CAPEX - Grants Paid,"4,468.00"
Cambridge City Council,M Watson Construction Ltd,10122200,12/04/20,54931,200003,Top Up Assistance (Owner Occupiers),70015,CAPEX - Grants Paid,630.00
Cambridge City Council,Mace Ltd,10290900,27/03/20,53236,300038,Wall Structure,70010,CAPEX - Other Professional Fees,"16,874.00"
Cambridge City Council,Madingley Mulch,10068300,12/03/20,54039,1856,Streets & Open Spaces (Operations) - Indirect Costs,61703,"Purchase - Equipment, Furniture And Materials",604.10
Cambridge City Council,Maintel Europe Ltd,10009800,16/04/20,54710,5024,E_invoicing Suspense Accounts,69100,Expenditure In Holding Account Awaiting Allocation,"1,805.98"
Cambridge City Council,Malary Ltd,10068600,26/02/20,53364,1031,Fleet Management - Operational,60201,Cyclical/Planned Maintenance - Building,730.00
Cambridge City Council,Maskearaid Industrial Supplies,10069900,09/04/20,54433,9900,General Fund Balance Sheet,11600,Consumable Stores,"1,200.00"
Cambridge City Council,MBL Seminars Limited,10070300,18/04/20,55081,8014,3C Legal Practice,64300,Conference Expenses,540.00
Cambridge City Council,Meadows Children & Family Wing,10070500,21/04/20,54880,1057,Community Development Voluntary Support,64600,Grants And Contributions,"15,625.00"
Cambridge City Council,Mears Ltd,10121400,08/04/20,54061,6211,Heat and Hot Water Servicing,60225,Housing Repairs - Gas Maintenance Contract,"2,900.11"
Cambridge City Council,Mears Ltd,10121400,08/04/20,54061,6211,Heat and Hot Water Servicing,60225,Housing Repairs - Gas Maintenance Contract,"64,082.26"
Cambridge City Council,Mercer Tree Services Ltd,10071200,23/03/20,53473,1876,Arboriculture,64040,Tree Works,574.50
Cambridge City Council,Mercer Tree Services Ltd,10071200,23/03/20,53473,1885,Reverse Agency (formerly Unclassified Routine),64040,Tree Works,574.50
Cambridge City Council,Michelle Bullivant,10234800,31/03/20,53363,1862,Open Space Asset Management,62400,Consultancy Fees,"1,250.00"
Cambridge City Council,Mill Road Winter Fair,10072000,20/04/20,55009,1057,Community Development Voluntary Support,64600,Grants And Contributions,"2,000.00"
Cambridge City Council,"Ministry of Housing, Communities & Local Government",10134000,08/04/20,54017,9901,Housing Revenue Account Balance Sheet,30004,Capital Receipts Reserve,"283,489.48"
Cambridge City Council,Miss Josephine Henderson,10151700,18/09/19,53922,1050,Community Safety,62400,Consultancy Fees,770.05
Cambridge City Council,Miss Josephine Henderson,10151700,11/09/19,54005,1050,Community Safety,62400,Consultancy Fees,"1,547.40"
Cambridge City Council,Moles Seeds (UK) Ltd,10450700,25/03/20,53274,1858,Public Realm Enforcement,62401,Subcontractors,"3,262.00"
Cambridge City Council,Ms Victoria Osler - Five Paper,10294500,23/02/20,53355,1502,Homelessness Costs,63200,Legal Fees,900.00
Cambridge City Council,Ms Victoria Osler - Five Paper,10294500,07/02/20,53357,1502,Homelessness Costs,63200,Legal Fees,"1,250.00"
Cambridge City Council,Ms Victoria Osler - Five Paper,10294500,08/12/19,53358,1502,Homelessness Costs,63200,Legal Fees,"1,000.00"
Cambridge City Council,Ms Victoria Osler - Five Paper,10294500,03/04/19,55102,1502,Homelessness Costs,63200,Legal Fees,800.00
Cambridge City Council,Museum of Cambridge,10074200,20/04/20,55010,1057,Community Development Voluntary Support,64600,Grants And Contributions,"8,750.00"
Cambridge City Council,N & C Building Products Ltd,10074300,21/04/20,55020,9900,General Fund Balance Sheet,11600,Consumable Stores,"2,520.32"
Cambridge City Council,NLA Media Access Ltd,10144300,09/03/20,55257,1203,Corporate Policy,64800,Membership And Subscriptions,"1,222.00"
Cambridge City Council,Norse Commercial Services Ltd t/a N-Able,10130000,29/03/20,53783,200002,Mandatory Disabled Facilities Grants (Owner Occupiers),70015,CAPEX - Grants Paid,"8,142.00"
Cambridge City Council,North Cambridge Community Partnership,10131300,20/04/20,54720,1059,Community Facilities (formerly St Lukes Community School),64600,Grants And Contributions,"3,500.00"
Cambridge City Council,North Cambridge Community Partnership,10131300,20/04/20,54722,1057,Community Development Voluntary Support,64600,Grants And Contributions,"7,250.00"
Cambridge City Council,North Cambridge Community Partnership,10131300,29/04/20,55289,1059,Community Facilities (formerly St Lukes Community School),64600,Grants And Contributions,"3,000.00"
Cambridge City Council,Northgate Public Services (UK) Ltd,10076700,20/04/20,54835,1801,Local Taxation,64071,Ict Software,"3,750.00"
Cambridge City Council,Northgate Public Services (UK) Ltd,10076700,27/04/20,55220,1802,Housing Benefits,64073,ICT Maintenance and Support,"6,015.32"
Cambridge City Council,Northgate Public Services (UK) Ltd,10076700,20/04/20,55258,1504,Housing Advice Service,64072,Ict Licences,543.44
Cambridge City Council,Northgate Vehicle Hire Ltd,10076800,17/04/20,54803,1052,Children & Young People's Service,60909,Vehicle Hire,594.16
Cambridge City Council,Npower Ltd,10077102,04/04/20,54593,1071,Clay Farm Community Centre,60303,Electricity,"1,085.17"
Cambridge City Council,Nurture Landscapes Ltd,10132000,31/03/20,53728,1774,"Cambridge Road Retail Park, Haverhill",60503,Grounds Maintenance,851.89
Cambridge City Council,OASIS - Offsite Storage & Integrated Services UK Ltd,10155800,31/03/20,54059,8023,Business Support - Centralised Overheads,63700,Removal Services,945.43
Cambridge City Council,Orchard Information Systems Ltd,10078400,05/03/20,54046,300030,Orchard Upgrade,70024,CAPEX - Other Capital Expenditure,"2,789.77"
Cambridge City Council,Panther Taxis Ltd,10079600,31/03/20,53534,1712,Taxicard Service,63900,Miscellaneous Expenses,"1,624.43"
Cambridge City Council,Pennon Water Services Ltd T/A Cambridge Water Business,10080500,02/03/20,55223,5024,E_invoicing Suspense Accounts,69100,Expenditure In Holding Account Awaiting Allocation,"5,342.84"
Cambridge City Council,Pennon Water Services Ltd T/A Cambridge Water Business,10080500,21/04/20,55225,5024,E_invoicing Suspense Accounts,69100,Expenditure In Holding Account Awaiting Allocation,"7,731.07"
Cambridge City Council,People Asset Management Ltd,10145100,31/03/20,53731,8001,Human Resources Operations (Staff-General),60010,Salary Cost Outside Payroll,"1,216.00"
Cambridge City Council,People Asset Management Ltd,10145100,31/03/20,53731,8001,Human Resources Operations (Staff-General),60010,Salary Cost Outside Payroll,"2,356.41"
Cambridge City Council,Peter Dann Ltd,10081100,31/03/20,54069,300018,Roof Structure,70010,CAPEX - Other Professional Fees,"2,245.00"
Cambridge City Council,PHS Group Ltd,10082000,16/02/20,53390,1651,Grand Arcade Car Park,60207,Health And Safety Supplies And Services,853.70
Cambridge City Council,PHS Group Ltd,10082000,26/02/20,53391,1651,Grand Arcade Car Park,60207,Health And Safety Supplies And Services,886.33
Cambridge City Council,Point Contact Hygienesis,10082600,23/03/20,53537,6505,Ditchburn Extra Care,61300,Cleaning Materials,652.76
Cambridge City Council,PortalPlanQuest Ltd,10239400,07/04/20,54037,1702,City Development,54102,Planning Applications Income - Minor,"3,696.00"
Cambridge City Council,Potter Raper Partnership,10294300,31/03/20,54976,300079,New Build - Markham Close,70010,CAPEX - Other Professional Fees,"3,083.07"
Cambridge City Council,Potter Raper Partnership,10294300,31/03/20,54976,300072,New Build In-Fill - Queensmeadow,70010,CAPEX - Other Professional Fees,"1,233.24"
Cambridge City Council,Potter Raper Partnership,10294300,31/03/20,54976,300078,New Build - Gunhild Way,70010,CAPEX - Other Professional Fees,"1,233.23"
Cambridge City Council,Potter Raper Partnership,10294300,31/03/20,54976,300073,New Build - Wulfstan Way,70010,CAPEX - Other Professional Fees,"1,849.84"
Cambridge City Council,Potter Raper Partnership,10294300,31/03/20,54976,300074,New Build - Colville Road Garages,70010,CAPEX - Other Professional Fees,"1,849.85"
Cambridge City Council,Potter Raper Partnership,10294300,30/04/20,55038,300085,New Build Cromwell Road Redevelopment (HRA),70010,CAPEX - Other Professional Fees,"3,750.00"
Cambridge City Council,Potter Raper Partnership,10294300,30/04/20,55039,300079,New Build - Markham Close,70010,CAPEX - Other Professional Fees,"1,107.70"
Cambridge City Council,Potter Raper Partnership,10294300,30/04/20,55039,300073,New Build - Wulfstan Way,70010,CAPEX - Other Professional Fees,664.62
Cambridge City Council,Potter Raper Partnership,10294300,30/04/20,55039,300074,New Build - Colville Road Garages,70010,CAPEX - Other Professional Fees,664.62
Cambridge City Council,Potter Raper Partnership,10294300,30/04/20,55040,300044,New Build - Campkin Road (Phase1),70010,CAPEX - Other Professional Fees,695.02
Cambridge City Council,Potter Raper Partnership,10294300,30/04/20,55040,300091,Campkin Road Phase 2,70010,CAPEX - Other Professional Fees,"3,938.47"
Cambridge City Council,Potter Raper Partnership,10294300,30/04/20,55041,300087,New Build Colville Road (Phase 2),70010,CAPEX - Other Professional Fees,"4,241.58"
Cambridge City Council,Potter Raper Partnership,10294300,30/04/20,55042,6203,Asset Management and Compliance,62400,Consultancy Fees,"1,592.75"
Cambridge City Council,Potter Raper Partnership,10294300,30/04/20,55042,1506,Housing Development Agency,62400,Consultancy Fees,"1,592.75"
Cambridge City Council,Power Control Panels Ltd,10123000,14/04/20,54595,6000,Housing Revenue Account - Net Cost of Service,61703,"Purchase - Equipment, Furniture And Materials",718.75
Cambridge City Council,Power Control Panels Ltd,10123000,15/04/20,54621,6000,Housing Revenue Account - Net Cost of Service,61703,"Purchase - Equipment, Furniture And Materials","1,276.50"
Cambridge City Council,PPL PRS Ltd,10274200,06/04/20,53924,1260,Corn Exchange and Guildhalls,60415,PRS,"12,335.95"
Cambridge City Council,Price Bailey,10321900,31/03/20,54674,1263,Cambridge Live - Central,62400,Consultancy Fees,"3,750.00"
Cambridge City Council,Print.UK.Com,10083800,24/03/20,55217,1353,Elections,62001,Printing,"3,903.61"
Cambridge City Council,Print.UK.Com,10083800,24/03/20,55217,5069,Police & Crime Commissioner Election,62001,Printing,"3,903.60"
Cambridge City Council,Print.UK.Com,10083800,24/03/20,55218,1353,Elections,62001,Printing,"2,710.49"
Cambridge City Council,Print.UK.Com,10083800,24/03/20,55218,5069,Police & Crime Commissioner Election,62001,Printing,"2,710.49"
Cambridge City Council,Proactive Personnel Ltd,10367100,31/03/20,53795,1031,Fleet Management - Operational,60011,Agency Staff,"2,712.00"
Cambridge City Council,Proactive Personnel Ltd,10367100,07/04/20,54293,1031,Fleet Management - Operational,60011,Agency Staff,"3,552.00"
Cambridge City Council,Proactive Personnel Ltd,10367100,15/04/20,54550,1031,Fleet Management - Operational,60011,Agency Staff,"2,088.00"
Cambridge City Council,Proactive Personnel Ltd,10367100,22/04/20,55045,1031,Fleet Management - Operational,60011,Agency Staff,"1,176.00"
Cambridge City Council,Pro-Flat Specialist Services Ltd,10123200,17/04/20,54773,6207,Repairs Day to Day,60233,Housing Repairs - Work Given To External Contractors,710.00
Cambridge City Council,Pro-Flat Specialist Services Ltd,10123200,17/04/20,54776,6207,Repairs Day to Day,60233,Housing Repairs - Work Given To External Contractors,"1,210.00"
Cambridge City Council,Prompt Glazing Ltd,10283900,06/03/20,54224,300012,External Doors,70003,CAPEX - Building Contractor/Works - Voids & Emergencies,584.59
Cambridge City Council,Prompt Glazing Ltd,10283900,21/04/20,54791,300012,External Doors,70003,CAPEX - Building Contractor/Works - Voids & Emergencies,645.00
Cambridge City Council,Prompt Glazing Ltd,10283900,21/04/20,54792,300012,External Doors,70003,CAPEX - Building Contractor/Works - Voids & Emergencies,838.00
Cambridge City Council,Propotec Ltd,10123300,27/03/20,53465,300025,HHSRS,70003,CAPEX - Building Contractor/Works - Voids & Emergencies,"1,660.00"
Cambridge City Council,PWM Training (UK) Limited,10085400,28/04/20,55278,1351,Members Support,65900,Non-Staff Training,750.00
Cambridge City Council,Quadient UK Ltd,10137600,05/04/20,54091,6004,Leasehold Property Management,64100,Postage And Courier Services,"1,000.00"
Cambridge City Council,Quadient UK Ltd,10137600,05/04/20,54091,6012,City Homes Expenditure,64100,Postage And Courier Services,"1,500.00"
Cambridge City Council,Quadient UK Ltd,10137600,11/04/20,54221,8011,Corporate Business Support,61702,"Maintenance - Equipment, Furniture And Materials","1,083.05"
Cambridge City Council,Quartix Ltd,10206900,07/04/20,54206,5001,City Services Holding Account,69100,Expenditure In Holding Account Awaiting Allocation,"5,087.40"
Cambridge City Council,R H Partnership Architects Ltd,10240400,26/03/20,54912,1100,Sport & Recreation Administration,62400,Consultancy Fees,"1,575.00"
Cambridge City Council,R J Warren Ltd,10123500,17/04/20,54598,1868,Play Maintenance,61702,"Maintenance - Equipment, Furniture And Materials","4,483.43"
Cambridge City Council,R J Warren Ltd,10123500,24/04/20,55089,1871,Allotments,60503,Grounds Maintenance,"1,425.00"
Cambridge City Council,R J Warren Ltd,10123500,24/04/20,55090,1868,Play Maintenance,61702,"Maintenance - Equipment, Furniture And Materials","4,025.00"
Cambridge City Council,Realife Trust,10086900,20/04/20,55091,1766,Orwell House Offices-Internal,62004,General Office Expenses,"1,500.00"
Cambridge City Council,Reed Business Information Ltd,10087300,08/04/20,54273,8001,Human Resources Operations (Staff-General),64073,ICT Maintenance and Support,"6,605.97"
Cambridge City Council,Regency Guest House,10492200,31/03/20,53647,1524,COVID-19 Rough Sleepers Services,64401,B&B Accommodation,"3,600.17"
Cambridge City Council,Regency Guest House,10492200,09/04/20,54179,1524,COVID-19 Rough Sleepers Services,64401,B&B Accommodation,"4,546.88"
Cambridge City Council,Regency Guest House,10492200,17/04/20,54600,1524,COVID-19 Rough Sleepers Services,64401,B&B Accommodation,"4,666.90"
Cambridge City Council,Regency Guest House,10492200,24/04/20,55086,1524,COVID-19 Rough Sleepers Services,64401,B&B Accommodation,"4,066.87"
Cambridge City Council,Rexel UK Ltd Ta Newey & Eyre,10088100,19/03/20,54866,6200,Building Maintenance Response - Direct,61703,"Purchase - Equipment, Furniture And Materials",540.00
Cambridge City Council,RICS - Royal Institution of Chartered Surveyors,10089101,10/03/20,54003,6203,Asset Management and Compliance,64072,Ict Licences,"1,700.00"
Cambridge City Council,Risk Warden Ltd,10441100,08/04/20,54166,6205,Citywide Schemes,60205,Fire Assessment And Safety,"2,275.00"
Cambridge City Council,Romsey Mill Trust Ltd,10090201,20/04/20,55012,1057,Community Development Voluntary Support,64600,Grants And Contributions,"13,650.00"
Cambridge City Council,Romsey Mutual Aid,10495000,06/04/20,53964,1057,Community Development Voluntary Support,64600,Grants And Contributions,"1,000.00"
Cambridge City Council,Royal Mail Group Ltd,10128401,24/03/20,53218,8023,Business Support - Centralised Overheads,64100,Postage And Courier Services,"19,286.68"
Cambridge City Council,Royal Mail Group Ltd,10128401,07/04/20,54452,8023,Business Support - Centralised Overheads,64100,Postage And Courier Services,"1,141.43"
Cambridge City Council,Royal Mail Group Ltd,10128401,14/04/20,54603,8023,Business Support - Centralised Overheads,64100,Postage And Courier Services,"1,319.46"
Cambridge City Council,Royal Mail Group Ltd,10128401,13/04/20,54727,8023,Business Support - Centralised Overheads,64100,Postage And Courier Services,"1,788.25"
Cambridge City Council,RSK Environment Ltd,10090600,01/04/20,53874,300044,New Build - Campkin Road (Phase1),70010,CAPEX - Other Professional Fees,"2,884.00"
Cambridge City Council,S & B Commercials Ltd,10078700,20/04/20,54871,1032,Garage- External Work,61703,"Purchase - Equipment, Furniture And Materials",752.00
Cambridge City Council,S P Landscapes & Tree Contractors Ltd,10124100,31/03/20,53888,6012,City Homes Expenditure,64040,Tree Works,"2,325.00"
Cambridge City Council,Saint-Gobain Building Distribution Ltd t/a Jewson,10061400,20/03/20,54433,6200,Building Maintenance Response - Direct,61703,"Purchase - Equipment, Furniture And Materials",511.95
Cambridge City Council,Saint-Gobain Building Distribution Ltd t/a Jewson,10061400,15/04/20,55020,9900,General Fund Balance Sheet,11600,Consumable Stores,517.60
Cambridge City Council,Saint-Gobain Building Distribution Ltd t/a Jewson,10061400,07/04/20,55020,9900,General Fund Balance Sheet,11600,Consumable Stores,583.25
Cambridge City Council,Saunders Boston Ltd,10091900,31/03/20,53786,300076,New Build - Kingsway,70008,CAPEX - Architects Fees,500.00
Cambridge City Council,Sharpe Pritchard LLP,10093300,30/04/20,52799,1207,Programme Office,62400,Consultancy Fees,"2,124.00"
Cambridge City Council,Sharpe Pritchard LLP,10093300,29/02/20,53385,8011,Corporate Business Support,63200,Legal Fees,823.00
Cambridge City Council,Sharpe Pritchard LLP,10093300,31/03/20,54668,8011,Corporate Business Support,63200,Legal Fees,"1,758.00"
Cambridge City Council,Sharpe Pritchard LLP,10093300,31/03/20,54917,1250,Cultural Facilities Administration,63200,Legal Fees,604.00
Cambridge City Council,Sharpe Pritchard LLP,10093300,31/03/20,54918,1252,Cambridge Junction,62400,Consultancy Fees,786.00
Cambridge City Council,Siemens Financial Services Limited,10093900,10/04/20,54207,1001,Cambridge Crematorium,61700,Hire - Equipment Furniture And Materials,788.00
Cambridge City Council,Siemens Financial Services Limited,10093900,16/04/20,54916,1031,Fleet Management - Operational,60906,Purchase Of Vehicles Related Costs,529.55
Cambridge City Council,Siemens Mobility Ltd,10463200,24/04/20,55077,1661,Parking Administration,62400,Consultancy Fees,"4,594.00"
Cambridge City Council,Simpsons (East Anglia) Ltd Ta Drain Doctor Plumbing,10094700,02/04/20,53891,6207,Repairs Day to Day,60233,Housing Repairs - Work Given To External Contractors,775.00
Cambridge City Council,SMI Group Ltd,10095200,07/04/20,54433,9900,General Fund Balance Sheet,11600,Consumable Stores,598.80
Cambridge City Council,SMI Group Ltd,10095200,07/04/20,54433,9900,General Fund Balance Sheet,11600,Consumable Stores,598.80
Cambridge City Council,SMI Group Ltd,10095200,17/04/20,54866,9900,General Fund Balance Sheet,11600,Consumable Stores,598.80
Cambridge City Council,SMI Group Ltd,10095200,17/04/20,54866,9900,General Fund Balance Sheet,11600,Consumable Stores,598.80
Cambridge City Council,SMI Group Ltd,10095200,27/04/20,55290,9900,General Fund Balance Sheet,11600,Consumable Stores,"1,796.40"
Cambridge City Council,Smith & Ouzman Ltd,10095300,31/03/20,53744,8023,Business Support - Centralised Overheads,64100,Postage And Courier Services,656.36
Cambridge City Council,Smith & Ouzman Ltd,10095300,20/03/20,54492,8023,Business Support - Centralised Overheads,64100,Postage And Courier Services,"2,981.60"
Cambridge City Council,Smith & Ouzman Ltd,10095300,20/03/20,54493,8023,Business Support - Centralised Overheads,64100,Postage And Courier Services,"5,653.00"
Cambridge City Council,Smith & Ouzman Ltd,10095300,20/03/20,54582,1801,Local Taxation,62001,Printing,"1,468.00"
Cambridge City Council,Smith & Ouzman Ltd,10095300,20/04/20,54728,1801,Local Taxation,62001,Printing,"3,277.59"
Cambridge City Council,Sophie Dutton,10502800,07/02/20,54809,100234,S106 Public art grant - Faith and Hope,70015,CAPEX - Grants Paid,700.00
Cambridge City Council,South Cambridgeshire District Council,10096103,30/03/20,53257,1702,City Development,62400,Consultancy Fees,"31,572.06"
Cambridge City Council,South Cambridgeshire District Council,10096103,31/03/20,53350,1454,Cambridge Northern Fringe East (CNFE),62400,Consultancy Fees,"43,687.00"
Cambridge City Council,South Cambridgeshire District Council,10096103,24/02/20,53361,1702,City Development,62400,Consultancy Fees,"57,887.30"
Cambridge City Council,South Cambridgeshire District Council,10096103,01/04/20,53916,1707,Shared Director of Planning and Economic Development,62400,Consultancy Fees,"5,968.00"
Cambridge City Council,South Cambridgeshire District Council,10096103,01/05/20,54580,1707,Shared Director of Planning and Economic Development,62400,Consultancy Fees,"5,968.00"
Cambridge City Council,South Cambridgeshire District Council,10096103,09/03/20,55027,1860,Bill Posting & Distribution,60403,Business Rates Payable,698.60
Cambridge City Council,Stepney Brothers Limited,10098600,07/03/20,54125,1031,Fleet Management - Operational,61703,"Purchase - Equipment, Furniture And Materials","1,460.00"
Cambridge City Council,Steve Cotton,10390200,28/04/20,55174,6205,Citywide Schemes,60205,Fire Assessment And Safety,"2,500.00"
Cambridge City Council,Supra UK Limited T/A The Key Safe Company,10100200,23/04/20,55290,9900,General Fund Balance Sheet,11600,Consumable Stores,"2,760.00"
Cambridge City Council,Tameside MBC,10101000,01/04/20,55215,1802,Housing Benefits,64800,Membership And Subscriptions,"1,600.00"
Cambridge City Council,TBT Services Ltd,10502200,17/04/20,54761,1201,Emergency Planning,60207,Health And Safety Supplies And Services,"2,100.00"
Cambridge City Council,The BSS Group PLC - Pts Plumbing Trade Supplies,,18/03/20,54866,9900,General Fund Balance Sheet,11600,Consumable Stores,570.88
Cambridge City Council,The GET Group,10103000,20/04/20,54660,1057,Community Development Voluntary Support,64600,Grants And Contributions,"6,000.00"
Cambridge City Council,The Housing Ombudsman,10103500,23/04/20,55259,6007,Departmental Overheads-Client,64800,Membership And Subscriptions,"15,536.88"
Cambridge City Council,The Kite Trust,10103700,20/04/20,55008,1057,Community Development Voluntary Support,64600,Grants And Contributions,"4,750.00"
Cambridge City Council,The Richmond Fellowship Ltd,10104900,28/04/20,55170,1054,Neighbourhood Community Plan,64600,Grants And Contributions,"9,000.00"
Cambridge City Council,The Riverside Group Ltd - ECHG,10105001,30/03/20,53215,1502,Homelessness Costs,51406,Bed And Breakfast Income,"1,292.28"
Cambridge City Council,The Riverside Group Ltd - ECHG,10105001,22/04/20,54915,1509,Grants to Housing Agencies,64600,Grants And Contributions,"10,000.00"
Cambridge City Council,The Riverside Group Ltd - ECHG,10105001,27/04/20,55085,1502,Homelessness Costs,63900,Miscellaneous Expenses,826.32
Cambridge City Council,The Urban Forest Consultancy Ltd,10105700,20/04/20,54799,1876,Arboriculture,62400,Consultancy Fees,"4,000.00"
Cambridge City Council,Thinkproject UK Ltd,10031200,21/04/20,54938,5062,3C ICT,64073,ICT Maintenance and Support,500.00
Cambridge City Council,Thistle Insurance Services Ltd,10105900,06/04/20,53804,9901,Housing Revenue Account Balance Sheet,20119,Other Creditors - Other Entities And Individuals,"1,965.04"
Cambridge City Council,Thompson Electrical (Cambridge) Ltd,10243800,26/03/20,53388,1762,Barnwell Drive-excl Barnwell House,60201,Cyclical/Planned Maintenance - Building,732.52
Cambridge City Council,Thomson Reuters Professional UK Ltd T/A Sweet & Maxwell,10106000,01/04/20,53775,8014,3C Legal Practice,62003,"Books, Publications And Resources","4,452.33"
Cambridge City Council,Thomson Reuters Professional UK Ltd T/A Sweet & Maxwell,10106000,01/04/20,53778,8014,3C Legal Practice,62003,"Books, Publications And Resources",555.00
Cambridge City Council,Thomson Webb & Corfield,10221801,24/04/20,55264,300087,New Build Colville Road (Phase 2),70001,CAPEX - Acquisition of Land & Exisiting Building,"295,195.60"
Cambridge City Council,Thurlow Nunn Standen Ltd,10106100,27/03/20,53569,1856,Streets & Open Spaces (Operations) - Indirect Costs,60207,Health And Safety Supplies And Services,"5,357.59"
Cambridge City Council,Total Gas & Power Ltd,10134800,28/04/20,55238,5024,E_invoicing Suspense Accounts,69100,Expenditure In Holding Account Awaiting Allocation,"69,109.27"
Cambridge City Council,Travelodge Hotels Ltd,10326700,22/04/20,54887,1524,COVID-19 Rough Sleepers Services,64401,B&B Accommodation,"31,250.00"
Cambridge City Council,Travelodge Hotels Ltd,10326700,22/04/20,55150,1524,COVID-19 Rough Sleepers Services,64401,B&B Accommodation,"31,250.00"
Cambridge City Council,Travelodge Hotels Ltd,10326700,21/04/20,55224,1524,COVID-19 Rough Sleepers Services,64401,B&B Accommodation,"31,250.00"
Cambridge City Council,Travis Perkins Trading Co Ltd,10107600,23/03/20,53498,1002,Bereavement Services - Burials & Grounds,60503,Grounds Maintenance,688.75
Cambridge City Council,Tructyre Fleet Management Ltd,10364500,31/03/20,53477,1032,Garage- External Work,61703,"Purchase - Equipment, Furniture And Materials","2,107.62"
Cambridge City Council,Trumpington Residents Association,10108500,01/04/20,53353,1059,Community Facilities (formerly St Lukes Community School),64600,Grants And Contributions,"7,625.00"
Cambridge City Council,TSG Building Services PLC,10125300,31/03/20,53754,5024,E_invoicing Suspense Accounts,69100,Expenditure In Holding Account Awaiting Allocation,"59,733.65"
Cambridge City Council,TSG Building Services PLC,10125300,31/03/20,54056,5024,E_invoicing Suspense Accounts,69100,Expenditure In Holding Account Awaiting Allocation,"878,319.01"
Cambridge City Council,Tunstall Response Ltd,10109200,26/03/20,53387,6103,Emergency Alarms,61800,Contract Charges,"5,374.72"
Cambridge City Council,U and I (Projects) Ltd,10493900,16/04/20,54409,5104,Housing Infrastructure Fund,64600,Grants And Contributions,"498,821.14"
Cambridge City Council,UK Fuels Limited,10192900,29/03/20,53750,5001,City Services Holding Account,69100,Expenditure In Holding Account Awaiting Allocation,"3,196.02"
Cambridge City Council,UK Fuels Limited,10192900,05/04/20,54089,5001,City Services Holding Account,69100,Expenditure In Holding Account Awaiting Allocation,"2,434.66"
Cambridge City Council,UK Fuels Limited,10192900,12/04/20,54520,5001,City Services Holding Account,69100,Expenditure In Holding Account Awaiting Allocation,"2,037.17"
Cambridge City Council,UK Fuels Limited,10192900,19/04/20,55248,5001,City Services Holding Account,69100,Expenditure In Holding Account Awaiting Allocation,"3,963.12"
Cambridge City Council,Unison,10173200,23/04/20,55006,9900,General Fund Balance Sheet,10013,CCC General Account Bank Account,"2,603.20"
Cambridge City Council,University of Cambridge,10110201,20/04/20,54770,1057,Community Development Voluntary Support,64600,Grants And Contributions,"7,500.00"
Cambridge City Council,University of Cambridge,10110201,28/04/20,55168,1057,Community Development Voluntary Support,64600,Grants And Contributions,"6,000.00"
Cambridge City Council,Visit Cambridge & Beyond,10227200,16/04/20,54695,1930,Tourism,64600,Grants And Contributions,"16,824.00"
Cambridge City Council,Visit Cambridge & Beyond,10227200,16/04/20,54697,1930,Tourism,64600,Grants And Contributions,"5,608.00"
Cambridge City Council,Visit Cambridge & Beyond,10227200,14/04/20,54736,1930,Tourism,64600,Grants And Contributions,"43,000.00"
Cambridge City Council,Volvo Group UK Ltd,10111400,02/04/20,53547,1031,Fleet Management - Operational,61703,"Purchase - Equipment, Furniture And Materials",792.54
Cambridge City Council,Volvo Group UK Ltd,10111400,23/04/20,55026,1031,Fleet Management - Operational,61703,"Purchase - Equipment, Furniture And Materials",545.90
Cambridge City Council,WFL UK Ltd,10113200,25/03/20,53086,1031,Fleet Management - Operational,60306,Heating Oil,"1,193.00"
Cambridge City Council,WFL UK Ltd,10113200,03/04/20,54049,1031,Fleet Management - Operational,60306,Heating Oil,501.44
Cambridge City Council,Wintercomfort,,22/04/20,54919,1509,Grants to Housing Agencies,64600,Grants And Contributions,"28,157.50"
Cambridge City Council,Witham Oil & Paint (Soham) Ltd,10113800,23/04/20,55100,1031,Fleet Management - Operational,61703,"Purchase - Equipment, Furniture And Materials",662.89
Cambridge City Council,Wood Green Animal Shelters,10114100,31/03/20,53448,1858,Public Realm Enforcement,61800,Contract Charges,"1,416.67"
Cambridge City Council,Wybone Limited,10114600,20/03/20,55051,1856,Streets & Open Spaces (Operations) - Indirect Costs,61702,"Maintenance - Equipment, Furniture And Materials","1,802.63"
Cambridge City Council,YMCA Trinity Group,10132200,31/03/20,54920,1509,Grants to Housing Agencies,69150,Other Services,"2,800.23"
Cambridge City Council,A T B Sports Solutions LLP,10217300,27/04/20,55477,1865,Lettings & Events on Open Spaces,63900,Miscellaneous Expenses,"9,345.00"
Cambridge City Council,Abbey People,10001300,20/05/20,56226,1056,Abbey People,64600,Grants And Contributions,"6,000.00"
Cambridge City Council,Aerial Services Scotland Ltd,10512300,22/05/20,56400,6207,Repairs Day to Day,60233,Housing Repairs - Work Given To External Contractors,"1,298.00"
Cambridge City Council,Albany Beck Consultancy Services Ltd,10476400,20/05/20,56246,100194,My Cambridge City online customer portal,70010,CAPEX - Other Professional Fees,"3,600.00"
Cambridge City Council,Alboro Developments Ltd,10133300,30/04/20,55624,1031,Fleet Management - Operational,60303,Electricity,941.06
Cambridge City Council,Alboro Developments Ltd,10133300,19/05/20,56367,1031,Fleet Management - Operational,60804,Other Premises Related Costs,818.00
Cambridge City Council,Algar Signcraft Services (Cambridge) Ltd,10004300,05/05/20,55727,1866,Open Space Asset Maintenance,61703,"Purchase - Equipment, Furniture And Materials","1,300.00"
Cambridge City Council,Ameycespa (East) Ltd,10005100,30/04/20,55371,1001,Cambridge Crematorium,64050,Waste Disposal Costs,"1,318.04"
Cambridge City Council,Amulet (Churchill Security Solutions) Ltd,10220900,31/03/20,55805,5024,E_invoicing Suspense Accounts,69100,Expenditure In Holding Account Awaiting Allocation,720.00
Cambridge City Council,Amulet (Churchill Security Solutions) Ltd,10220900,30/04/20,56038,5024,E_invoicing Suspense Accounts,69100,Expenditure In Holding Account Awaiting Allocation,"11,391.47"
Cambridge City Council,Amulet (Churchill Security Solutions) Ltd,10220900,30/04/20,56044,5024,E_invoicing Suspense Accounts,69100,Expenditure In Holding Account Awaiting Allocation,"9,944.29"
Cambridge City Council,Amulet (Churchill Security Solutions) Ltd,10220900,30/04/20,56045,5024,E_invoicing Suspense Accounts,69100,Expenditure In Holding Account Awaiting Allocation,"2,205.00"
Cambridge City Council,Amulet (Churchill Security Solutions) Ltd,10220900,26/05/20,56423,5024,E_invoicing Suspense Accounts,69100,Expenditure In Holding Account Awaiting Allocation,660.00
Cambridge City Council,Anglian Water Business (National) Ltd T/A Wave,10006400,17/01/20,55190,8017,Mandela House,60302,Water And Sewerage,"2,176.58"
Cambridge City Council,Anglian Water Business (National) Ltd T/A Wave,10006400,27/04/20,55442,1260,Corn Exchange and Guildhalls,60302,Water And Sewerage,"1,943.68"
Cambridge City Council,Anglian Water Business (National) Ltd T/A Wave,10006400,17/01/20,55823,1100,Sport & Recreation Administration,60302,Water And Sewerage,"5,974.72"
Cambridge City Council,AON UK Limited,10006800,05/04/20,54901,8009,Insurance Fund,67302,Insurance Claim,"1,344.00"
Cambridge City Council,AON UK Limited,10006800,05/04/20,54902,8009,Insurance Fund,67302,Insurance Claim,"2,234.40"
Cambridge City Council,AON UK Limited,10006800,05/04/20,54903,8009,Insurance Fund,67302,Insurance Claim,"1,340.00"
Cambridge City Council,AON UK Limited,10006800,06/04/20,54904,8009,Insurance Fund,67302,Insurance Claim,"134,350.83"
Cambridge City Council,AON UK Limited,10006800,06/04/20,54905,8009,Insurance Fund,67302,Insurance Claim,"60,228.00"
Cambridge City Council,AON UK Limited,10006800,06/04/20,54906,8009,Insurance Fund,67302,Insurance Claim,"4,368.00"
Cambridge City Council,AON UK Limited,10006800,06/04/20,54907,8009,Insurance Fund,67302,Insurance Claim,"18,088.00"
Cambridge City Council,AON UK Limited,10006800,06/04/20,54909,8009,Insurance Fund,67302,Insurance Claim,"46,168.66"
Cambridge City Council,AON UK Limited,10006800,06/04/20,54910,8009,Insurance Fund,67302,Insurance Claim,"1,260.00"
Cambridge City Council,Apollo Damp & Timber Decay Specialists Ltd,10439200,27/05/20,56486,300025,HHSRS,70003,CAPEX - Building Contractor/Works - Voids & Emergencies,"2,389.65"
Cambridge City Council,"AppExtremes, LLC. dba Conga",10508000,28/04/20,55676,1522,Flexible Homelessness Support Grant,63900,Miscellaneous Expenses,"1,414.23"
Cambridge City Council,APT-Skidata Ltd,10115700,30/09/19,55384,1654,Grafton Centre East Car Park,61702,"Maintenance - Equipment, Furniture And Materials","3,238.46"
Cambridge City Council,APT-Skidata Ltd,10115700,12/05/20,55977,1654,Grafton Centre East Car Park,64073,ICT Maintenance and Support,"1,427.58"
Cambridge City Council,APT-Skidata Ltd,10115700,12/05/20,55978,1653,Grafton Centre West Car Park,64073,ICT Maintenance and Support,"1,427.58"
Cambridge City Council,APT-Skidata Ltd,10115700,12/05/20,56021,1651,Grand Arcade Car Park,64073,ICT Maintenance and Support,"1,427.58"
Cambridge City Council,APT-Skidata Ltd,10115700,12/05/20,56024,1655,Queen Anne Terrace Car Park,64073,ICT Maintenance and Support,"1,427.58"
Cambridge City Council,APT-Skidata Ltd,10115700,23/04/20,56159,1655,Queen Anne Terrace Car Park,61702,"Maintenance - Equipment, Furniture And Materials","1,716.17"
Cambridge City Council,APT-Skidata Ltd,10115700,21/05/20,56496,1651,Grand Arcade Car Park,61702,"Maintenance - Equipment, Furniture And Materials","3,226.74"
Cambridge City Council,APT-Skidata Ltd,10115700,12/05/20,56501,1653,Grafton Centre West Car Park,61702,"Maintenance - Equipment, Furniture And Materials","1,033.34"
Cambridge City Council,APT-Skidata Ltd,10115700,12/05/20,56503,1654,Grafton Centre East Car Park,61702,"Maintenance - Equipment, Furniture And Materials","1,739.28"
Cambridge City Council,APT-Skidata Ltd,10115700,12/05/20,56504,1655,Queen Anne Terrace Car Park,61702,"Maintenance - Equipment, Furniture And Materials","1,043.12"
Cambridge City Council,APT-Skidata Ltd,10115700,12/05/20,56508,1652,Park Street Car Park,61702,"Maintenance - Equipment, Furniture And Materials","1,136.03"
Cambridge City Council,Artelia Projects UK Ltd,10194200,30/04/20,56113,300052,New Build - 2015/16 Garage Sites,70010,CAPEX - Other Professional Fees,"5,630.00"
Cambridge City Council,Association of Retained Council Housing Ltd,10353400,20/05/20,56422,6012,City Homes Expenditure,64800,Membership And Subscriptions,"2,500.00"
Cambridge City Council,Athey Consulting Ltd t/a My Local Economy,10496100,06/05/20,55687,1206,Business Transformation Departmental Management,62400,Consultancy Fees,"2,000.00"
Cambridge City Council,Autumn House Bed & Breakfast Ltd,10507100,13/05/20,55964,1502,Homelessness Costs,64401,B&B Accommodation,"1,020.00"
Cambridge City Council,Bevan Brittan LLP,10012600,30/04/20,55751,1506,Housing Development Agency,63200,Legal Fees,729.80
Cambridge City Council,Bevan Brittan LLP,10012600,20/04/20,56059,300085,New Build Cromwell Road Redevelopment (HRA),70010,CAPEX - Other Professional Fees,"1,014.50"
Cambridge City Council,Bevan Brittan LLP,10012600,28/04/20,56062,1506,Housing Development Agency,63200,Legal Fees,"1,775.90"
Cambridge City Council,Bevan Brittan LLP,10012600,28/04/20,56062,1506,Housing Development Agency,63200,Legal Fees,"1,029.00"
Cambridge City Council,Bevan Brittan LLP,10012600,28/04/20,56187,300042,Aquisitions & Disposals,70010,CAPEX - Other Professional Fees,"1,316.00"
Cambridge City Council,BH Doors & Engineering Ltd,10116300,16/03/20,55357,8015,Guildhall,60201,Cyclical/Planned Maintenance - Building,987.08
Cambridge City Council,Bidwells LLP  No 2 Account,10161000,29/04/20,55370,1750,Property Services,62400,Consultancy Fees,"20,000.00"
Cambridge City Council,BigChange Limited,10355800,18/05/20,56147,5062,3C ICT,64073,ICT Maintenance and Support,"2,966.74"
Cambridge City Council,Biochemica Water Ltd,10218600,30/04/20,55898,6205,Citywide Schemes,60235,Housing Repairs - Other Premises Related Costs,739.00
Cambridge City Council,Blyth Equipment Ltd,10511600,11/05/20,55818,1031,Fleet Management - Operational,61703,"Purchase - Equipment, Furniture And Materials","1,450.00"
Cambridge City Council,Boldfield Computing Ltd,10306300,01/05/20,55416,1263,Cambridge Live - Central,64073,ICT Maintenance and Support,"1,255.42"
Cambridge City Council,Boldfield Computing Ltd,10306300,01/05/20,55417,1263,Cambridge Live - Central,64073,ICT Maintenance and Support,"2,836.09"
Cambridge City Council,Bsg Property Services Ltd,10015900,05/05/20,55905,200001,Mandatory Disabled Facilities Grants (Tenants),70015,CAPEX - Grants Paid,"3,527.00"
Cambridge City Council,Businessclean (Cambridge) Ltd,10016800,22/04/20,55053,6208,Voids,60220,Housing Repairs - Work To Void Properties,706.00
Cambridge City Council,Businessclean (Cambridge) Ltd,10016800,17/04/20,55245,6208,Voids,60220,Housing Repairs - Work To Void Properties,"1,452.00"
Cambridge City Council,Businessclean (Cambridge) Ltd,10016800,30/04/20,55474,6102,Temporary Accommodation,60501,Cleaning Services,"2,092.00"
Cambridge City Council,Businessclean (Cambridge) Ltd,10016800,30/04/20,55474,1502,Homelessness Costs,60501,Cleaning Services,605.00
Cambridge City Council,Businessclean (Cambridge) Ltd,10016800,29/04/20,55506,6208,Voids,60220,Housing Repairs - Work To Void Properties,892.00
Cambridge City Council,Cam Sight,10017400,26/05/20,56515,1057,Community Development Voluntary Support,64600,Grants And Contributions,"1,500.00"
Cambridge City Council,Cambridge & District Citizen's Advice Bureau,10017500,05/05/20,55356,1509,Grants to Housing Agencies,64600,Grants And Contributions,"17,500.00"
Cambridge City Council,Cambridge & District Citizen's Advice Bureau,10017500,02/03/20,55797,1802,Housing Benefits,63900,Miscellaneous Expenses,"9,812.75"
Cambridge City Council,Cambridge African Network,10017700,05/05/20,55602,1057,Community Development Voluntary Support,64600,Grants And Contributions,"1,730.00"
Cambridge City Council,Cambridge Bid Limited,10017900,15/05/20,56079,5025,Business Improvement District (BID) Collection Fund,58702,BID Levy - Payment to BID Company,"140,000.00"
Cambridge City Council,Cambridge Churches Homeless Project,10235200,21/05/20,56302,1509,Grants to Housing Agencies,64600,Grants And Contributions,"5,000.00"
Cambridge City Council,Cambridge Community Arts,10018200,21/05/20,56335,1057,Community Development Voluntary Support,64600,Grants And Contributions,"3,350.00"
Cambridge City Council,Cambridge Council For Voluntary Service CVS,10018500,05/05/20,55619,1057,Community Development Voluntary Support,64600,Grants And Contributions,"18,000.00"
Cambridge City Council,Cambridge Council For Voluntary Service CVS,10018500,12/03/20,55629,100302,Grant for Arbury Court meeting room - voluntary services,70015,CAPEX - Grants Paid,"3,000.00"
Cambridge City Council,Cambridge Cyrenians Ltd,10018700,28/05/20,56555,1509,Grants to Housing Agencies,64600,Grants And Contributions,"5,000.00"
Cambridge City Council,Cambridge Cyrenians Ltd,10018700,28/05/20,56555,1509,Grants to Housing Agencies,64600,Grants And Contributions,"5,000.00"
Cambridge City Council,Cambridge Dial a Ride,,11/04/20,56050,1713,Transport Initiatives for Disabled,64600,Grants And Contributions,"20,000.00"
Cambridge City Council,Cambridge Ethnic Community Forum,10019300,05/05/20,55620,1057,Community Development Voluntary Support,64600,Grants And Contributions,"11,000.00"
Cambridge City Council,Cambridge Investment Partnership LLP,10145700,28/04/20,55367,100261,Cromwell Road Redevelopment - development loan to CIP,70018,CAPEX - Loans,"1,700,000.00"
Cambridge City Council,Cambridge Investment Partnership LLP,10145700,01/05/20,56057,300077,New Build - Mill Road,70002,CAPEX - Building Contractor/Works,"235,237.00"
Cambridge City Council,Cambridge Investment Partnership LLP,10145700,01/05/20,56064,300069,New Build - Ventress Close,70002,CAPEX - Building Contractor/Works,"175,722.12"
Cambridge City Council,Cambridge Investment Partnership LLP,10145700,01/05/20,56066,300064,New Build - Akeman Street,70002,CAPEX - Building Contractor/Works,"210,610.12"
Cambridge City Council,Cambridge Money Advice Centre,10510000,05/05/20,55614,1057,Community Development Voluntary Support,64600,Grants And Contributions,"5,000.00"
Cambridge City Council,Cambridge Re-Use,10021200,12/02/20,56049,1509,Grants to Housing Agencies,64600,Grants And Contributions,"4,000.00"
Cambridge City Council,Cambridge Sustainable Food,10162900,05/05/20,55592,1057,Community Development Voluntary Support,64600,Grants And Contributions,"10,000.00"
Cambridge City Council,Cambridge Vending Ltd t/a The Vending People,10022100,21/04/20,55709,1102,Leisure Contract Client Costs,61900,Catering And Vending Supplies,"1,185.00"
Cambridge City Council,Cambridgeshire & Peterborough Fire Authority,10022500,28/04/20,55276,1201,Emergency Planning,62400,Consultancy Fees,"5,424.58"
Cambridge City Council,Cambridgeshire Community Foundation,10263800,21/05/20,56336,1509,Grants to Housing Agencies,64600,Grants And Contributions,"7,500.00"
Cambridge City Council,Cambridgeshire County Council,10022802,21/05/20,56313,1509,Grants to Housing Agencies,64600,Grants And Contributions,"3,543.00"
Cambridge City Council,Caroline Wright,10190500,06/05/20,55827,100203,S106 To the River - artist in residence,70010,CAPEX - Other Professional Fees,"6,184.00"
Cambridge City Council,Caroline Wright,10190500,06/05/20,55828,100203,S106 To the River - artist in residence,70010,CAPEX - Other Professional Fees,"2,000.00"
Cambridge City Council,Carter Jonas LLP,10141403,29/04/20,55400,1506,Housing Development Agency,62400,Consultancy Fees,"6,799.00"
Cambridge City Council,Carter Jonas LLP,10141403,29/04/20,55419,1506,Housing Development Agency,62400,Consultancy Fees,"5,088.86"
Cambridge City Council,Carter Jonas LLP,10141403,28/05/20,56603,1506,Housing Development Agency,62400,Consultancy Fees,"6,502.00"
Cambridge City Council,CCPM Ltd,10283000,22/04/20,55658,1206,Business Transformation Departmental Management,60011,Agency Staff,"7,700.00"
Cambridge City Council,Cerc - Cambridge Environmental Research Consultants Ltd,10025500,20/05/20,56362,1404,Scientific Team,64073,ICT Maintenance and Support,"1,890.00"
Cambridge City Council,CGM Group (East Anglia) Ltd,10117300,30/09/19,55974,1876,Arboriculture,64040,Tree Works,"1,119.00"
Cambridge City Council,CGM Group (East Anglia) Ltd,10117300,30/09/19,55974,1885,Reverse Agency (formerly Unclassified Routine),64040,Tree Works,"1,119.00"
Cambridge City Council,Chassis Cab Ltd,10027000,29/04/20,55636,1032,Garage- External Work,61703,"Purchase - Equipment, Furniture And Materials",593.63
Cambridge City Council,Childcare Vouchers Limited,10028300,06/05/20,55816,5000,Salary Sacrifice Schemes Holding Account,60106,Childcare Admin Vouchers,"6,345.10"
Cambridge City Council,CHS Group Ltd,10019601,28/04/20,55721,1509,Grants to Housing Agencies,64600,Grants And Contributions,"15,000.00"
Cambridge City Council,Churchill Contract Services Ltd,10029300,31/03/20,55366,5024,E_invoicing Suspense Accounts,69100,Expenditure In Holding Account Awaiting Allocation,"137,404.22"
Cambridge City Council,CIP (Cromwell Road) LLP,10366900,01/05/20,56096,300085,New Build Cromwell Road Redevelopment (HRA),70002,CAPEX - Building Contractor/Works,"381,048.00"
Cambridge City Council,CIP (Mill Road Development) LLP,10474400,01/05/20,56090,300077,New Build - Mill Road,70002,CAPEX - Building Contractor/Works,"540,965.00"
Cambridge City Council,Come Clean Ltd T/A CCL Supplies,10031800,06/04/20,55626,9900,General Fund Balance Sheet,11600,Consumable Stores,"1,128.00"
Cambridge City Council,Comensura Ltd,10031900,06/05/20,55670,5024,E_invoicing Suspense Accounts,69100,Expenditure In Holding Account Awaiting Allocation,"35,588.66"
Cambridge City Council,Comensura Ltd,10031900,13/05/20,55926,5024,E_invoicing Suspense Accounts,69100,Expenditure In Holding Account Awaiting Allocation,"30,332.71"
Cambridge City Council,Comensura Ltd,10031900,17/05/20,56181,5024,E_invoicing Suspense Accounts,69100,Expenditure In Holding Account Awaiting Allocation,"43,390.88"
Cambridge City Council,Comensura Ltd,10031900,27/05/20,56482,5024,E_invoicing Suspense Accounts,69100,Expenditure In Holding Account Awaiting Allocation,"30,608.44"
Cambridge City Council,Conservators of The River Cam,10032500,11/10/19,55979,1772,Other - Land,60503,Grounds Maintenance,"1,461.94"
Cambridge City Council,Cooks Blinds & Shutters Ltd,10032900,15/05/20,56143,1031,Fleet Management - Operational,60804,Other Premises Related Costs,"7,284.20"
Cambridge City Council,Cooleraid Ltd,10033001,21/05/20,56247,6012,City Homes Expenditure,62004,General Office Expenses,540.96
Cambridge City Council,D & M Pest Control,10035200,01/05/20,56297,1003,Bereavement Services Central Costs,60207,Health And Safety Supplies And Services,"1,380.00"
Cambridge City Council,D Carman BSSR Ltd,10118100,05/03/20,55618,8015,Guildhall,60201,Cyclical/Planned Maintenance - Building,677.65
Cambridge City Council,Danfo (UK) Limited,10035600,01/04/20,55631,1870,Public Toilets,60501,Cleaning Services,"4,768.62"
Cambridge City Council,Dash Information Systems Ltd,10204900,24/04/20,55272,1004,Commemoration,53007,Bereavement  - Fees And Charges (B),"1,276.80"
Cambridge City Council,David Powell t/a D J Kitchens,10137900,18/05/20,56104,6208,Voids,60233,Housing Repairs - Work Given To External Contractors,780.00
Cambridge City Council,David Powell t/a D J Kitchens,10137900,25/05/20,56409,6207,Repairs Day to Day,60233,Housing Repairs - Work Given To External Contractors,"1,455.00"
Cambridge City Council,Dennis Eagle Ltd,10036900,29/04/20,55334,1031,Fleet Management - Operational,61703,"Purchase - Equipment, Furniture And Materials",511.50
Cambridge City Council,Dennis Eagle Ltd,10036900,30/04/20,55636,1032,Garage- External Work,61703,"Purchase - Equipment, Furniture And Materials","1,847.76"
Cambridge City Council,Dennis Eagle Ltd,10036900,01/05/20,55636,1032,Garage- External Work,61703,"Purchase - Equipment, Furniture And Materials",727.36
Cambridge City Council,Dennis Eagle Ltd,10036900,01/05/20,55636,1032,Garage- External Work,61703,"Purchase - Equipment, Furniture And Materials",529.49
Cambridge City Council,Dennis Eagle Ltd,10036900,01/05/20,55636,1032,Garage- External Work,61703,"Purchase - Equipment, Furniture And Materials",582.90
Cambridge City Council,District Councils Network,10038000,01/05/20,55680,1200,Corporate Management,64800,Membership And Subscriptions,"1,257.00"
Cambridge City Council,Diversiti UK Learning and Development CIC,10302100,26/06/20,56595,8003,Human Resources - Organisational Development,64300,Conference Expenses,"1,160.00"
Cambridge City Council,DSB Engineering Supplies,10039000,07/05/20,56058,1031,Fleet Management - Operational,61500,Consumables,556.51
Cambridge City Council,Eastfield Guest House Ltd,10262600,27/04/20,55393,1524,COVID-19 Rough Sleepers Services,64401,B&B Accommodation,"3,595.00"
Cambridge City Council,Eastfield Guest House Ltd,10262600,04/05/20,55459,1524,COVID-19 Rough Sleepers Services,64401,B&B Accommodation,"3,150.00"
Cambridge City Council,Eastfield Guest House Ltd,10262600,11/05/20,55801,1524,COVID-19 Rough Sleepers Services,64401,B&B Accommodation,"3,150.00"
Cambridge City Council,Eastfield Guest House Ltd,10262600,18/05/20,56118,1524,COVID-19 Rough Sleepers Services,64401,B&B Accommodation,"3,150.00"
Cambridge City Council,Eastfield Guest House Ltd,10262600,25/05/20,56402,1524,COVID-19 Rough Sleepers Services,64401,B&B Accommodation,"3,150.00"
Cambridge City Council,Easy-Gate Ltd,10040300,27/04/20,55396,1868,Play Maintenance,60503,Grounds Maintenance,"2,210.00"
Cambridge City Council,EcoOnline AS Ltd,10517600,26/05/20,56471,1205,Quality/Health & Safety Management - Indirect,62400,Consultancy Fees,"2,050.00"
Cambridge City Council,Eddie Barcan t/a Splendid Events,10215402,06/04/20,55468,780001,,62400,Consultancy Fees,"2,500.00"
Cambridge City Council,Eddie Barcan t/a Splendid Events,10215402,01/05/20,56454,780001,,62400,Consultancy Fees,"2,500.00"
Cambridge City Council,Elior UK PLC,10040900,30/04/20,55374,6123,Ditchburn Place,61902,Catering Services,"13,823.33"
Cambridge City Council,EMAP Publishing Ltd,10041200,19/05/20,56213,1200,Corporate Management,64800,Membership And Subscriptions,"1,404.00"
Cambridge City Council,Ernest Doe & Sons Ltd,10043400,15/05/20,56111,1856,Streets & Open Spaces (Operations) - Indirect Costs,61703,"Purchase - Equipment, Furniture And Materials",600.00
Cambridge City Council,Ernest Doe & Sons Ltd,10043400,29/04/20,56112,1856,Streets & Open Spaces (Operations) - Indirect Costs,61703,"Purchase - Equipment, Furniture And Materials",560.00
Cambridge City Council,Ernest Doe & Sons Ltd,10043400,06/05/20,56215,1856,Streets & Open Spaces (Operations) - Indirect Costs,61703,"Purchase - Equipment, Furniture And Materials","1,800.00"
Cambridge City Council,Ernest Doe & Sons Ltd,10043400,06/05/20,56215,1856,Streets & Open Spaces (Operations) - Indirect Costs,61703,"Purchase - Equipment, Furniture And Materials","2,000.00"
Cambridge City Council,Ernest Doe & Sons Ltd,10043400,06/05/20,56215,1856,Streets & Open Spaces (Operations) - Indirect Costs,61703,"Purchase - Equipment, Furniture And Materials","1,120.00"
Cambridge City Council,Ernest Doe & Sons Ltd,10043400,06/05/20,56215,1856,Streets & Open Spaces (Operations) - Indirect Costs,61703,"Purchase - Equipment, Furniture And Materials","2,040.00"
Cambridge City Council,Ernest Doe & Sons Ltd,10043400,06/05/20,56215,1856,Streets & Open Spaces (Operations) - Indirect Costs,61703,"Purchase - Equipment, Furniture And Materials",620.00
Cambridge City Council,ESPO,10043700,27/05/20,56505,5024,E_invoicing Suspense Accounts,69100,Expenditure In Holding Account Awaiting Allocation,"17,649.96"
Cambridge City Council,Essex County Council,10044100,28/04/20,55376,8014,3C Legal Practice,64800,Membership And Subscriptions,"2,120.00"
Cambridge City Council,Evolve Guards Ltd,10506900,03/05/20,55455,1524,COVID-19 Rough Sleepers Services,64401,B&B Accommodation,"4,200.00"
Cambridge City Council,Evolve Guards Ltd,10506900,10/05/20,55798,1524,COVID-19 Rough Sleepers Services,64401,B&B Accommodation,"4,200.00"
Cambridge City Council,Evolve Guards Ltd,10506900,17/05/20,56129,1524,COVID-19 Rough Sleepers Services,64401,B&B Accommodation,"4,200.00"
Cambridge City Council,Evolve Guards Ltd,10506900,24/05/20,56430,1524,COVID-19 Rough Sleepers Services,64401,B&B Accommodation,"4,320.00"
Cambridge City Council,Facultatieve Technologies Ltd,10118300,30/04/20,55795,1001,Cambridge Crematorium,60202,Cyclical/Planned Maintenance - Fixed Plant,"22,497.77"
Cambridge City Council,Faithful+Gould Ltd,10339500,12/05/20,56140,300008,Central Heating / Boilers,70003,CAPEX - Building Contractor/Works - Voids & Emergencies,"1,500.00"
Cambridge City Council,Fenners Chambers,10045600,05/05/20,55892,1419,Environmental Health Operational Support,63200,Legal Fees,850.00
Cambridge City Council,Fenners Chambers,10045600,01/05/20,55893,1419,Environmental Health Operational Support,63200,Legal Fees,525.00
Cambridge City Council,Fenners Hotel,10491600,04/05/20,55569,1524,COVID-19 Rough Sleepers Services,64401,B&B Accommodation,"7,754.25"
Cambridge City Council,Foster Property Maintenance Ltd,10046700,30/04/20,55325,5024,E_invoicing Suspense Accounts,69100,Expenditure In Holding Account Awaiting Allocation,"162,740.00"
Cambridge City Council,Freeths LLP,10128501,28/02/20,56541,300077,New Build - Mill Road,70010,CAPEX - Other Professional Fees,592.00
Cambridge City Council,Friends of Midsummer Common,10182100,26/05/20,56443,1057,Community Development Voluntary Support,64600,Grants And Contributions,"1,130.00"
Cambridge City Council,Frontline Fabrication & Ironwork Co Ltd,10128000,26/04/20,55664,1866,Open Space Asset Maintenance,61702,"Maintenance - Equipment, Furniture And Materials","17,000.00"
Cambridge City Council,Frontline Fabrication & Ironwork Co Ltd,10128000,06/05/20,55665,1866,Open Space Asset Maintenance,61702,"Maintenance - Equipment, Furniture And Materials","1,750.00"
Cambridge City Council,Frontline Fabrication & Ironwork Co Ltd,10128000,04/05/20,55773,1868,Play Maintenance,61702,"Maintenance - Equipment, Furniture And Materials","10,975.00"
Cambridge City Council,Frontline Fabrication & Ironwork Co Ltd,10128000,26/04/20,56580,1866,Open Space Asset Maintenance,61702,"Maintenance - Equipment, Furniture And Materials","5,975.00"
Cambridge City Council,Fuel Proof,10396100,28/04/20,55848,1203,Corporate Policy,60804,Other Premises Related Costs,854.67
Cambridge City Council,Gaskin Brothers Ltd,10118700,15/04/20,55488,1868,Play Maintenance,61702,"Maintenance - Equipment, Furniture And Materials","2,830.00"
Cambridge City Council,Gaskin Brothers Ltd,10118700,05/05/20,55768,1866,Open Space Asset Maintenance,61702,"Maintenance - Equipment, Furniture And Materials","6,580.00"
Cambridge City Council,Gaskin Brothers Ltd,10118700,31/03/20,55950,1871,Allotments,60503,Grounds Maintenance,"4,930.00"
Cambridge City Council,Gaskin Brothers Ltd,10118700,22/05/20,56465,1864,Closed Churchyards,60201,Cyclical/Planned Maintenance - Building,"3,805.00"
Cambridge City Council,Gatenbysanderson Limited,10048500,30/04/20,56007,8012,Procurement,60011,Agency Staff,"2,320.00"
Cambridge City Council,Gatenbysanderson Limited,10048500,28/04/20,56010,8012,Procurement,60011,Agency Staff,"2,320.00"
Cambridge City Council,Gatenbysanderson Limited,10048500,20/04/20,56014,8012,Procurement,60011,Agency Staff,"1,856.00"
Cambridge City Council,Gatenbysanderson Limited,10048500,14/04/20,56034,8012,Procurement,60011,Agency Staff,"1,856.00"
Cambridge City Council,Gawn Associates Ltd,10048600,11/05/20,55862,1864,Closed Churchyards,60244,Responsive Repairs - Building,"2,957.41"
Cambridge City Council,Gawn Associates Ltd,10048600,11/05/20,55865,1864,Closed Churchyards,60244,Responsive Repairs - Building,540.00
Cambridge City Council,Green Energy Switch Ltd,10051400,14/05/20,56046,6209,Energy Rating,62400,Consultancy Fees,500.00
Cambridge City Council,Greenwich Leisure Limited (GLL),10051900,23/04/20,55151,1101,Leisure Contract Management Fees,61800,Contract Charges,"40,968.17"
Cambridge City Council,Greenwich Leisure Limited (GLL),10051900,24/05/20,56393,1101,Leisure Contract Management Fees,61800,Contract Charges,"40,968.17"
Cambridge City Council,Greenwich Leisure Limited (GLL),10051900,13/02/20,56424,1100,Sport & Recreation Administration,61800,Contract Charges,"34,128.17"
Cambridge City Council,Henry Riley LLP,10288400,27/02/20,56319,1506,Housing Development Agency,62400,Consultancy Fees,750.00
Cambridge City Council,Henry Riley LLP,10288400,31/03/20,56483,1506,Housing Development Agency,62400,Consultancy Fees,750.00
Cambridge City Council,Hiab Ltd,10396600,11/03/20,55914,1032,Garage- External Work,61703,"Purchase - Equipment, Furniture And Materials","2,760.60"
Cambridge City Council,HM Revenue & Customs,10144206,07/05/20,55696,9900,General Fund Balance Sheet,21003,Construction Industry Tax (Cis),"4,065.58"
Cambridge City Council,HM Revenue & Customs,10144206,21/05/20,56232,9900,General Fund Balance Sheet,10013,CCC General Account Bank Account,"603,933.69"
Cambridge City Council,HM Revenue & Customs (SDLT),10144205,28/04/20,55317,300091,Campkin Road Phase 2,70001,CAPEX - Acquisition of Land & Exisiting Building,"1,570.00"
Cambridge City Council,Housing Reviews Ltd,10056100,07/05/20,55783,1502,Homelessness Costs,63200,Legal Fees,760.00
Cambridge City Council,Huntingdonshire District Council,10056900,31/03/20,55377,100235,[Completed] AV equipment upgrade for Committee Rooms,70017,CAPEX - Purchase of Plant Machinery & Equipment,"125,714.93"
Cambridge City Council,Huntingdonshire District Council,10056900,31/03/20,55377,1351,Members Support,64073,ICT Maintenance and Support,"5,675.00"
Cambridge City Council,IHS Global Limited,10057800,15/04/20,55679,6203,Asset Management and Compliance,64800,Membership And Subscriptions,"7,360.00"
Cambridge City Council,It Takes a City,2128,11/05/20,55960,1524,COVID-19 Rough Sleepers Services,60000,Salaries,"4,000.00"
Cambridge City Council,It Takes a City,2128,11/05/20,56031,1516,CLG Supplementary Homelessness Grants,64600,Grants And Contributions,"3,000.00"
Cambridge City Council,It Takes a City,2128,19/05/20,56153,1509,Grants to Housing Agencies,64600,Grants And Contributions,"10,000.00"
Cambridge City Council,Johnston Sweepers Ltd,10062400,20/04/20,55935,1856,Streets & Open Spaces (Operations) - Indirect Costs,61703,"Purchase - Equipment, Furniture And Materials",928.20
Cambridge City Council,Killgerm Chemicals Ltd,10064000,06/05/20,55789,1400,Control of Disease,61703,"Purchase - Equipment, Furniture And Materials","1,452.27"
Cambridge City Council,Kompan Ltd,10120100,13/01/20,56011,1868,Play Maintenance,61702,"Maintenance - Equipment, Furniture And Materials",599.40
Cambridge City Council,Kompan Ltd,10120100,11/05/20,56188,1868,Play Maintenance,61702,"Maintenance - Equipment, Furniture And Materials","1,900.00"
Cambridge City Council,LABC,10065100,04/05/20,55681,1701,3C Building Control,64300,Conference Expenses,600.00
Cambridge City Council,LABC,10065100,05/05/20,55682,1701,3C Building Control,64300,Conference Expenses,600.00
Cambridge City Council,Landmark Chambers,10065300,10/03/20,56082,1455,Park Street Car Park Development,62400,Consultancy Fees,"1,225.00"
Cambridge City Council,LAVAT Consulting Limited,10065800,30/04/20,55772,1059,Community Facilities (formerly St Lukes Community School),60201,Cyclical/Planned Maintenance - Building,"4,000.00"
Cambridge City Council,LGSS - Cambridgeshire Pension Fund,10022801,21/05/20,56233,9900,General Fund Balance Sheet,10013,CCC General Account Bank Account,"477,445.01"
Cambridge City Council,Lockhart Catering Equipment,10463400,16/04/20,55448,1260,Corn Exchange and Guildhalls,61703,"Purchase - Equipment, Furniture And Materials","1,809.00"
Cambridge City Council,Mace Ltd,10290900,29/04/20,55424,300038,Wall Structure,70010,CAPEX - Other Professional Fees,"16,087.00"
Cambridge City Council,Mace Ltd,10290900,27/04/20,55975,1779,Market Square Project,62400,Consultancy Fees,"6,000.00"
Cambridge City Council,Mace Ltd,10290900,27/05/20,56564,300038,Wall Structure,70010,CAPEX - Other Professional Fees,"5,775.00"
Cambridge City Council,Maintel Europe Ltd,10009800,18/05/20,56547,5024,E_invoicing Suspense Accounts,69100,Expenditure In Holding Account Awaiting Allocation,"1,761.31"
Cambridge City Council,Malling Health Ltd,10513300,28/04/20,56037,1516,CLG Supplementary Homelessness Grants,64600,Grants And Contributions,"13,250.00"
Cambridge City Council,Manchetts Ltd,10068800,22/05/20,56456,1032,Garage- External Work,61703,"Purchase - Equipment, Furniture And Materials",567.50
Cambridge City Council,Marshall Motor Group Ltd,10069500,14/02/20,56558,1032,Garage- External Work,61703,"Purchase - Equipment, Furniture And Materials",628.20
Cambridge City Council,Maskearaid Industrial Supplies,10069900,21/05/20,56451,9900,General Fund Balance Sheet,11600,Consumable Stores,745.00
Cambridge City Council,Maskearaid Industrial Supplies,10069900,21/05/20,56451,9900,General Fund Balance Sheet,11600,Consumable Stores,600.00
Cambridge City Council,Mayfield Seniors Group,10351600,19/05/20,56148,1057,Community Development Voluntary Support,64600,Grants And Contributions,750.00
Cambridge City Council,Mercer Tree Services Ltd,10071200,07/05/20,55788,1876,Arboriculture,64040,Tree Works,"4,061.54"
Cambridge City Council,Mercer Tree Services Ltd,10071200,26/03/20,56582,1890,2 Seas,64040,Tree Works,"6,223.39"
Cambridge City Council,Mick George Ltd,10132300,12/05/20,56207,1002,Bereavement Services - Burials & Grounds,60500,Refuse Collection /Skips,975.00
Cambridge City Council,MLTS Ltd,10072600,11/05/20,55794,6203,Asset Management and Compliance,62400,Consultancy Fees,"1,240.00"
Cambridge City Council,Mr Daniel J Halford,10510300,22/04/20,55641,100234,S106 Public art grant - Faith and Hope,70015,CAPEX - Grants Paid,"1,280.00"
Cambridge City Council,Mr Daniel J Halford,10510300,23/04/20,55655,100234,S106 Public art grant - Faith and Hope,70015,CAPEX - Grants Paid,"1,600.00"
Cambridge City Council,Munro Building Services Limited,10122100,22/05/20,56425,1870,Public Toilets,60201,Cyclical/Planned Maintenance - Building,"3,086.98"
Cambridge City Council,N & C Building Products Ltd,10074300,01/05/20,55626,9900,General Fund Balance Sheet,11600,Consumable Stores,918.16
Cambridge City Council,NABMA,10074400,01/04/20,53589,1935,Markets,64800,Membership And Subscriptions,716.00
Cambridge City Council,Neopost Ltd,10137601,13/05/20,55966,5063,Postal Franking,64100,Postage And Courier Services,"10,000.00"
Cambridge City Council,Newlyn PLC,10075600,25/04/20,55646,9900,General Fund Balance Sheet,11708,Vat Debtor (Input Tax),595.10
Cambridge City Council,Norse Commercial Services Ltd t/a N-Able,10130000,06/04/20,55312,300000,Disabled Adaptions,70007,CAPEX - Building Contractor/Works - Major Adaptations (HRA),"4,567.77"
Cambridge City Council,Northgate Vehicle Hire Ltd,10076800,15/05/20,56158,1052,Children & Young People's Service,60909,Vehicle Hire,594.16
Cambridge City Council,Noveus Ltd,10471600,30/04/20,55544,1455,Park Street Car Park Development,62400,Consultancy Fees,500.00
Cambridge City Council,Npower Ltd,10077102,06/05/20,55867,1071,Clay Farm Community Centre,60303,Electricity,"1,353.70"
Cambridge City Council,Nurture Landscapes Ltd,10132000,30/04/20,55944,1774,"Cambridge Road Retail Park, Haverhill",60503,Grounds Maintenance,851.89
Cambridge City Council,Nurture Landscapes Ltd,10132000,30/04/20,56086,1768,Other Industrial Properties,60503,Grounds Maintenance,856.65
Cambridge City Council,Nurture Landscapes Ltd,10132000,29/05/20,56583,1774,"Cambridge Road Retail Park, Haverhill",60503,Grounds Maintenance,851.89
Cambridge City Council,OASIS - Offsite Storage & Integrated Services UK Ltd,10155800,30/04/20,55802,8023,Business Support - Centralised Overheads,63700,Removal Services,924.79
Cambridge City Council,Oasis Hotel Harlow Ltd,10195300,09/01/20,55724,1502,Homelessness Costs,64401,B&B Accommodation,"1,147.50"
Cambridge City Council,Oasis Hotel Harlow Ltd,10195300,09/01/20,55726,1502,Homelessness Costs,64401,B&B Accommodation,"1,012.50"
Cambridge City Council,Oasis Hotel Harlow Ltd,10195300,21/04/20,55728,1502,Homelessness Costs,64401,B&B Accommodation,"1,012.50"
Cambridge City Council,Oasis Hotel Harlow Ltd,10195300,21/04/20,55738,1502,Homelessness Costs,64401,B&B Accommodation,"1,475.00"
Cambridge City Council,Oasis Hotel Harlow Ltd,10195300,21/04/20,55739,1502,Homelessness Costs,64401,B&B Accommodation,"1,012.50"
Cambridge City Council,Oasis Hotel Harlow Ltd,10195300,21/04/20,55741,1502,Homelessness Costs,64401,B&B Accommodation,"1,012.50"
Cambridge City Council,Oasis Hotel Harlow Ltd,10195300,21/04/20,55744,1502,Homelessness Costs,64401,B&B Accommodation,"1,012.50"
Cambridge City Council,Oasis Hotel Harlow Ltd,10195300,21/04/20,55745,1502,Homelessness Costs,64401,B&B Accommodation,"1,475.00"
Cambridge City Council,Oasis Hotel Harlow Ltd,10195300,21/04/20,55746,1502,Homelessness Costs,64401,B&B Accommodation,"1,012.50"
Cambridge City Council,Oasis Hotel Harlow Ltd,10195300,21/04/20,55747,1502,Homelessness Costs,64401,B&B Accommodation,"1,012.50"
Cambridge City Council,Oblique Arts,10159100,19/05/20,56149,1057,Community Development Voluntary Support,64600,Grants And Contributions,"4,500.00"
Cambridge City Council,Optimum Property Consultancy ltd,10126600,02/04/20,56168,1454,Cambridge Northern Fringe East (CNFE),63200,Legal Fees,"79,358.70"
Cambridge City Council,Orchard Information Systems Ltd,10078400,30/04/20,55392,300030,Orchard Upgrade,70024,CAPEX - Other Capital Expenditure,"8,379.21"
Cambridge City Council,Palace Chemicals Ltd,10079500,26/05/20,56451,9900,General Fund Balance Sheet,11600,Consumable Stores,559.98
Cambridge City Council,Panther Taxis Ltd,10079600,30/04/20,55536,1712,Taxicard Service,63900,Miscellaneous Expenses,607.03
Cambridge City Council,Paul Clark Services Ltd,10422800,04/05/20,56363,1031,Fleet Management - Operational,60011,Agency Staff,"1,008.00"
Cambridge City Council,Penna PLC,10080400,07/05/20,55786,1303,Corporate Business Processing,62005,"Advertising, Publicity And Marketing",536.00
Cambridge City Council,Penna PLC,10080400,07/05/20,56116,1303,Corporate Business Processing,62005,"Advertising, Publicity And Marketing",674.17
Cambridge City Council,Penna PLC,10080400,28/05/20,56537,1303,Corporate Business Processing,62005,"Advertising, Publicity And Marketing",575.48
Cambridge City Council,People Asset Management Ltd,10145100,30/04/20,55435,8001,Human Resources Operations (Staff-General),60010,Salary Cost Outside Payroll,510.00
Cambridge City Council,Peter Dann Ltd,10081100,30/04/20,55467,300018,Roof Structure,70010,CAPEX - Other Professional Fees,"1,280.00"
Cambridge City Council,PHS Group Ltd,10082000,27/04/20,55132,1001,Cambridge Crematorium,60501,Cleaning Services,576.67
Cambridge City Council,PHS Group Ltd,10082000,16/04/20,55647,1001,Cambridge Crematorium,60501,Cleaning Services,"1,332.74"
Cambridge City Council,PHS Group Ltd,10082000,27/05/20,56517,8017,Mandela House,60501,Cleaning Services,"2,025.61"
Cambridge City Council,PHS Group Ltd,10082000,27/05/20,56518,8015,Guildhall,60501,Cleaning Services,"1,859.84"
Cambridge City Council,PHS Group Ltd,10082000,27/05/20,56526,1001,Cambridge Crematorium,60501,Cleaning Services,576.67
Cambridge City Council,Pineapple Events Solutions Ltd,10513100,13/05/20,56404,1862,Open Space Asset Management,60207,Health And Safety Supplies And Services,"1,200.00"
Cambridge City Council,Proactive Personnel Ltd,10367100,29/04/20,55441,1031,Fleet Management - Operational,60011,Agency Staff,"2,664.00"
Cambridge City Council,Proactive Personnel Ltd,10367100,05/05/20,55752,1031,Fleet Management - Operational,60011,Agency Staff,"1,776.00"
Cambridge City Council,Proactive Personnel Ltd,10367100,05/05/20,55752,1031,Fleet Management - Operational,60011,Agency Staff,"1,776.00"
Cambridge City Council,Proactive Personnel Ltd,10367100,13/05/20,56117,1031,Fleet Management - Operational,60011,Agency Staff,"1,056.00"
Cambridge City Council,Proactive Personnel Ltd,10367100,20/05/20,56341,1031,Fleet Management - Operational,60011,Agency Staff,"1,464.00"
Cambridge City Council,Pro-Flat Specialist Services Ltd,10123200,17/02/20,55600,6207,Repairs Day to Day,60233,Housing Repairs - Work Given To External Contractors,"1,242.00"
Cambridge City Council,Pro-Flat Specialist Services Ltd,10123200,20/05/20,56227,6207,Repairs Day to Day,60233,Housing Repairs - Work Given To External Contractors,"3,353.00"
Cambridge City Council,Pro-Flat Specialist Services Ltd,10123200,20/05/20,56365,6207,Repairs Day to Day,60233,Housing Repairs - Work Given To External Contractors,"1,201.00"
Cambridge City Council,PWM Training (UK) Limited,10085400,04/05/20,55484,1207,Programme Office,64300,Conference Expenses,"1,700.00"
Cambridge City Council,Quadient UK Ltd,10137600,05/05/20,55735,6004,Leasehold Property Management,64100,Postage And Courier Services,"1,000.00"
Cambridge City Council,Quadient UK Ltd,10137600,05/05/20,55735,6012,City Homes Expenditure,64100,Postage And Courier Services,"1,500.00"
Cambridge City Council,Quadrant Security Group Ltd,10151000,27/05/20,56591,100193,Cambridge City CCTV infrastructure,70002,CAPEX - Building Contractor/Works,"40,641.39"
Cambridge City Council,R J Warren Ltd,10123500,30/04/20,55433,1868,Play Maintenance,61702,"Maintenance - Equipment, Furniture And Materials","4,025.00"
Cambridge City Council,Reactec Ltd,10137700,30/04/20,55478,6201,Building Services - Indirect,60207,Health And Safety Supplies And Services,"1,814.28"
Cambridge City Council,Reactec Ltd,10137700,30/04/20,55478,6201,Building Services - Indirect,60207,Health And Safety Supplies And Services,901.20
Cambridge City Council,Realife Trust,10086900,20/05/20,56394,1766,Orwell House Offices-Internal,62004,General Office Expenses,"1,500.00"
Cambridge City Council,Regency Guest House,10492200,01/05/20,55562,1524,COVID-19 Rough Sleepers Services,64401,B&B Accommodation,"1,333.37"
Cambridge City Council,Regency Guest House,10492200,01/05/20,55562,1524,COVID-19 Rough Sleepers Services,64401,B&B Accommodation,"3,600.00"
Cambridge City Council,Regency Guest House,10492200,15/05/20,56078,1524,COVID-19 Rough Sleepers Services,64401,B&B Accommodation,"1,133.35"
Cambridge City Council,Regency Guest House,10492200,15/05/20,56078,1524,COVID-19 Rough Sleepers Services,64401,B&B Accommodation,"4,000.00"
Cambridge City Council,Regency Guest House,10492200,08/05/20,56206,1524,COVID-19 Rough Sleepers Services,64401,B&B Accommodation,"3,520.00"
Cambridge City Council,Regency Guest House,10492200,08/05/20,56206,1524,COVID-19 Rough Sleepers Services,64401,B&B Accommodation,"1,333.38"
Cambridge City Council,Regency Guest House,10492200,22/05/20,56353,1524,COVID-19 Rough Sleepers Services,64401,B&B Accommodation,"1,400.05"
Cambridge City Council,Regency Guest House,10492200,22/05/20,56353,1524,COVID-19 Rough Sleepers Services,64401,B&B Accommodation,"4,480.00"
Cambridge City Council,Richard Herrmann Associates Ltd,10233400,27/04/20,55169,6204,Client and Third Party Repairs,60219,Housing Repairs - Insurances,"2,100.00"
Cambridge City Council,RICS - Royal Institution of Chartered Surveyors,10089101,26/05/20,56474,1750,Property Services,64800,Membership And Subscriptions,"1,240.00"
Cambridge City Council,Ridgeons Ltd,10089200,19/05/20,56451,6200,Building Maintenance Response - Direct,61703,"Purchase - Equipment, Furniture And Materials",500.00
Cambridge City Council,Rowan Humberstone,10090401,21/05/20,56304,1057,Community Development Voluntary Support,64600,Grants And Contributions,"1,000.00"
Cambridge City Council,Royal Mail Group Ltd,10128401,21/04/20,55098,8023,Business Support - Centralised Overheads,64100,Postage And Courier Services,"1,416.29"
Cambridge City Council,Royal Mail Group Ltd,10128401,05/05/20,55782,8023,Business Support - Centralised Overheads,64100,Postage And Courier Services,"2,144.85"
Cambridge City Council,Royal Mail Group Ltd,10128401,04/05/20,55850,8023,Business Support - Centralised Overheads,64100,Postage And Courier Services,"1,369.46"
Cambridge City Council,Royal Mail Group Ltd,10128401,19/05/20,56293,8023,Business Support - Centralised Overheads,64100,Postage And Courier Services,"2,129.21"
Cambridge City Council,Royal Mail Group Ltd,10128401,11/05/20,56331,8023,Business Support - Centralised Overheads,64100,Postage And Courier Services,"1,109.85"
Cambridge City Council,S & B Commercials Ltd,10078700,13/05/20,56006,1032,Garage- External Work,61703,"Purchase - Equipment, Furniture And Materials",742.00
Cambridge City Council,S C H Supplies Ltd,10450900,15/05/20,56154,1000,City Cambridge Cemeteries,61703,"Purchase - Equipment, Furniture And Materials","1,544.00"
Cambridge City Council,S P Landscapes & Tree Contractors Ltd,10124100,30/04/20,55588,1876,Arboriculture,64040,Tree Works,"1,140.00"
Cambridge City Council,S P Landscapes & Tree Contractors Ltd,10124100,20/05/20,56368,1883,Flood Risk Management,60501,Cleaning Services,"3,380.00"
Cambridge City Council,S P Landscapes & Tree Contractors Ltd,10124100,26/05/20,56512,1883,Flood Risk Management,60501,Cleaning Services,"1,800.00"
Cambridge City Council,S P Landscapes & Tree Contractors Ltd,10124100,28/05/20,56527,1883,Flood Risk Management,60501,Cleaning Services,600.00
Cambridge City Council,S P Landscapes & Tree Contractors Ltd,10124100,28/05/20,56528,1883,Flood Risk Management,60501,Cleaning Services,600.00
Cambridge City Council,S P Landscapes & Tree Contractors Ltd,10124100,28/05/20,56529,1883,Flood Risk Management,60501,Cleaning Services,"1,200.00"
Cambridge City Council,Secure Haven Ltd,10488900,14/04/20,56299,1001,Cambridge Crematorium,53006,Bereavement  - Fees And Charges (E),"1,004.00"
Cambridge City Council,Secure Haven Ltd,10488900,18/05/20,56311,1001,Cambridge Crematorium,53006,Bereavement  - Fees And Charges (E),"1,122.00"
Cambridge City Council,Sharpe Pritchard LLP,10093300,30/04/20,56032,1073,Community Development - Admin,63200,Legal Fees,862.50
Cambridge City Council,Siemens Financial Services Limited,10093900,27/04/20,55154,8018,Admin Building Allocation,64200,Subsistence,527.15
Cambridge City Council,Siemens Financial Services Limited,10093900,17/05/20,56325,1031,Fleet Management - Operational,60906,Purchase Of Vehicles Related Costs,529.55
Cambridge City Council,SMI Group Ltd,10095200,30/04/20,55626,9900,General Fund Balance Sheet,11600,Consumable Stores,"1,796.40"
Cambridge City Council,SMI Group Ltd,10095200,17/04/20,55853,9900,General Fund Balance Sheet,11600,Consumable Stores,718.56
Cambridge City Council,SMI Group Ltd,10095200,17/04/20,55859,9900,General Fund Balance Sheet,11600,Consumable Stores,598.80
Cambridge City Council,SMI Group Ltd,10095200,23/04/20,55861,9900,General Fund Balance Sheet,11600,Consumable Stores,"3,192.00"
Cambridge City Council,SMI Group Ltd,10095200,24/04/20,55863,9900,General Fund Balance Sheet,11600,Consumable Stores,907.20
Cambridge City Council,SMI Group Ltd,10095200,27/04/20,55866,9900,General Fund Balance Sheet,11600,Consumable Stores,"1,317.60"
Cambridge City Council,SMI Group Ltd,10095200,08/05/20,55912,9900,General Fund Balance Sheet,11600,Consumable Stores,"3,192.00"
Cambridge City Council,SMI Group Ltd,10095200,20/05/20,56280,9900,General Fund Balance Sheet,11600,Consumable Stores,598.80
Cambridge City Council,Smith & Ouzman Ltd,10095300,21/04/20,54935,8023,Business Support - Centralised Overheads,64100,Postage And Courier Services,803.40
Cambridge City Council,Smith & Ouzman Ltd,10095300,30/04/20,55530,8023,Business Support - Centralised Overheads,62002,Stationery,855.00
Cambridge City Council,Smith & Ouzman Ltd,10095300,30/04/20,55531,8023,Business Support - Centralised Overheads,64100,Postage And Courier Services,"1,528.92"
Cambridge City Council,Smith & Ouzman Ltd,10095300,29/05/20,56590,1801,Local Taxation,62001,Printing,"1,169.70"
Cambridge City Council,South Cambridgeshire District Council,10096103,12/05/20,55878,1714,Greater Cambridge Planning Service,64060,Shared Service Contribution,"3,038.00"
Cambridge City Council,South Cambridgeshire District Council,10096103,12/05/20,55879,1714,Greater Cambridge Planning Service,64060,Shared Service Contribution,"4,131.00"
Cambridge City Council,South Cambridgeshire District Council,10096103,12/05/20,55880,1714,Greater Cambridge Planning Service,64060,Shared Service Contribution,"4,660.00"
Cambridge City Council,South Cambridgeshire District Council,10096103,08/01/20,55932,1714,Greater Cambridge Planning Service,64060,Shared Service Contribution,"83,125.00"
Cambridge City Council,South Cambridgeshire District Council,10096103,26/03/20,55937,1714,Greater Cambridge Planning Service,64060,Shared Service Contribution,"83,125.00"
Cambridge City Council,South Cambridgeshire District Council,10096103,12/05/20,55954,1625,Land Charges and Searches,63900,Miscellaneous Expenses,"7,745.00"
Cambridge City Council,South Cambridgeshire District Council,10096103,13/05/20,55957,1702,City Development,63900,Miscellaneous Expenses,"22,486.00"
Cambridge City Council,South Cambridgeshire District Council,10096103,12/05/20,55958,1702,City Development,63900,Miscellaneous Expenses,"50,871.00"
Cambridge City Council,South Cambridgeshire District Council,10096103,01/06/20,56173,1707,Shared Director of Planning and Economic Development,62400,Consultancy Fees,"5,968.00"
Cambridge City Council,Speckled Frog Ltd,10192500,06/05/20,55749,1878,Local Nature Reserves,61703,"Purchase - Equipment, Furniture And Materials","1,640.00"
Cambridge City Council,Stepney Brothers Limited,10098600,25/03/20,56186,1031,Fleet Management - Operational,61703,"Purchase - Equipment, Furniture And Materials",626.69
Cambridge City Council,Student Community Action,10099200,26/05/20,56447,1057,Community Development Voluntary Support,64600,Grants And Contributions,"6,000.00"
Cambridge City Council,Studio 24 Ltd,10249400,01/05/20,55930,1003,Bereavement Services Central Costs,64073,ICT Maintenance and Support,775.00
Cambridge City Council,Swatch Group (UK) Ltd T/A Swiss Timing,10100500,09/04/20,55363,1101,Leisure Contract Management Fees,60201,Cyclical/Planned Maintenance - Building,"2,036.00"
Cambridge City Council,Tailor Made Metal Fabrications Ltd,10100800,01/04/20,56054,1866,Open Space Asset Maintenance,61702,"Maintenance - Equipment, Furniture And Materials","1,260.43"
Cambridge City Council,Tempo Time Credits Limited,10180600,19/05/20,56151,1057,Community Development Voluntary Support,64600,Grants And Contributions,"10,000.00"
Cambridge City Council,Terberg Matec UK Ltd,10101500,14/05/20,56186,1032,Garage- External Work,61703,"Purchase - Equipment, Furniture And Materials",820.78
Cambridge City Council,The BSS Group PLC - Pts Plumbing Trade Supplies,,31/03/20,56180,9900,General Fund Balance Sheet,11600,Consumable Stores,581.60
Cambridge City Council,The BSS Group PLC - Pts Plumbing Trade Supplies,,05/05/20,56180,9900,General Fund Balance Sheet,11600,Consumable Stores,"1,195.15"
Cambridge City Council,The C3 Church,10018300,11/03/20,55939,1517,Syrian Resettlement,64600,Grants And Contributions,"3,185.00"
Cambridge City Council,The CAM Group,10511700,11/05/20,55854,1862,Open Space Asset Management,62005,"Advertising, Publicity And Marketing","1,920.00"
Cambridge City Council,The Cambridge Russian Speaking Society,10515400,19/05/20,56184,1057,Community Development Voluntary Support,64600,Grants And Contributions,500.00
Cambridge City Council,The Oyster Partnership Ltd,10243300,29/04/20,55447,1524,COVID-19 Rough Sleepers Services,60011,Agency Staff,"1,311.00"
Cambridge City Council,The Oyster Partnership Ltd,10243300,05/05/20,55767,1524,COVID-19 Rough Sleepers Services,60011,Agency Staff,"1,249.25"
Cambridge City Council,The Oyster Partnership Ltd,10243300,29/04/20,55799,1524,COVID-19 Rough Sleepers Services,60011,Agency Staff,630.00
Cambridge City Council,The Oyster Partnership Ltd,10243300,05/05/20,55803,1524,COVID-19 Rough Sleepers Services,60011,Agency Staff,540.00
Cambridge City Council,The Oyster Partnership Ltd,10243300,13/05/20,56052,1524,COVID-19 Rough Sleepers Services,60011,Agency Staff,810.00
Cambridge City Council,The Oyster Partnership Ltd,10243300,13/05/20,56055,1524,COVID-19 Rough Sleepers Services,60011,Agency Staff,950.00
Cambridge City Council,The Oyster Partnership Ltd,10243300,20/05/20,56427,1524,COVID-19 Rough Sleepers Services,60011,Agency Staff,810.00
Cambridge City Council,The Oyster Partnership Ltd,10243300,20/05/20,56428,1524,COVID-19 Rough Sleepers Services,60011,Agency Staff,912.00
Cambridge City Council,The Oyster Partnership Ltd,10243300,27/05/20,56601,1524,COVID-19 Rough Sleepers Services,60011,Agency Staff,810.00
Cambridge City Council,The Station Hotel,10105400,18/01/20,56306,1502,Homelessness Costs,64401,B&B Accommodation,"1,140.00"
Cambridge City Council,The Urban Forest Consultancy Ltd,10105700,18/05/20,56135,1876,Arboriculture,62400,Consultancy Fees,"4,000.00"
Cambridge City Council,Thinkproject UK Ltd,10031200,21/05/20,56268,5062,3C ICT,64073,ICT Maintenance and Support,500.00
Cambridge City Council,Thistle Insurance Services Ltd,10105900,04/05/20,55521,9901,Housing Revenue Account Balance Sheet,20119,Other Creditors - Other Entities And Individuals,"1,604.87"
Cambridge City Council,Thurlow Nunn Standen Ltd,10106100,05/05/20,55763,1031,Fleet Management - Operational,61703,"Purchase - Equipment, Furniture And Materials",695.13
Cambridge City Council,Travelodge Hotels Ltd,10326700,05/05/20,55637,1524,COVID-19 Rough Sleepers Services,64401,B&B Accommodation,"5,400.00"
Cambridge City Council,Travelodge Hotels Ltd,10326700,05/05/20,55652,1524,COVID-19 Rough Sleepers Services,64401,B&B Accommodation,"36,650.00"
Cambridge City Council,Travelodge Hotels Ltd,10326700,12/05/20,55872,1524,COVID-19 Rough Sleepers Services,64401,B&B Accommodation,"36,650.00"
Cambridge City Council,Travelodge Hotels Ltd,10326700,18/05/20,56150,1524,COVID-19 Rough Sleepers Services,64401,B&B Accommodation,"36,650.00"
Cambridge City Council,Tructyre Fleet Management Ltd,10364500,30/04/20,55630,1032,Garage- External Work,61703,"Purchase - Equipment, Furniture And Materials","3,010.37"
Cambridge City Council,Tructyre Fleet Management Ltd,10364500,29/02/20,55813,1032,Garage- External Work,61703,"Purchase - Equipment, Furniture And Materials",588.41
Cambridge City Council,TSG Building Services PLC,10125300,06/05/20,55705,5024,E_invoicing Suspense Accounts,69100,Expenditure In Holding Account Awaiting Allocation,"55,990.73"
Cambridge City Council,TSG Building Services PLC,10125300,07/05/20,55743,5024,E_invoicing Suspense Accounts,69100,Expenditure In Holding Account Awaiting Allocation,"70,621.25"
Cambridge City Council,Turner Contracting Ltd,10125400,18/05/20,56316,6207,Repairs Day to Day,60233,Housing Repairs - Work Given To External Contractors,811.00
Cambridge City Council,UK Fuels Limited,10192900,26/04/20,55420,5001,City Services Holding Account,61900,Catering And Vending Supplies,"1,910.72"
Cambridge City Council,UK Fuels Limited,10192900,03/05/20,55732,5001,City Services Holding Account,61900,Catering And Vending Supplies,"2,376.55"
Cambridge City Council,UK Fuels Limited,10192900,10/05/20,56012,5001,City Services Holding Account,69100,Expenditure In Holding Account Awaiting Allocation,"1,491.57"
Cambridge City Council,UK Fuels Limited,10192900,17/05/20,56322,5001,City Services Holding Account,69100,Expenditure In Holding Account Awaiting Allocation,"2,211.16"
Cambridge City Council,Unison,10173200,21/05/20,56230,9900,General Fund Balance Sheet,10013,CCC General Account Bank Account,"2,603.20"
Cambridge City Council,Urban Planters Chelmsford,10230500,18/04/20,55482,1300,Customer Access Strategy - Customer Service Centre,61702,"Maintenance - Equipment, Furniture And Materials",630.00
Cambridge City Council,Volvo Group UK Ltd,10111400,28/04/20,55334,1031,Fleet Management - Operational,61703,"Purchase - Equipment, Furniture And Materials","2,411.16"
Cambridge City Council,Volvo Group UK Ltd,10111400,22/05/20,56456,1031,Fleet Management - Operational,61703,"Purchase - Equipment, Furniture And Materials",960.39
Cambridge City Council,Volvo Group UK Ltd,10111400,26/05/20,56456,1032,Garage- External Work,61703,"Purchase - Equipment, Furniture And Materials",503.68
Cambridge City Council,Volvo Group UK Ltd,10111400,23/05/20,56456,1032,Garage- External Work,61703,"Purchase - Equipment, Furniture And Materials",618.00
Cambridge City Council,Wilkin Chapman LLP,10113500,20/05/20,56239,9900,General Fund Balance Sheet,11708,Vat Debtor (Input Tax),"1,761.14"
Cambridge City Council,Willingham Medical Practice,10127300,06/05/20,56164,1001,Cambridge Crematorium,63900,Miscellaneous Expenses,"3,330.00"
Cambridge City Council,Willingham Medical Practice,10127300,06/05/20,56165,1001,Cambridge Crematorium,63900,Miscellaneous Expenses,"3,765.00"
Cambridge City Council,Willingham Medical Practice,10127300,06/05/20,56166,1001,Cambridge Crematorium,63900,Miscellaneous Expenses,"2,250.00"
Cambridge City Council,Wood Green Animal Shelters,10114100,30/04/20,55426,1858,Public Realm Enforcement,61800,Contract Charges,"1,416.67"
Cambridge City Council,Zurich Insurance PLC,10115100,20/04/20,55022,8009,Insurance Fund,67302,Insurance Claim,"2,037.00"
Cambridge City Council,AA Global Language Services Ltd,10001100,30/04/20,56608,1203,Corporate Policy,62406,Vets,747.58
Cambridge City Council,AA Global Language Services Ltd,10001100,31/05/20,57596,1203,Corporate Policy,62406,Vets,651.00
Cambridge City Council,AA Global Language Services Ltd,10001100,31/05/20,57605,1203,Corporate Policy,62406,Vets,770.28
Cambridge City Council,Abbey Bowls Club,10001200,28/05/20,56838,1102,Leisure Contract Client Costs,64600,Grants And Contributions,"4,000.00"
Cambridge City Council,Accordia Residents Association,10358900,27/05/20,56493,1057,Community Development Voluntary Support,64600,Grants And Contributions,616.00
Cambridge City Council,ADC (East Anglia) Ltd,10002500,03/06/20,56891,1883,Flood Risk Management,60501,Cleaning Services,"1,000.00"
Cambridge City Council,ADT Fire & Security PLC,10002800,01/06/20,57080,1754,Barnwell House Offices,60202,Cyclical/Planned Maintenance - Fixed Plant,888.92
Cambridge City Council,AEBI Schmidt UK Limited,10003100,04/06/20,57218,1031,Fleet Management - Operational,61703,"Purchase - Equipment, Furniture And Materials",774.00
Cambridge City Council,Aecom Ltd,10003200,23/06/20,58063,300035,Ditchburn Place,70010,CAPEX - Other Professional Fees,"1,200.00"
Cambridge City Council,Air Liquide UK Limited,10003400,11/05/20,57294,1404,Scientific Team,61703,"Purchase - Equipment, Furniture And Materials","1,319.98"
Cambridge City Council,Air Products PLC,10003500,01/02/20,57992,1031,Fleet Management - Operational,61702,"Maintenance - Equipment, Furniture And Materials",760.88
Cambridge City Council,Albany Beck Consultancy Services Ltd,10476400,29/05/20,57646,1425,Tascomi - Env Health Software,62400,Consultancy Fees,"6,750.00"
Cambridge City Council,Alboro Developments Ltd,10133300,31/05/20,57248,1031,Fleet Management - Operational,60303,Electricity,919.16
Cambridge City Council,Alexandra & Beehive Bowls Club,10004100,28/05/20,56940,1102,Leisure Contract Client Costs,64600,Grants And Contributions,"4,000.00"
Cambridge City Council,Ameycespa (East) Ltd,10005100,29/05/20,56984,1003,Bereavement Services Central Costs,60500,Refuse Collection /Skips,977.28
Cambridge City Council,Amulet (Churchill Security Solutions) Ltd,10220900,31/05/20,57095,5024,E_invoicing Suspense Accounts,69100,Expenditure In Holding Account Awaiting Allocation,"12,208.86"
Cambridge City Council,Amulet (Churchill Security Solutions) Ltd,10220900,31/05/20,57096,5024,E_invoicing Suspense Accounts,69100,Expenditure In Holding Account Awaiting Allocation,630.00
Cambridge City Council,Amulet (Churchill Security Solutions) Ltd,10220900,31/05/20,57097,5024,E_invoicing Suspense Accounts,69100,Expenditure In Holding Account Awaiting Allocation,"10,025.66"
Cambridge City Council,Anglian Water Business (National) Ltd T/A Wave,10006400,24/05/20,57158,1870,Public Toilets,60302,Water And Sewerage,564.90
Cambridge City Council,Anglian Water Business (National) Ltd T/A Wave,10006400,10/05/20,57159,1870,Public Toilets,60302,Water And Sewerage,582.19
Cambridge City Council,AON UK Limited,10006800,26/05/20,56735,8009,Insurance Fund,67302,Insurance Claim,665.09
Cambridge City Council,AON UK Limited,10006800,01/05/20,56760,8009,Insurance Fund,67302,Insurance Claim,"1,125.73"
Cambridge City Council,APT-Skidata Ltd,10115700,15/06/20,57502,1653,Grafton Centre West Car Park,61702,"Maintenance - Equipment, Furniture And Materials",688.65
Cambridge City Council,APT-Skidata Ltd,10115700,16/06/20,57664,1661,Parking Administration,64073,ICT Maintenance and Support,"1,030.00"
Cambridge City Council,APT-Skidata Ltd,10115700,16/06/20,57665,1661,Parking Administration,64073,ICT Maintenance and Support,"1,030.00"
Cambridge City Council,APT-Skidata Ltd,10115700,16/06/20,57706,1661,Parking Administration,64073,ICT Maintenance and Support,"1,427.58"
Cambridge City Council,APT-Skidata Ltd,10115700,16/06/20,57707,1661,Parking Administration,64073,ICT Maintenance and Support,"1,030.00"
Cambridge City Council,APT-Skidata Ltd,10115700,16/06/20,57708,1661,Parking Administration,64073,ICT Maintenance and Support,"1,030.00"
Cambridge City Council,APT-Skidata Ltd,10115700,16/06/20,57709,1661,Parking Administration,64073,ICT Maintenance and Support,"1,030.00"
Cambridge City Council,APT-Skidata Ltd,10115700,18/06/20,57911,1651,Grand Arcade Car Park,61702,"Maintenance - Equipment, Furniture And Materials",872.73
Cambridge City Council,Ashdown Supplies,10008300,20/06/20,57956,1001,Cambridge Crematorium,63900,Miscellaneous Expenses,"1,100.00"
Cambridge City Council,Ashdown Supplies,10008300,23/06/20,57957,1001,Cambridge Crematorium,63900,Miscellaneous Expenses,550.00
Cambridge City Council,Autumn House Bed & Breakfast Ltd,10507100,27/05/20,57002,1502,Homelessness Costs,64401,B&B Accommodation,840.00
Cambridge City Council,Autumn House Bed & Breakfast Ltd,10507100,16/06/20,57513,1502,Homelessness Costs,64401,B&B Accommodation,"1,260.00"
Cambridge City Council,Barker Storey Matthews,10011401,24/06/20,56730,1776,"4 Cyrus Way, Cygnet Park, Peterborough",54303,Service Charges Income (S),"1,398.04"
Cambridge City Council,Ben Wills,10116100,11/06/20,57550,6012,City Homes Expenditure,61702,"Maintenance - Equipment, Furniture And Materials",515.95
Cambridge City Council,Bevan Brittan LLP,10012600,27/05/20,56928,300042,Aquisitions & Disposals,70010,CAPEX - Other Professional Fees,"1,435.20"
Cambridge City Council,Bevan Brittan LLP,10012600,29/05/20,57134,1506,Housing Development Agency,63200,Legal Fees,900.00
Cambridge City Council,Bidwells LLP  No 2 Account,10161000,05/03/20,56217,100238,CCTV equipment upgrade,70000,CAPEX - Capital Scheme Budget,900.00
Cambridge City Council,Bidwells LLP  No 2 Account,10161000,31/05/20,57209,1867,Grazing Management,53002,Fees & Charges Income (Z),788.50
Cambridge City Council,Bidwells LLP  No 2 Account,10161000,23/06/20,58066,1750,Property Services,62400,Consultancy Fees,"10,000.00"
Cambridge City Council,Biochemica Water Ltd,10218600,31/05/20,57128,6205,Citywide Schemes,60235,Housing Repairs - Other Premises Related Costs,"1,075.35"
Cambridge City Council,Biochemica Water Ltd,10218600,12/06/20,57556,1052,Children & Young People's Service,60201,Cyclical/Planned Maintenance - Building,595.00
Cambridge City Council,Biochemica Water Ltd,10218600,12/06/20,58133,1100,Sport & Recreation Administration,60201,Cyclical/Planned Maintenance - Building,595.00
Cambridge City Council,Biochemica Water Ltd,10218600,12/06/20,58133,1100,Sport & Recreation Administration,60201,Cyclical/Planned Maintenance - Building,595.00
Cambridge City Council,Biochemica Water Ltd,10218600,12/06/20,58133,1100,Sport & Recreation Administration,60201,Cyclical/Planned Maintenance - Building,595.00
Cambridge City Council,Biochemica Water Ltd,10218600,12/06/20,58133,1100,Sport & Recreation Administration,60201,Cyclical/Planned Maintenance - Building,595.00
Cambridge City Council,Biochemica Water Ltd,10218600,12/06/20,58133,1100,Sport & Recreation Administration,60201,Cyclical/Planned Maintenance - Building,595.00
Cambridge City Council,Biochemica Water Ltd,10218600,12/06/20,58133,1100,Sport & Recreation Administration,60201,Cyclical/Planned Maintenance - Building,595.00
Cambridge City Council,Biochemica Water Ltd,10218600,12/06/20,58135,1100,Sport & Recreation Administration,60201,Cyclical/Planned Maintenance - Building,595.00
Cambridge City Council,Blyth Equipment Ltd,10511600,23/04/20,56956,1031,Fleet Management - Operational,64800,Membership And Subscriptions,"1,484.00"
Cambridge City Council,Breadboard Labs Ltd,10343400,05/06/20,57650,1890,2 Seas,64072,Ict Licences,"4,491.60"
Cambridge City Council,Breadboard Labs Ltd,10343400,05/06/20,57650,1890,2 Seas,64072,Ict Licences,"1,347.75"
Cambridge City Council,British Gas UK Business,10015200,05/06/20,58006,6102,Temporary Accommodation,60305,Gas,833.61
Cambridge City Council,Broxap Ltd,10015800,17/06/20,57648,1100,Sport & Recreation Administration,60201,Cyclical/Planned Maintenance - Building,675.00
Cambridge City Council,Bsg Property Services Ltd,10015900,26/03/20,58386,200001,Mandatory Disabled Facilities Grants (Tenants),70015,CAPEX - Grants Paid,"1,970.00"
Cambridge City Council,Businessclean (Cambridge) Ltd,10016800,31/05/20,56672,6102,Temporary Accommodation,60501,Cleaning Services,"1,992.00"
Cambridge City Council,Businessclean (Cambridge) Ltd,10016800,31/05/20,56672,1502,Homelessness Costs,60501,Cleaning Services,605.00
Cambridge City Council,Businessclean (Cambridge) Ltd,10016800,27/05/20,56999,6208,Voids,60220,Housing Repairs - Work To Void Properties,"1,896.00"
Cambridge City Council,Businessclean (Cambridge) Ltd,10016800,10/06/20,57699,6208,Voids,60220,Housing Repairs - Work To Void Properties,772.00
Cambridge City Council,Businessclean (Cambridge) Ltd,10016800,18/06/20,57713,1524,COVID-19 Rough Sleepers Services,61703,"Purchase - Equipment, Furniture And Materials","1,040.00"
Cambridge City Council,Businessclean (Cambridge) Ltd,10016800,30/06/20,58380,6102,Temporary Accommodation,60501,Cleaning Services,"3,822.00"
Cambridge City Council,C Silverman Office Furniture Centre,10244200,05/06/20,57117,100251,[Completed] Customer Service Centre improvements,70017,CAPEX - Purchase of Plant Machinery & Equipment,790.00
Cambridge City Council,Calfordseaden LLP,10339400,24/04/20,56963,300064,New Build - Akeman Street,70010,CAPEX - Other Professional Fees,"1,171.87"
Cambridge City Council,Calfordseaden LLP,10339400,24/04/20,56991,300064,New Build - Akeman Street,70010,CAPEX - Other Professional Fees,"1,932.38"
Cambridge City Council,Calfordseaden LLP,10339400,24/04/20,57219,300069,New Build - Ventress Close,70010,CAPEX - Other Professional Fees,"1,083.33"
Cambridge City Council,Calfordseaden LLP,10339400,24/04/20,57220,300069,New Build - Ventress Close,70010,CAPEX - Other Professional Fees,"1,710.71"
Cambridge City Council,Cambridge Bid Limited,10017900,17/06/20,57595,5025,Business Improvement District (BID) Collection Fund,58702,BID Levy - Payment to BID Company,"42,513.90"
Cambridge City Council,Cambridge Curiosity and Imagination,10535400,22/06/20,57999,1251,Culture and Community,62900,Events,623.00
Cambridge City Council,Cambridge Door Services,10116900,29/05/20,57503,8009,Insurance Fund,67302,Insurance Claim,"1,136.00"
Cambridge City Council,Cambridge Garage Doors,10117100,25/06/20,58174,300088,Estate Investment,70002,CAPEX - Building Contractor/Works,"1,900.00"
Cambridge City Council,Cambridge Housing Society Ltd,10019600,03/06/20,56825,1516,CLG Supplementary Homelessness Grants,64600,Grants And Contributions,"22,965.00"
Cambridge City Council,Cambridge Investment Partnership LLP,10145700,01/06/20,56937,300069,New Build - Ventress Close,70002,CAPEX - Building Contractor/Works,"175,722.12"
Cambridge City Council,Cambridge Investment Partnership LLP,10145700,01/06/20,56938,300064,New Build - Akeman Street,70002,CAPEX - Building Contractor/Works,"210,610.12"
Cambridge City Council,Cambridge Tool Hire,10021600,15/05/20,56820,9900,General Fund Balance Sheet,11600,Consumable Stores,560.00
Cambridge City Council,Cambridgeshire County Council,10022802,27/05/20,56695,1510,Housing Strategy,69150,Other Services,"13,020.00"
Cambridge City Council,Cambridgeshire County Council,10022802,29/05/20,56821,1502,Homelessness Costs,64401,B&B Accommodation,"16,000.00"
Cambridge City Council,Cambridgeshire County Council,10022802,11/06/20,57292,1888,Open Space Mgt Salaries,60011,Agency Staff,"2,816.58"
Cambridge City Council,Cambs & Peterborough NHS Foundation Trust,10023101,29/05/20,57049,1522,Flexible Homelessness Support Grant,64600,Grants And Contributions,"9,558.00"
Cambridge City Council,Carter Jonas LLP,10141403,29/05/20,57237,1506,Housing Development Agency,62400,Consultancy Fees,"1,794.00"
Cambridge City Council,Carter Jonas LLP,10141403,01/07/20,57711,6125,"Scholars Court, Homerton Gardens",60401,Service Charges,724.14
Cambridge City Council,Carter Jonas LLP,10141403,01/07/20,57712,6125,"Scholars Court, Homerton Gardens",60401,Service Charges,836.91
Cambridge City Council,Carter Jonas LLP,10141403,01/07/20,57731,6125,"Scholars Court, Homerton Gardens",60401,Service Charges,"10,218.74"
Cambridge City Council,CCPM Ltd,10283000,13/05/20,56561,1206,Business Transformation Departmental Management,60011,Agency Staff,"6,600.00"
Cambridge City Council,CFH Docmail Ltd,10025900,31/05/20,56900,1077,Community Resilience,62005,"Advertising, Publicity And Marketing","3,491.80"
Cambridge City Council,Chassis Cab Ltd,10027000,10/06/20,57326,1031,Fleet Management - Operational,61703,"Purchase - Equipment, Furniture And Materials",620.00
Cambridge City Council,Chassis Cab Ltd,10027000,11/06/20,57326,1031,Fleet Management - Operational,61703,"Purchase - Equipment, Furniture And Materials","1,560.00"
Cambridge City Council,Chesterton Bowls Club Ltd,10027600,28/05/20,56843,1102,Leisure Contract Client Costs,64600,Grants And Contributions,"4,000.00"
Cambridge City Council,Child Poverty Action Group Limited,10028200,05/06/20,57504,6012,City Homes Expenditure,60115,Staff Development And Training,502.00
Cambridge City Council,Childcare Vouchers Limited,10028300,10/06/20,57236,5000,Salary Sacrifice Schemes Holding Account,60106,Childcare Admin Vouchers,"6,310.10"
Cambridge City Council,CIP (Cromwell Road) LLP,10366900,01/06/20,57019,300085,New Build Cromwell Road Redevelopment (HRA),70002,CAPEX - Building Contractor/Works,"423,387.00"
Cambridge City Council,CIP (Mill Road Development) LLP,10474400,01/06/20,57186,300077,New Build - Mill Road,70002,CAPEX - Building Contractor/Works,"540,965.00"
Cambridge City Council,City of Cambridge Bowls Club,10030000,28/05/20,56841,1102,Leisure Contract Client Costs,64600,Grants And Contributions,"4,000.00"
Cambridge City Council,City View Digital Media Ltd,10030200,31/05/20,56732,1862,Open Space Asset Management,62005,"Advertising, Publicity And Marketing","3,500.00"
Cambridge City Council,Coleridge Bowls Club,10518400,28/05/20,56856,1102,Leisure Contract Client Costs,64600,Grants And Contributions,"4,000.00"
Cambridge City Council,Comensura Ltd,10031900,03/06/20,57108,5024,E_invoicing Suspense Accounts,69100,Expenditure In Holding Account Awaiting Allocation,"33,489.19"
Cambridge City Council,Comensura Ltd,10031900,10/06/20,57227,5024,E_invoicing Suspense Accounts,69100,Expenditure In Holding Account Awaiting Allocation,"40,551.20"
Cambridge City Council,Comensura Ltd,10031900,17/06/20,57610,5024,E_invoicing Suspense Accounts,69100,Expenditure In Holding Account Awaiting Allocation,"29,978.46"
Cambridge City Council,Comensura Ltd,10031900,24/06/20,58004,5024,E_invoicing Suspense Accounts,69100,Expenditure In Holding Account Awaiting Allocation,"34,638.11"
Cambridge City Council,Compserve Ltd,10032400,01/06/20,56668,8024,130 Cowley Road,60400,Rents Payable,"12,500.00"
Cambridge City Council,Cooleraid Ltd,10033001,03/06/20,56958,8018,Admin Building Allocation,64200,Subsistence,581.00
Cambridge City Council,Cooleraid Ltd,10033001,11/06/20,57359,8018,Admin Building Allocation,64200,Subsistence,"2,242.00"
Cambridge City Council,Cooleraid Ltd,10033001,11/06/20,57360,8018,Admin Building Allocation,64200,Subsistence,581.00
Cambridge City Council,Cooleraid Ltd,10033001,12/06/20,57364,8018,Admin Building Allocation,64200,Subsistence,581.00
Cambridge City Council,Countryside Properties (UK) Ltd,10033800,10/06/20,57444,100020,Development Of land at Clay Farm,70010,CAPEX - Other Professional Fees,"1,112.05"
Cambridge City Council,CWRP Relocation Ltd,10504300,18/05/20,58260,5104,Housing Infrastructure Fund,64600,Grants And Contributions,"409,837.50"
Cambridge City Council,Cyclescheme Ltd,10376200,16/06/20,57471,1506,Housing Development Agency,61703,"Purchase - Equipment, Furniture And Materials",583.33
Cambridge City Council,D Carman BSSR Ltd,10118100,01/06/20,56696,8017,Mandela House,60201,Cyclical/Planned Maintenance - Building,"3,157.00"
Cambridge City Council,D Carman BSSR Ltd,10118100,03/06/20,56866,6204,Client and Third Party Repairs,60219,Housing Repairs - Insurances,"3,059.00"
Cambridge City Council,D Carman BSSR Ltd,10118100,16/06/20,57536,8015,Guildhall,60201,Cyclical/Planned Maintenance - Building,"4,950.00"
Cambridge City Council,DAC Beachcroft Claims Ltd,10187201,31/03/20,56658,9900,General Fund Balance Sheet,11708,Vat Debtor (Input Tax),897.80
Cambridge City Council,DAC Beachcroft Claims Ltd,10187201,30/04/20,56660,9900,General Fund Balance Sheet,11708,Vat Debtor (Input Tax),"15,363.20"
Cambridge City Council,DAC Beachcroft Claims Ltd,10187201,30/04/20,56661,9900,General Fund Balance Sheet,11708,Vat Debtor (Input Tax),"1,289.93"
Cambridge City Council,DAC Beachcroft Claims Ltd,10187201,27/05/20,57868,9900,General Fund Balance Sheet,11708,Vat Debtor (Input Tax),"4,500.00"
Cambridge City Council,"David G. Hall, Costs Lawyer",10360900,23/06/20,58348,1502,Homelessness Costs,63200,Legal Fees,510.00
Cambridge City Council,David Powell t/a D J Kitchens,10137900,31/05/20,56662,6208,Voids,60233,Housing Repairs - Work Given To External Contractors,"2,120.00"
Cambridge City Council,David Powell t/a D J Kitchens,10137900,07/06/20,57094,6208,Voids,60233,Housing Repairs - Work Given To External Contractors,"2,175.00"
Cambridge City Council,Dawling Ltd T/A J & J Drake,10118000,12/06/20,57383,8009,Insurance Fund,67302,Insurance Claim,978.73
Cambridge City Council,Dennis Eagle Ltd,10036900,12/06/20,57540,1032,Garage- External Work,61703,"Purchase - Equipment, Furniture And Materials","1,326.70"
Cambridge City Council,Dennis Eagle Ltd,10036900,15/06/20,57540,1032,Garage- External Work,61703,"Purchase - Equipment, Furniture And Materials","1,460.14"
Cambridge City Council,Dennis Eagle Ltd,10036900,15/06/20,57540,1032,Garage- External Work,61703,"Purchase - Equipment, Furniture And Materials",820.95
Cambridge City Council,Disability Cambridgeshire Ltd,10527600,11/06/20,57306,1057,Community Development Voluntary Support,64600,Grants And Contributions,"2,000.00"
Cambridge City Council,Diversiti UK Learning and Development CIC,10302100,25/06/20,58193,8003,Human Resources - Organisational Development,64300,Conference Expenses,660.00
Cambridge City Council,DJ Evans (Bury) Ltd,10038100,02/04/20,56820,9900,General Fund Balance Sheet,11600,Consumable Stores,"1,390.00"
Cambridge City Council,DSB Engineering Supplies,10039000,18/06/20,58377,1031,Fleet Management - Operational,61703,"Purchase - Equipment, Furniture And Materials",580.00
Cambridge City Council,DTZ,10039100,01/07/20,56808,1651,Grand Arcade Car Park,60401,Service Charges,"33,703.29"
Cambridge City Council,East of England Local Government Association,10040000,01/08/19,57591,1203,Corporate Policy,62400,Consultancy Fees,"2,187.50"
Cambridge City Council,Eastfield Guest House Ltd,10262600,01/06/20,56670,1524,COVID-19 Rough Sleepers Services,64401,B&B Accommodation,"3,150.00"
Cambridge City Council,Eastfield Guest House Ltd,10262600,08/06/20,57129,1524,COVID-19 Rough Sleepers Services,64401,B&B Accommodation,"3,150.00"
Cambridge City Council,Eastfield Guest House Ltd,10262600,15/06/20,57435,1524,COVID-19 Rough Sleepers Services,64401,B&B Accommodation,"3,150.00"
Cambridge City Council,Eastfield Guest House Ltd,10262600,22/06/20,57793,1524,COVID-19 Rough Sleepers Services,64401,B&B Accommodation,"3,150.00"
Cambridge City Council,Eastfield Guest House Ltd,10262600,29/06/20,58264,1524,COVID-19 Rough Sleepers Services,64401,B&B Accommodation,"3,150.00"
Cambridge City Council,Eddie Barcan t/a Splendid Events,10215402,19/06/20,57897,780001,,62400,Consultancy Fees,"2,500.00"
Cambridge City Council,Edmundson Electrical Ltd,10040600,26/05/20,56820,9900,General Fund Balance Sheet,11600,Consumable Stores,807.81
Cambridge City Council,Edmundson Electrical Ltd,10040600,26/05/20,56820,9900,General Fund Balance Sheet,11600,Consumable Stores,723.10
Cambridge City Council,Edmundson Electrical Ltd,10040600,17/06/20,58121,9900,General Fund Balance Sheet,11600,Consumable Stores,544.85
Cambridge City Council,Edwards Hart Ltd,10535000,10/06/20,57417,1701,3C Building Control,64300,Conference Expenses,750.00
Cambridge City Council,Egbert H Taylor & Co Ltd,10040800,02/06/20,57204,1856,Streets & Open Spaces (Operations) - Indirect Costs,61703,"Purchase - Equipment, Furniture And Materials","1,092.30"
Cambridge City Council,Elior UK PLC,10040900,31/05/20,56688,6123,Ditchburn Place,61902,Catering Services,"14,309.07"
Cambridge City Council,Encore PMG Ltd,,27/05/20,56834,6135,"Virido, Clay Farm New Build",60401,Service Charges,"21,932.61"
Cambridge City Council,Encore PMG Ltd,,27/05/20,56835,6135,"Virido, Clay Farm New Build",60401,Service Charges,"9,214.49"
Cambridge City Council,Encore PMG Ltd,,27/05/20,56861,6135,"Virido, Clay Farm New Build",60401,Service Charges,"18,004.53"
Cambridge City Council,Encore Pmg Ltd,10041901,27/05/20,56862,6135,"Virido, Clay Farm New Build",60401,Service Charges,"15,585.79"
Cambridge City Council,Encore PMG Ltd,,27/05/20,56888,6135,"Virido, Clay Farm New Build",60401,Service Charges,"15,585.79"
Cambridge City Council,Ermine Construction Services Ltd,10462100,28/05/20,57232,200001,Mandatory Disabled Facilities Grants (Tenants),70015,CAPEX - Grants Paid,"5,217.24"
Cambridge City Council,Ernest Doe & Sons Ltd,10043400,11/06/20,57361,1856,Streets & Open Spaces (Operations) - Indirect Costs,61703,"Purchase - Equipment, Furniture And Materials","1,800.00"
Cambridge City Council,ESPO,10043700,29/05/20,56982,6123,Ditchburn Place,61703,"Purchase - Equipment, Furniture And Materials",515.56
Cambridge City Council,ESPO,10043700,24/06/20,58166,5024,E_invoicing Suspense Accounts,69100,Expenditure In Holding Account Awaiting Allocation,"15,356.39"
Cambridge City Council,ESPO,10043700,26/06/20,58368,1052,Children & Young People's Service,62900,Events,940.95
Cambridge City Council,Euro Municipal Ltd,10342900,26/06/20,58172,1032,Garage- External Work,61703,"Purchase - Equipment, Furniture And Materials",600.00
Cambridge City Council,Evolve Guards Ltd,10506900,31/05/20,56665,1524,COVID-19 Rough Sleepers Services,64401,B&B Accommodation,"4,620.00"
Cambridge City Council,Evolve Guards Ltd,10506900,07/06/20,57119,1524,COVID-19 Rough Sleepers Services,64401,B&B Accommodation,"2,220.00"
Cambridge City Council,Evolve Guards Ltd,10506900,07/06/20,57121,1524,COVID-19 Rough Sleepers Services,64401,B&B Accommodation,"4,200.00"
Cambridge City Council,Evolve Guards Ltd,10506900,15/06/20,57428,1524,COVID-19 Rough Sleepers Services,64401,B&B Accommodation,"4,200.00"
Cambridge City Council,Evolve Guards Ltd,10506900,15/06/20,57431,1524,COVID-19 Rough Sleepers Services,64401,B&B Accommodation,"4,200.00"
Cambridge City Council,Evolve Guards Ltd,10506900,21/06/20,57791,1524,COVID-19 Rough Sleepers Services,64401,B&B Accommodation,"4,200.00"
Cambridge City Council,Evolve Guards Ltd,10506900,21/06/20,57794,1524,COVID-19 Rough Sleepers Services,64401,B&B Accommodation,"4,200.00"
Cambridge City Council,Evolve Guards Ltd,10506900,28/06/20,58210,1524,COVID-19 Rough Sleepers Services,64401,B&B Accommodation,"4,920.00"
Cambridge City Council,Evolve Guards Ltd,10506900,28/06/20,58211,1524,COVID-19 Rough Sleepers Services,64401,B&B Accommodation,"4,200.00"
Cambridge City Council,FCE Ltd,10045500,28/05/20,58053,1759,Gwydir St Workshops/Offices,60266,Rechargeable Repairs,975.00
Cambridge City Council,FCE Ltd,10045500,28/05/20,58053,1752,Dales Brewery,60266,Rechargeable Repairs,650.00
Cambridge City Council,Fenners Hotel,10491600,01/06/20,56728,1524,COVID-19 Rough Sleepers Services,64401,B&B Accommodation,"31,017.00"
Cambridge City Council,Fenners Hotel,10491600,15/06/20,57714,1524,COVID-19 Rough Sleepers Services,64401,B&B Accommodation,"15,508.50"
Cambridge City Council,Fleet Factors Ltd,10279300,01/06/20,57007,1032,Garage- External Work,61703,"Purchase - Equipment, Furniture And Materials",641.10
Cambridge City Council,Ford Retail Ltd,10415900,15/06/20,57990,100171,Vehicle Replacement Programme,70016,CAPEX - Purchase of Vehicles,"27,319.66"
Cambridge City Council,Forge Leisure UK Limited,10431000,01/06/20,56971,1100,Sport & Recreation Administration,60201,Cyclical/Planned Maintenance - Building,"8,392.00"
Cambridge City Council,Fortismere Associates Ltd,10358300,05/06/20,57099,1351,Members Support,64300,Conference Expenses,"2,000.00"
Cambridge City Council,Foster Property Maintenance Ltd,10046700,29/05/20,56628,5024,E_invoicing Suspense Accounts,69100,Expenditure In Holding Account Awaiting Allocation,"339,976.74"
Cambridge City Council,Freeths LLP,10128501,03/06/20,57184,300042,Aquisitions & Disposals,70001,CAPEX - Acquisition of Land & Exisiting Building,"196,045.00"
Cambridge City Council,Frontline Fabrication & Ironwork Co Ltd,10128000,29/05/20,56972,1868,Play Maintenance,61702,"Maintenance - Equipment, Furniture And Materials",950.00
Cambridge City Council,Frontline Fabrication & Ironwork Co Ltd,10128000,03/06/20,56973,1868,Play Maintenance,61702,"Maintenance - Equipment, Furniture And Materials","4,950.00"
Cambridge City Council,Frontline Fabrication & Ironwork Co Ltd,10128000,05/06/20,56974,1866,Open Space Asset Maintenance,61702,"Maintenance - Equipment, Furniture And Materials","4,050.00"
Cambridge City Council,G T Stewart Solicitors,10520700,02/06/20,57021,1502,Homelessness Costs,63200,Legal Fees,"9,166.67"
Cambridge City Council,Gallagher Bassett International Ltd,10048202,07/04/20,56770,8009,Insurance Fund,67302,Insurance Claim,"17,114.59"
Cambridge City Council,Gallagher Bassett International Ltd,10048202,04/02/20,56771,8009,Insurance Fund,67302,Insurance Claim,"3,540.00"
Cambridge City Council,Gallagher Bassett International Ltd,10048202,09/01/20,56773,8009,Insurance Fund,67302,Insurance Claim,"8,408.74"
Cambridge City Council,Gallagher Bassett International Ltd,10048202,28/05/20,57022,8009,Insurance Fund,67302,Insurance Claim,"16,861.29"
Cambridge City Council,Gallagher Bassett International Ltd,10048202,08/06/20,57859,8009,Insurance Fund,67302,Insurance Claim,960.00
Cambridge City Council,Gasco Cambridge,10118600,19/06/20,58073,1100,Sport & Recreation Administration,60201,Cyclical/Planned Maintenance - Building,698.62
Cambridge City Council,Gaskin Brothers Ltd,10118700,04/06/20,57084,1878,Local Nature Reserves,60503,Grounds Maintenance,900.00
Cambridge City Council,Gaskin Brothers Ltd,10118700,16/06/20,57507,1866,Open Space Asset Maintenance,61702,"Maintenance - Equipment, Furniture And Materials","2,955.00"
Cambridge City Council,Gaskin Brothers Ltd,10118700,16/06/20,57511,1866,Open Space Asset Maintenance,61702,"Maintenance - Equipment, Furniture And Materials","4,756.00"
Cambridge City Council,Gaskin Brothers Ltd,10118700,25/06/20,58094,1100,Sport & Recreation Administration,60201,Cyclical/Planned Maintenance - Building,595.00
Cambridge City Council,Gaskin Brothers Ltd,10118700,25/06/20,58195,1864,Closed Churchyards,60201,Cyclical/Planned Maintenance - Building,"5,542.62"
Cambridge City Council,Gatenbysanderson Limited,10048500,06/04/20,56036,8012,Procurement,60011,Agency Staff,"2,320.00"
Cambridge City Council,Gatenbysanderson Limited,10048500,08/06/20,57113,8002,Human Resources - Recruitment,60116,Staff Recruitment Costs,"3,160.00"
Cambridge City Council,Gatenbysanderson Limited,10048500,18/05/20,57612,8012,Procurement,60011,Agency Staff,"2,320.00"
Cambridge City Council,Gatenbysanderson Limited,10048500,27/05/20,57613,8012,Procurement,60011,Agency Staff,"2,320.00"
Cambridge City Council,Gatenbysanderson Limited,10048500,12/05/20,57614,8012,Procurement,60011,Agency Staff,"1,856.00"
Cambridge City Council,Gatenbysanderson Limited,10048500,31/05/20,57615,8012,Procurement,60011,Agency Staff,"1,856.00"
Cambridge City Council,Gibbs & Dandy,10049500,03/06/20,57518,9900,General Fund Balance Sheet,11600,Consumable Stores,"1,049.10"
Cambridge City Council,Girbau UK Ltd,10049600,12/06/20,57468,6000,Housing Revenue Account - Net Cost of Service,61703,"Purchase - Equipment, Furniture And Materials","3,085.13"
Cambridge City Council,Gleeds Cost Management Ltd,10545200,26/06/20,58176,300018,Roof Structure,70010,CAPEX - Other Professional Fees,"1,600.00"
Cambridge City Council,Glo-Bell London Ltd,10119000,01/06/20,56754,8017,Mandela House,60201,Cyclical/Planned Maintenance - Building,811.20
Cambridge City Council,Green Energy Switch Ltd,10051400,18/06/20,57666,6209,Energy Rating,62400,Consultancy Fees,500.00
Cambridge City Council,Greenwich Leisure Limited (GLL),10051900,09/06/20,57280,1102,Leisure Contract Client Costs,61800,Contract Charges,"104,000.00"
Cambridge City Council,Greenwich Leisure Limited (GLL),10051900,25/06/20,58189,1100,Sport & Recreation Administration,60201,Cyclical/Planned Maintenance - Building,"7,600.00"
Cambridge City Council,Halls of Cambridge Ltd,10119300,04/06/20,58027,1866,Open Space Asset Maintenance,61703,"Purchase - Equipment, Furniture And Materials","1,592.00"
Cambridge City Council,HCB Solicitors Ltd,10529800,09/06/20,57720,300001,Shared Ownership Repurchase,70001,CAPEX - Acquisition of Land & Exisiting Building,"185,000.00"
Cambridge City Council,Hewitsons LLP Client Account,10054301,03/06/20,56890,300058,New Build - Anstey Way,70010,CAPEX - Other Professional Fees,"1,200.00"
Cambridge City Council,HM Revenue & Customs,10144206,08/06/20,57106,9900,General Fund Balance Sheet,21003,Construction Industry Tax (Cis),"1,662.93"
Cambridge City Council,HM Revenue & Customs,10144206,15/06/20,57443,9900,General Fund Balance Sheet,10013,CCC General Account Bank Account,"6,481.35"
Cambridge City Council,HM Revenue & Customs,10144206,23/06/20,57898,9900,General Fund Balance Sheet,10013,CCC General Account Bank Account,"603,596.53"
Cambridge City Council,HM Revenue & Customs (SDLT),10144205,18/06/20,58257,300001,Shared Ownership Repurchase,70001,CAPEX - Acquisition of Land & Exisiting Building,"1,200.00"
Cambridge City Council,Home Group Ltd,10055400,25/04/20,56990,1502,Homelessness Costs,60400,Rents Payable,"34,500.00"
Cambridge City Council,HQN Ltd,10056500,19/06/20,57749,1510,Housing Strategy,64800,Membership And Subscriptions,"2,500.00"
Cambridge City Council,IEG4 Ltd,10509500,05/05/20,58024,1300,Customer Access Strategy - Customer Service Centre,64073,ICT Maintenance and Support,"61,229.00"
Cambridge City Council,Impact (Boston) Ltd t/a Paperwork,10127500,23/06/20,58126,1651,Grand Arcade Car Park,61500,Consumables,"2,448.00"
Cambridge City Council,Impact (Boston) Ltd t/a Paperwork,10127500,23/06/20,58126,1655,Queen Anne Terrace Car Park,61500,Consumables,"2,448.00"
Cambridge City Council,Inform CPI Ltd,10164200,01/04/20,56961,1801,Local Taxation,64073,ICT Maintenance and Support,"3,500.00"
Cambridge City Council,Inform CPI Ltd,10164200,01/04/20,56961,8006,Accountancy and Support Services,64073,ICT Maintenance and Support,"3,500.00"
Cambridge City Council,It Takes a City,2128,10/06/20,57223,1524,COVID-19 Rough Sleepers Services,64401,B&B Accommodation,"3,000.00"
Cambridge City Council,J & J Maintenance Services,10237200,02/06/20,57799,1003,Bereavement Services Central Costs,60207,Health And Safety Supplies And Services,624.56
Cambridge City Council,J Mattison T/A Mattison Contract Beds,,02/06/20,57233,6000,Housing Revenue Account - Net Cost of Service,61703,"Purchase - Equipment, Furniture And Materials","2,250.00"
Cambridge City Council,James Button & Co,10060600,15/06/20,57472,1351,Members Support,64300,Conference Expenses,975.00
Cambridge City Council,John Bradshaw Ltd,10062000,28/05/20,56996,1651,Grand Arcade Car Park,60904,Vehicle Repairs And Maintenance,561.93
Cambridge City Council,Junction CDC Ltd,10062700,28/05/20,56570,1057,Community Development Voluntary Support,64600,Grants And Contributions,"6,875.00"
Cambridge City Council,Kestrel Fencing,10119900,29/05/20,56755,6110,City Homes Estate Management,60503,Grounds Maintenance,912.63
Cambridge City Council,Kestrel Fencing,10119900,22/05/20,57247,6012,City Homes Expenditure,60503,Grounds Maintenance,"2,922.94"
Cambridge City Council,Khidmat Sisters,10165500,27/05/20,56491,1057,Community Development Voluntary Support,64600,Grants And Contributions,"1,100.00"
Cambridge City Council,Killgerm Chemicals Ltd,10064000,22/06/20,57848,1403,Housing Standards,64000,Chemicals,714.79
Cambridge City Council,Kings College,10064200,09/06/20,57267,1524,COVID-19 Rough Sleepers Services,64401,B&B Accommodation,"35,750.00"
Cambridge City Council,Latta Hire Ltd,10222600,31/05/20,56977,1866,Open Space Asset Maintenance,61702,"Maintenance - Equipment, Furniture And Materials",780.00
Cambridge City Council,Latta Hire Ltd,10222600,12/06/20,57390,1870,Public Toilets,60503,Grounds Maintenance,"1,275.00"
Cambridge City Council,LGSS - Cambridgeshire Pension Fund,10022801,23/06/20,57900,9900,General Fund Balance Sheet,10013,CCC General Account Bank Account,"481,207.34"
Cambridge City Council,Lifecraft,10205400,26/05/20,56497,1057,Community Development Voluntary Support,64600,Grants And Contributions,"3,000.00"
Cambridge City Council,M Watson Construction Ltd,10122200,08/06/20,57228,300000,Disabled Adaptions,70002,CAPEX - Building Contractor/Works,557.42
Cambridge City Council,Mace Ltd,10290900,22/05/20,56531,1779,Market Square Project,62400,Consultancy Fees,"6,500.00"
Cambridge City Council,Mace Ltd,10290900,28/05/20,56584,300038,Wall Structure,70010,CAPEX - Other Professional Fees,"15,974.00"
Cambridge City Council,Manit Contractors Ltd,10120700,02/06/20,57345,1050,Community Safety,60300,Signs Erecting & Removal,533.53
Cambridge City Council,Maskearaid Industrial Supplies,10069900,05/06/20,57213,9900,General Fund Balance Sheet,11600,Consumable Stores,"1,899.60"
Cambridge City Council,Matts Monitors Ltd,10244300,23/06/20,58150,1404,Scientific Team,61702,"Maintenance - Equipment, Furniture And Materials","3,362.50"
Cambridge City Council,Mears Ltd,10121400,03/06/20,57283,6211,Heat and Hot Water Servicing,60225,Housing Repairs - Gas Maintenance Contract,"1,209.68"
Cambridge City Council,Mears Ltd,10121400,03/06/20,57283,6211,Heat and Hot Water Servicing,60225,Housing Repairs - Gas Maintenance Contract,"67,613.37"
Cambridge City Council,Mears Ltd,10121400,28/05/20,57285,6211,Heat and Hot Water Servicing,60225,Housing Repairs - Gas Maintenance Contract,"1,084.94"
Cambridge City Council,Mears Ltd,10121400,28/05/20,57285,6211,Heat and Hot Water Servicing,60225,Housing Repairs - Gas Maintenance Contract,"67,505.87"
Cambridge City Council,Mercer Tree Services Ltd,10071200,06/06/20,57101,1876,Arboriculture,64040,Tree Works,"1,830.00"
Cambridge City Council,Mercer Tree Services Ltd,10071200,06/06/20,57104,1876,Arboriculture,64040,Tree Works,750.00
Cambridge City Council,Mercer Tree Services Ltd,10071200,24/06/20,58056,6110,City Homes Estate Management,64040,Tree Works,825.00
Cambridge City Council,Met Geoenvironmental Ltd,10483300,29/05/20,58148,1455,Park Street Car Park Development,64020,Surveys,"9,950.00"
Cambridge City Council,Metric Media Ltd,10401200,27/05/20,57063,1651,Grand Arcade Car Park,60300,Signs Erecting & Removal,"3,845.00"
Cambridge City Council,Metric Media Ltd,10401200,05/06/20,57100,1651,Grand Arcade Car Park,60300,Signs Erecting & Removal,805.00
Cambridge City Council,Mills & Reeve LLP,10072101,11/05/20,56216,100238,CCTV equipment upgrade,70000,CAPEX - Capital Scheme Budget,"2,550.00"
Cambridge City Council,Mould Growth Consultants Limited,10073300,04/06/20,58005,9900,General Fund Balance Sheet,11600,Consumable Stores,590.00
Cambridge City Council,Mowell & Co Ltd,10121800,09/06/20,57187,1100,Sport & Recreation Administration,60201,Cyclical/Planned Maintenance - Building,"1,700.00"
Cambridge City Council,MPC General Maintenance Ltd,10470900,22/06/20,57903,1100,Sport & Recreation Administration,60201,Cyclical/Planned Maintenance - Building,"7,600.00"
Cambridge City Council,MPC General Maintenance Ltd,10470900,22/06/20,57904,1100,Sport & Recreation Administration,60201,Cyclical/Planned Maintenance - Building,"6,400.00"
Cambridge City Council,Newlyn PLC,10075600,30/05/20,57029,9900,General Fund Balance Sheet,11708,Vat Debtor (Input Tax),774.94
Cambridge City Council,Newnham Bowls Club,10075700,28/05/20,56845,1102,Leisure Contract Client Costs,64600,Grants And Contributions,"4,000.00"
Cambridge City Council,Norse Commercial Services Ltd t/a N-Able,10130000,31/05/20,56908,300000,Disabled Adaptions,70007,CAPEX - Building Contractor/Works - Major Adaptations (HRA),"4,258.00"
Cambridge City Council,Norse Commercial Services Ltd t/a N-Able,10130000,31/05/20,58179,200001,Mandatory Disabled Facilities Grants (Tenants),70015,CAPEX - Grants Paid,"3,531.49"
Cambridge City Council,Norse Commercial Services Ltd t/a N-Able,10130000,31/05/20,58179,200001,Mandatory Disabled Facilities Grants (Tenants),70015,CAPEX - Grants Paid,670.51
Cambridge City Council,Northern Trust Global Services Limited,10518300,28/05/20,56549,9900,General Fund Balance Sheet,20119,Other Creditors - Other Entities And Individuals,"3,036.00"
Cambridge City Council,Northgate Vehicle Hire Ltd,10076800,12/06/20,57474,1052,Children & Young People's Service,60909,Vehicle Hire,594.16
Cambridge City Council,Noveus Ltd,10471600,28/05/20,56810,1455,Park Street Car Park Development,62400,Consultancy Fees,500.00
Cambridge City Council,Npower Ltd,10077102,04/06/20,57155,1071,Clay Farm Community Centre,60303,Electricity,"1,654.35"
Cambridge City Council,Nurture Landscapes Ltd,10132000,30/06/20,58346,1774,"Cambridge Road Retail Park, Haverhill",60503,Grounds Maintenance,851.89
Cambridge City Council,OASIS - Offsite Storage & Integrated Services UK Ltd,10155800,31/05/20,57059,8023,Business Support - Centralised Overheads,63700,Removal Services,908.27
Cambridge City Council,Oasis Hotel Harlow Ltd,10195300,09/06/20,57522,1502,Homelessness Costs,64401,B&B Accommodation,978.75
Cambridge City Council,Oasis Hotel Harlow Ltd,10195300,09/06/20,57524,1502,Homelessness Costs,64401,B&B Accommodation,"1,475.00"
Cambridge City Council,Oasis Hotel Harlow Ltd,10195300,09/06/20,57525,1502,Homelessness Costs,64401,B&B Accommodation,"1,012.50"
Cambridge City Council,Oasis Hotel Harlow Ltd,10195300,09/06/20,57543,1502,Homelessness Costs,64401,B&B Accommodation,"1,012.50"
Cambridge City Council,Orchard Information Systems Ltd,10078400,11/06/20,57445,300030,Orchard Upgrade,70024,CAPEX - Other Capital Expenditure,"3,000.00"
Cambridge City Council,Orchard Information Systems Ltd,10078400,16/06/20,57589,300030,Orchard Upgrade,70024,CAPEX - Other Capital Expenditure,"3,750.00"
Cambridge City Council,Orchard Information Systems Ltd,10078400,16/06/20,57671,300030,Orchard Upgrade,70024,CAPEX - Other Capital Expenditure,"15,000.00"
Cambridge City Council,Otis Ltd,10262300,23/06/20,57905,1071,Clay Farm Community Centre,60203,Cyclical/Planned Maintenance - Mechanical And Electrical,582.81
Cambridge City Council,Outspoken Delivery LLP,10078900,30/04/20,56334,8011,Corporate Business Support,64100,Postage And Courier Services,"1,971.80"
Cambridge City Council,Outspoken Delivery LLP,10078900,31/05/20,56693,8011,Corporate Business Support,64100,Postage And Courier Services,"1,710.00"
Cambridge City Council,P G Horticulture Ltd,10167800,22/05/20,56978,1890,2 Seas,64040,Tree Works,"9,427.00"
Cambridge City Council,Panther Taxis Ltd,10079600,31/05/20,56898,1712,Taxicard Service,63900,Miscellaneous Expenses,641.03
Cambridge City Council,Panther Taxis Ltd,10079600,31/05/20,57093,1502,Homelessness Costs,60914,Public Transport For Staff And Members,655.05
Cambridge City Council,Paul Clark Services Ltd,10422800,18/05/20,56959,1031,Fleet Management - Operational,60011,Agency Staff,"1,338.00"
Cambridge City Council,Paul Clark Services Ltd,10422800,11/05/20,58001,1031,Fleet Management - Operational,60011,Agency Staff,960.00
Cambridge City Council,Paul Clark Services Ltd,10422800,25/05/20,58015,1031,Fleet Management - Operational,60011,Agency Staff,924.00
Cambridge City Council,Paul Clark Services Ltd,10422800,01/06/20,58016,1031,Fleet Management - Operational,60011,Agency Staff,"1,140.00"
Cambridge City Council,Paul Clark Services Ltd,10422800,08/06/20,58363,1031,Fleet Management - Operational,60011,Agency Staff,"1,044.00"
Cambridge City Council,PBF Drainage Services Ltd,10440600,11/06/20,57546,1870,Public Toilets,60503,Grounds Maintenance,"1,450.00"
Cambridge City Council,Penna PLC,10080400,05/06/20,57221,1303,Corporate Business Processing,62005,"Advertising, Publicity And Marketing",634.70
Cambridge City Council,Penna PLC,10080400,17/06/20,57728,1351,Members Support,63900,Miscellaneous Expenses,674.18
Cambridge City Council,Penna PLC,10080400,25/06/20,58186,1303,Corporate Business Processing,62005,"Advertising, Publicity And Marketing",536.00
Cambridge City Council,Pennon Water Services Ltd T/A Cambridge Water Business,10080500,02/06/20,57102,5024,E_invoicing Suspense Accounts,69100,Expenditure In Holding Account Awaiting Allocation,"3,706.95"
Cambridge City Council,Pennon Water Services Ltd T/A Cambridge Water Business,10080500,17/04/20,57136,1260,Corn Exchange and Guildhalls,60302,Water And Sewerage,"10,116.06"
Cambridge City Council,People Asset Management Ltd,10145100,31/05/20,56753,8001,Human Resources Operations (Staff-General),60111,Occupational Health,899.75
Cambridge City Council,Post office Ltd,10082800,12/06/20,57420,1850,Grounds Maintenance & Street Cleaning,60905,Vehicle Licensing,530.00
Cambridge City Council,Potter Raper Partnership,10294300,29/05/20,56934,300079,New Build - Markham Close,70010,CAPEX - Other Professional Fees,"1,107.69"
Cambridge City Council,Potter Raper Partnership,10294300,29/05/20,56934,300073,New Build - Wulfstan Way,70010,CAPEX - Other Professional Fees,664.62
Cambridge City Council,Potter Raper Partnership,10294300,29/05/20,56934,300074,New Build - Colville Road Garages,70010,CAPEX - Other Professional Fees,664.61
Cambridge City Council,Potter Raper Partnership,10294300,29/05/20,56941,300085,New Build Cromwell Road Redevelopment (HRA),70010,CAPEX - Other Professional Fees,750.00
Cambridge City Council,Power Control Panels Ltd,10123000,12/06/20,57388,6000,Housing Revenue Account - Net Cost of Service,61703,"Purchase - Equipment, Furniture And Materials","1,265.00"
Cambridge City Council,Power Control Panels Ltd,10123000,12/06/20,58146,6000,Housing Revenue Account - Net Cost of Service,61703,"Purchase - Equipment, Furniture And Materials",726.00
Cambridge City Council,Proactive Personnel Ltd,10367100,27/05/20,56606,1031,Fleet Management - Operational,60011,Agency Staff,888.00
Cambridge City Council,Proactive Personnel Ltd,10367100,27/05/20,56606,1031,Fleet Management - Operational,60011,Agency Staff,888.00
Cambridge City Council,Proactive Personnel Ltd,10367100,31/05/20,57061,1031,Fleet Management - Operational,60011,Agency Staff,"1,200.00"
Cambridge City Council,Proactive Personnel Ltd,10367100,31/05/20,57061,1031,Fleet Management - Operational,60011,Agency Staff,888.00
Cambridge City Council,Proactive Personnel Ltd,10367100,17/06/20,57962,1031,Fleet Management - Operational,60011,Agency Staff,"1,776.00"
Cambridge City Council,Proactive Personnel Ltd,10367100,17/06/20,57962,1031,Fleet Management - Operational,60011,Agency Staff,888.00
Cambridge City Council,Proactive Personnel Ltd,10367100,10/06/20,57991,1031,Fleet Management - Operational,60011,Agency Staff,888.00
Cambridge City Council,Proactive Personnel Ltd,10367100,10/06/20,57991,1031,Fleet Management - Operational,60011,Agency Staff,"1,776.00"
Cambridge City Council,Pro-Flat Specialist Services Ltd,10123200,31/05/20,56802,6208,Voids,60233,Housing Repairs - Work Given To External Contractors,"1,074.00"
Cambridge City Council,Pro-Flat Specialist Services Ltd,10123200,09/06/20,57266,1869,Cherry Hinton Hall,60503,Grounds Maintenance,"8,506.00"
Cambridge City Council,Prompt Glazing Ltd,10283900,12/06/20,57380,300012,External Doors,70003,CAPEX - Building Contractor/Works - Voids & Emergencies,584.59
Cambridge City Council,Prompt Glazing Ltd,10283900,17/06/20,57584,6207,Repairs Day to Day,60233,Housing Repairs - Work Given To External Contractors,521.00
Cambridge City Council,Prompt Glazing Ltd,10283900,17/06/20,57845,6208,Voids,60233,Housing Repairs - Work Given To External Contractors,645.00
Cambridge City Council,Prompt Glazing Ltd,10283900,25/06/20,58141,300012,External Doors,70003,CAPEX - Building Contractor/Works - Voids & Emergencies,751.34
Cambridge City Council,Quadient UK Ltd,10137600,26/02/20,56596,8011,Corporate Business Support,61702,"Maintenance - Equipment, Furniture And Materials","1,001.44"
Cambridge City Council,Quadient UK Ltd,10137600,04/06/20,57041,8023,Business Support - Centralised Overheads,64100,Postage And Courier Services,721.96
Cambridge City Council,Quadient UK Ltd,10137600,05/06/20,57224,6004,Leasehold Property Management,64100,Postage And Courier Services,"1,000.00"
Cambridge City Council,Quadient UK Ltd,10137600,05/06/20,57224,6012,City Homes Expenditure,64100,Postage And Courier Services,"1,000.00"
Cambridge City Council,R J Warren Ltd,10123500,15/06/20,57547,1871,Allotments,60503,Grounds Maintenance,700.00
Cambridge City Council,R J Warren Ltd,10123500,15/06/20,57548,1868,Play Maintenance,61702,"Maintenance - Equipment, Furniture And Materials","9,081.75"
Cambridge City Council,R J Warren Ltd,10123500,17/06/20,57725,1868,Play Maintenance,61702,"Maintenance - Equipment, Furniture And Materials","5,250.00"
Cambridge City Council,Realife Trust,10086900,20/06/20,57750,1766,Orwell House Offices-Internal,62004,General Office Expenses,"1,500.00"
Cambridge City Council,Regency Guest House,10492200,29/05/20,56652,1524,COVID-19 Rough Sleepers Services,64401,B&B Accommodation,"2,000.13"
Cambridge City Council,Regency Guest House,10492200,29/05/20,56652,1524,COVID-19 Rough Sleepers Services,64401,B&B Accommodation,"4,560.00"
Cambridge City Council,Regency Guest House,10492200,29/05/20,57081,1524,COVID-19 Rough Sleepers Services,64401,B&B Accommodation,"5,600.00"
Cambridge City Council,Regency Guest House,10492200,29/05/20,57081,1524,COVID-19 Rough Sleepers Services,64401,B&B Accommodation,"1,400.05"
Cambridge City Council,Regency Guest House,10492200,12/06/20,57368,1524,COVID-19 Rough Sleepers Services,64401,B&B Accommodation,"1,133.38"
Cambridge City Council,Regency Guest House,10492200,12/06/20,57368,1524,COVID-19 Rough Sleepers Services,64401,B&B Accommodation,"5,920.00"
Cambridge City Council,Regency Guest House,10492200,19/06/20,57715,1524,COVID-19 Rough Sleepers Services,64401,B&B Accommodation,"6,720.00"
Cambridge City Council,Reliance High Tech Ltd,10087500,22/05/20,56868,1519,Shared Home Improvement Agency,60207,Health And Safety Supplies And Services,862.92
Cambridge City Council,Reliance High Tech Ltd,10087500,22/05/20,56948,6203,Asset Management and Compliance,64073,ICT Maintenance and Support,"2,876.40"
Cambridge City Council,Reliance High Tech Ltd,10087500,22/05/20,56949,6104,Independent Living Services,64073,ICT Maintenance and Support,"1,534.08"
Cambridge City Council,Reliance High Tech Ltd,10087500,22/05/20,56950,1504,Housing Advice Service,63900,Miscellaneous Expenses,"2,588.76"
Cambridge City Council,Reliance High Tech Ltd,10087500,22/05/20,56951,1858,Public Realm Enforcement,60207,Health And Safety Supplies And Services,767.04
Cambridge City Council,Reliance High Tech Ltd,10087500,22/05/20,56960,6012,City Homes Expenditure,64077,Telephone And Mobile Phone Costs,"2,205.24"
Cambridge City Council,Rencar Services,10087800,22/06/20,58010,9900,General Fund Balance Sheet,11600,Consumable Stores,556.80
Cambridge City Council,Richard Herrmann Associates Ltd,10233400,24/06/20,58112,6204,Client and Third Party Repairs,60219,Housing Repairs - Insurances,"4,750.00"
Cambridge City Council,Rossfield Design Ltd T/A Minuteman Press,10090300,16/06/20,57727,8018,Admin Building Allocation,61703,"Purchase - Equipment, Furniture And Materials","2,375.50"
Cambridge City Council,Royal Mail Group Ltd,10128401,25/05/20,56805,8023,Business Support - Centralised Overheads,64100,Postage And Courier Services,"1,173.43"
Cambridge City Council,Royal Mail Group Ltd,10128401,26/05/20,56806,8023,Business Support - Centralised Overheads,64100,Postage And Courier Services,"1,468.34"
Cambridge City Council,Royal Mail Group Ltd,10128401,08/06/20,57339,8023,Business Support - Centralised Overheads,64100,Postage And Courier Services,"1,028.20"
Cambridge City Council,Royal Mail Group Ltd,10128401,09/06/20,57353,8023,Business Support - Centralised Overheads,64100,Postage And Courier Services,"1,892.22"
Cambridge City Council,Royal Mail Group Ltd,10128401,16/06/20,57647,8023,Business Support - Centralised Overheads,64100,Postage And Courier Services,"1,859.49"
Cambridge City Council,Royal Mail Group Ltd,10128401,15/06/20,57716,8023,Business Support - Centralised Overheads,64100,Postage And Courier Services,"1,524.28"
Cambridge City Council,S P Landscapes & Tree Contractors Ltd,10124100,29/05/20,56738,1876,Arboriculture,64040,Tree Works,"1,520.00"
Cambridge City Council,S P Landscapes & Tree Contractors Ltd,10124100,29/05/20,56818,1883,Flood Risk Management,60501,Cleaning Services,"1,695.00"
Cambridge City Council,S P Landscapes & Tree Contractors Ltd,10124100,29/05/20,56994,1890,2 Seas,64040,Tree Works,"3,340.00"
Cambridge City Council,School of Business London Ltd,10496900,19/06/20,57822,6012,City Homes Expenditure,60115,Staff Development And Training,618.00
Cambridge City Council,Sharpe Pritchard LLP,10093300,31/01/20,56592,8011,Corporate Business Support,63200,Legal Fees,"1,463.00"
Cambridge City Council,Sharpe Pritchard LLP,10093300,31/01/20,56734,100241,Redevelopment of Cambridge Junction,70010,CAPEX - Other Professional Fees,770.00
Cambridge City Council,Sharpe Pritchard LLP,10093300,31/05/20,57289,1073,Community Development - Admin,63200,Legal Fees,501.50
Cambridge City Council,Shenton Global Ltd,10182600,08/04/20,57001,1071,Clay Farm Community Centre,60305,Gas,723.45
Cambridge City Council,Shopsafe Ltd,10093800,01/06/20,56666,1651,Grand Arcade Car Park,61702,"Maintenance - Equipment, Furniture And Materials",651.00
Cambridge City Council,Siemens Financial Services Limited,10093900,16/06/20,57783,1031,Fleet Management - Operational,60906,Purchase Of Vehicles Related Costs,529.55
Cambridge City Council,SMI Group Ltd,10095200,01/06/20,56820,9900,General Fund Balance Sheet,11600,Consumable Stores,598.80
Cambridge City Council,SMI Group Ltd,10095200,08/06/20,57469,8018,Admin Building Allocation,61703,"Purchase - Equipment, Furniture And Materials",799.80
Cambridge City Council,SMI Group Ltd,10095200,12/06/20,57518,9900,General Fund Balance Sheet,11600,Consumable Stores,"3,450.00"
Cambridge City Council,Smith & Ouzman Ltd,10095300,29/05/20,56655,8023,Business Support - Centralised Overheads,64100,Postage And Courier Services,603.30
Cambridge City Council,Smith & Ouzman Ltd,10095300,19/06/20,57996,1801,Local Taxation,62001,Printing,906.52
Cambridge City Council,Smith & Ouzman Ltd,10095300,19/06/20,57997,1801,Local Taxation,62001,Printing,"2,776.66"
Cambridge City Council,Smith & Ouzman Ltd,10095300,19/06/20,57998,1801,Local Taxation,62001,Printing,624.97
Cambridge City Council,Smith & Ouzman Ltd,10095300,19/06/20,57998,1802,Housing Benefits,62001,Printing,624.97
Cambridge City Council,Smith & Ouzman Ltd,10095300,23/06/20,58002,1419,Environmental Health Operational Support,62001,Printing,"1,720.00"
Cambridge City Council,Smith & Ouzman Ltd,10095300,23/06/20,58003,1801,Local Taxation,62001,Printing,920.40
Cambridge City Council,South Cambridgeshire District Council,10096103,01/07/20,57347,1707,Shared Director of Planning and Economic Development,62400,Consultancy Fees,"5,968.00"
Cambridge City Council,South Cambridgeshire District Council,10096103,26/05/20,58018,100171,Vehicle Replacement Programme,70017,CAPEX - Purchase of Plant Machinery & Equipment,"8,650.00"
Cambridge City Council,Sports Surface Maintenance Ltd,10144600,22/05/20,56717,1102,Leisure Contract Client Costs,60201,Cyclical/Planned Maintenance - Building,"1,027.50"
Cambridge City Council,Stannah Lift Services,10124300,10/06/20,58365,200001,Mandatory Disabled Facilities Grants (Tenants),70015,CAPEX - Grants Paid,"2,900.00"
Cambridge City Council,Steve Cotton,10390200,08/06/20,57234,6205,Citywide Schemes,60205,Fire Assessment And Safety,"1,231.25"
Cambridge City Council,SWWB Ltd T/ACambridge Water,10134700,13/05/20,56442,1889,Operations Salaries,60907,Other Vehicle Costs,"5,340.40"
Cambridge City Council,SWWB Ltd T/ACambridge Water,10134700,20/03/20,56499,1889,Operations Salaries,60907,Other Vehicle Costs,"2,136.16"
Cambridge City Council,Terberg Matec UK Ltd,10101500,12/06/20,57540,1031,Fleet Management - Operational,61703,"Purchase - Equipment, Furniture And Materials","1,036.20"
Cambridge City Council,Terberg Matec UK Ltd,10101500,23/06/20,58122,1031,Fleet Management - Operational,61703,"Purchase - Equipment, Furniture And Materials",518.10
Cambridge City Council,Terberg Matec UK Ltd,10101500,24/06/20,58122,1032,Garage- External Work,61703,"Purchase - Equipment, Furniture And Materials",651.85
Cambridge City Council,The BSS Group PLC - Pts Plumbing Trade Supplies,,04/06/20,57654,9900,General Fund Balance Sheet,11600,Consumable Stores,"1,195.15"
Cambridge City Council,The CAM Group,10511700,01/06/20,56694,1862,Open Space Asset Management,62005,"Advertising, Publicity And Marketing",800.00
Cambridge City Council,The CAM Group,10511700,01/06/20,56694,1862,Open Space Asset Management,62005,"Advertising, Publicity And Marketing",700.00
Cambridge City Council,The Helping Hand Co (Ledbury) Ltd,10103300,25/06/20,58371,1858,Public Realm Enforcement,61702,"Maintenance - Equipment, Furniture And Materials",812.00
Cambridge City Council,The Oyster Partnership Ltd,10243300,03/06/20,57235,1524,COVID-19 Rough Sleepers Services,60011,Agency Staff,969.00
Cambridge City Council,The Oyster Partnership Ltd,10243300,03/06/20,57238,1524,COVID-19 Rough Sleepers Services,60011,Agency Staff,931.00
Cambridge City Council,The Oyster Partnership Ltd,10243300,03/06/20,57241,1524,COVID-19 Rough Sleepers Services,60011,Agency Staff,810.00
Cambridge City Council,The Oyster Partnership Ltd,10243300,10/06/20,57544,1524,COVID-19 Rough Sleepers Services,60011,Agency Staff,810.00
Cambridge City Council,The Oyster Partnership Ltd,10243300,10/06/20,57545,1524,COVID-19 Rough Sleepers Services,60011,Agency Staff,983.25
Cambridge City Council,The Oyster Partnership Ltd,10243300,17/06/20,57938,1524,COVID-19 Rough Sleepers Services,60011,Agency Staff,912.00
Cambridge City Council,The Oyster Partnership Ltd,10243300,24/06/20,58388,1524,COVID-19 Rough Sleepers Services,60011,Agency Staff,855.00
Cambridge City Council,The Urban Forest Consultancy Ltd,10105700,22/06/20,57896,1876,Arboriculture,62400,Consultancy Fees,"4,000.00"
Cambridge City Council,Thinkproject UK Ltd,10031200,21/06/20,58139,5062,3C ICT,64073,ICT Maintenance and Support,500.00
Cambridge City Council,Thistle Insurance Services Ltd,10105900,01/06/20,56701,6502,Holding Accounts,69343,Insurance Premium - Other,"1,627.42"
Cambridge City Council,Thompson Electrical (Cambridge) Ltd,10243800,12/05/20,56490,1758,Other Commercial Properties,60201,Cyclical/Planned Maintenance - Building,"3,979.71"
Cambridge City Council,Thomson Reuters Professional UK Ltd T/A Sweet & Maxwell,10106000,01/06/20,56897,8014,3C Legal Practice,62003,"Books, Publications And Resources","20,570.67"
Cambridge City Council,Thurlow Nunn Standen Ltd,10106100,27/03/20,56080,1850,Grounds Maintenance & Street Cleaning,61703,"Purchase - Equipment, Furniture And Materials",979.03
Cambridge City Council,Thurlow Nunn Standen Ltd,10106100,23/04/20,57190,1856,Streets & Open Spaces (Operations) - Indirect Costs,61703,"Purchase - Equipment, Furniture And Materials",594.19
Cambridge City Council,Total Gas & Power Ltd,10134800,01/06/20,56640,5024,E_invoicing Suspense Accounts,69100,Expenditure In Holding Account Awaiting Allocation,"57,433.94"
Cambridge City Council,Total Gas & Power Ltd,10134800,16/06/20,57795,5024,E_invoicing Suspense Accounts,69100,Expenditure In Holding Account Awaiting Allocation,"53,705.07"
Cambridge City Council,Training Synergy Ltd,10458700,18/06/20,57651,1802,Housing Benefits,60115,Staff Development And Training,995.00
Cambridge City Council,Travelodge Hotels Ltd,10326700,10/06/20,57250,1524,COVID-19 Rough Sleepers Services,64401,B&B Accommodation,"38,250.00"
Cambridge City Council,Travelodge Hotels Ltd,10326700,10/06/20,57254,1524,COVID-19 Rough Sleepers Services,64401,B&B Accommodation,"38,250.00"
Cambridge City Council,Tructyre Fleet Management Ltd,10364500,31/05/20,56654,1032,Garage- External Work,61703,"Purchase - Equipment, Furniture And Materials",993.71
Cambridge City Council,Tructyre Fleet Management Ltd,10364500,31/01/20,57704,1032,Garage- External Work,61703,"Purchase - Equipment, Furniture And Materials","1,628.02"
Cambridge City Council,Trumpington Bowls Club,10520200,28/05/20,56839,1102,Leisure Contract Client Costs,64600,Grants And Contributions,"4,000.00"
Cambridge City Council,TSG Building Services PLC,10125300,02/06/20,56800,5024,E_invoicing Suspense Accounts,69100,Expenditure In Holding Account Awaiting Allocation,"46,508.89"
Cambridge City Council,TSG Building Services PLC,10125300,03/06/20,57110,5024,E_invoicing Suspense Accounts,69100,Expenditure In Holding Account Awaiting Allocation,"132,092.24"
Cambridge City Council,UK Fuels Limited,10192900,24/05/20,56530,5001,City Services Holding Account,69100,Expenditure In Holding Account Awaiting Allocation,"1,471.83"
Cambridge City Council,UK Fuels Limited,10192900,31/05/20,56955,5001,City Services Holding Account,69100,Expenditure In Holding Account Awaiting Allocation,"2,809.92"
Cambridge City Council,UK Fuels Limited,10192900,07/06/20,57281,5001,City Services Holding Account,69100,Expenditure In Holding Account Awaiting Allocation,"3,752.78"
Cambridge City Council,UK Fuels Limited,10192900,14/06/20,57611,5001,City Services Holding Account,69100,Expenditure In Holding Account Awaiting Allocation,"2,834.78"
Cambridge City Council,UK Fuels Limited,10192900,21/06/20,58108,5001,City Services Holding Account,69100,Expenditure In Holding Account Awaiting Allocation,"2,822.32"
Cambridge City Council,UK Power Networks Ltd,10109701,12/06/20,57418,300076,New Build - Kingsway,70002,CAPEX - Building Contractor/Works,"14,124.47"
Cambridge City Council,Unison,10173200,23/06/20,57901,9900,General Fund Balance Sheet,10013,CCC General Account Bank Account,"2,600.49"
Cambridge City Council,University of Cambridge Local Examinations Syndicate,10518500,28/05/20,56605,9900,General Fund Balance Sheet,20119,Other Creditors - Other Entities And Individuals,"4,080.42"
Cambridge City Council,Volvo Group UK Ltd,10111400,09/06/20,57218,1032,Garage- External Work,61703,"Purchase - Equipment, Furniture And Materials",729.07
Cambridge City Council,Volvo Group UK Ltd,10111400,09/06/20,57218,1031,Fleet Management - Operational,61703,"Purchase - Equipment, Furniture And Materials","1,326.00"
Cambridge City Council,Volvo Group UK Ltd,10111400,09/06/20,57218,1032,Garage- External Work,61703,"Purchase - Equipment, Furniture And Materials",925.00
Cambridge City Council,Volvo Group UK Ltd,10111400,15/06/20,57540,1031,Fleet Management - Operational,61703,"Purchase - Equipment, Furniture And Materials",792.54
Cambridge City Council,Walls & Floors (Kettering) Ltd,10112100,01/06/20,57518,9900,General Fund Balance Sheet,11600,Consumable Stores,572.00
Cambridge City Council,Wilks Head & Eve LLP,10201400,22/06/20,58070,6007,Departmental Overheads-Client,62400,Consultancy Fees,"5,985.00"
Cambridge City Council,Wilson Energy Ltd,10367800,28/05/20,57286,1071,Clay Farm Community Centre,61800,Contract Charges,"1,968.75"
Cambridge City Council,Wiser Recycling Ltd,10215500,05/06/20,57124,6200,Building Maintenance Response - Direct,64050,Waste Disposal Costs,"1,299.23"
Cambridge City Council,Wybone Limited,10114600,16/06/20,57530,1868,Play Maintenance,61702,"Maintenance - Equipment, Furniture And Materials",800.00
Cambridge City Council,Zurich Insurance PLC,10115100,30/05/20,56653,8009,Insurance Fund,67302,Insurance Claim,"2,036.00"
Cambridge City Council,Zurich Insurance PLC,10115100,22/06/20,57852,8009,Insurance Fund,67302,Insurance Claim,"6,537.00"
Cambridge City Council,AA Global Language Services Ltd,10001100,30/06/20,59174,1203,Corporate Policy,62406,Vets,639.14
Cambridge City Council,AA Global Language Services Ltd,10001100,30/06/20,59174,1203,Corporate Policy,62408,Translation Services,"1,631.47"
Cambridge City Council,Abbey People,10001300,28/07/20,59864,1057,Community Development Voluntary Support,64600,Grants And Contributions,"6,000.00"
Cambridge City Council,Access & Automation Ltd,10115300,16/07/20,59253,300088,Estate Investment,70002,CAPEX - Building Contractor/Works,"3,135.00"
Cambridge City Council,Aecom Ltd,10003200,17/06/20,59611,300035,Ditchburn Place,70010,CAPEX - Other Professional Fees,"1,946.25"
Cambridge City Council,Albany Beck Consultancy Services Ltd,10476400,29/05/20,58869,100194,My Cambridge City online customer portal,70010,CAPEX - Other Professional Fees,800.00
Cambridge City Council,Albany Beck Consultancy Services Ltd,10476400,29/05/20,58880,1207,Programme Office,62400,Consultancy Fees,"3,325.00"
Cambridge City Council,Albany Beck Consultancy Services Ltd,10476400,26/06/20,58903,1207,Programme Office,62400,Consultancy Fees,"4,500.00"
Cambridge City Council,Albany Beck Consultancy Services Ltd,10476400,29/05/20,59558,1207,Programme Office,62400,Consultancy Fees,"8,100.00"
Cambridge City Council,Alboro Developments Ltd,10133300,30/06/20,58796,1031,Fleet Management - Operational,60303,Electricity,"1,156.72"
Cambridge City Council,Alboro Developments Ltd,10133300,01/07/20,58904,1031,Fleet Management - Operational,60400,Rents Payable,"15,124.00"
Cambridge City Council,Algar Signcraft Services (Cambridge) Ltd,10004300,09/07/20,58952,1100,Sport & Recreation Administration,60300,Signs Erecting & Removal,510.00
Cambridge City Council,Allia Ltd,10196200,02/07/20,58569,1057,Community Development Voluntary Support,64600,Grants And Contributions,"7,000.00"
Cambridge City Council,Altone Limited,10004700,17/07/20,59658,6002,Resident Involvement,62001,Printing,"1,215.00"
Cambridge City Council,Amulet (Churchill Security Solutions) Ltd,10220900,30/06/20,59256,5024,E_invoicing Suspense Accounts,69100,Expenditure In Holding Account Awaiting Allocation,"11,014.52"
Cambridge City Council,Amulet (Churchill Security Solutions) Ltd,10220900,30/06/20,59283,5024,E_invoicing Suspense Accounts,69100,Expenditure In Holding Account Awaiting Allocation,"9,842.96"
Cambridge City Council,Amulet (Churchill Security Solutions) Ltd,10220900,30/06/20,59439,5024,E_invoicing Suspense Accounts,69100,Expenditure In Holding Account Awaiting Allocation,660.00
Cambridge City Council,Anglian Water Business (National) Ltd T/A Wave,10006400,03/06/20,59532,1260,Corn Exchange and Guildhalls,60302,Water And Sewerage,"1,865.22"
Cambridge City Council,Anglian Water Business (National) Ltd T/A Wave,10006400,16/07/20,59635,1263,Cambridge Live - Central,60302,Water And Sewerage,843.03
Cambridge City Council,Anglian Water Business (National) Ltd T/A Wave,10006400,27/06/20,59846,1260,Corn Exchange and Guildhalls,60302,Water And Sewerage,"2,648.58"
Cambridge City Council,Anglian Water Business (National) Ltd T/A Wave,10006400,27/07/20,59847,1260,Corn Exchange and Guildhalls,60302,Water And Sewerage,"2,563.97"
Cambridge City Council,AON UK Limited,10006800,13/07/20,59185,8009,Insurance Fund,67302,Insurance Claim,811.43
Cambridge City Council,AON UK Limited,10006800,07/06/20,60081,8009,Insurance Fund,67302,Insurance renewal,"2,000.00"
Cambridge City Council,Apex Roofing Anglia Ltd,10115600,06/07/20,58770,1100,Sport & Recreation Administration,60201,Cyclical/Planned Maintenance - Building,"1,987.00"
Cambridge City Council,Apex Roofing Anglia Ltd,10115600,30/06/20,58788,1102,Leisure Contract Client Costs,60201,Cyclical/Planned Maintenance - Building,"3,660.00"
Cambridge City Council,Apex Training Centres (UK) Ltd,10007000,07/07/20,58925,1031,Fleet Management - Operational,60115,Staff Development And Training,927.50
Cambridge City Council,APSE Manchester,10127800,15/07/20,59370,1857,Head of Streets & Open Spaces,64800,Membership And Subscriptions,"2,610.00"
Cambridge City Council,APT-Skidata Ltd,10115700,18/06/20,58417,1651,Grand Arcade Car Park,61702,"Maintenance - Equipment, Furniture And Materials","3,226.74"
Cambridge City Council,APT-Skidata Ltd,10115700,05/06/20,59064,1651,Grand Arcade Car Park,61702,"Maintenance - Equipment, Furniture And Materials",842.37
Cambridge City Council,APT-Skidata Ltd,10115700,05/06/20,59064,1651,Grand Arcade Car Park,61702,"Maintenance - Equipment, Furniture And Materials","4,096.70"
Cambridge City Council,APT-Skidata Ltd,10115700,15/07/20,59284,1651,Grand Arcade Car Park,61702,"Maintenance - Equipment, Furniture And Materials","1,054.41"
Cambridge City Council,APT-Skidata Ltd,10115700,10/07/20,59350,1654,Grafton Centre East Car Park,61702,"Maintenance - Equipment, Furniture And Materials","1,739.28"
Cambridge City Council,APT-Skidata Ltd,10115700,10/07/20,59351,1653,Grafton Centre West Car Park,61702,"Maintenance - Equipment, Furniture And Materials","1,033.34"
Cambridge City Council,APT-Skidata Ltd,10115700,10/07/20,59422,1652,Park Street Car Park,61702,"Maintenance - Equipment, Furniture And Materials","1,136.03"
Cambridge City Council,APT-Skidata Ltd,10115700,10/07/20,59424,1655,Queen Anne Terrace Car Park,61702,"Maintenance - Equipment, Furniture And Materials","1,043.12"
Cambridge City Council,ATG Access Ltd,10009200,16/07/20,59294,1866,Open Space Asset Maintenance,61702,"Maintenance - Equipment, Furniture And Materials","1,798.42"
Cambridge City Council,Autumn House Bed & Breakfast Ltd,10507100,29/06/20,58403,1502,Homelessness Costs,64401,B&B Accommodation,840.00
Cambridge City Council,Avena Environmental Ltd,10009600,30/05/20,58957,8023,Business Support - Centralised Overheads,63700,Removal Services,"2,567.50"
Cambridge City Council,B & G Cleaning Systems Ltd,10554400,14/07/20,59204,1102,Leisure Contract Client Costs,61703,"Purchase - Equipment, Furniture And Materials",753.95
Cambridge City Council,B & Q plc,10157200,30/06/20,58449,6208,Voids,60222,Housing Repairs - Internal Decorations,791.67
Cambridge City Council,Banner Group Ltd,10011000,31/05/20,58486,1031,Fleet Management - Operational,62002,Stationery,508.21
Cambridge City Council,Ben Wills,10116100,29/06/20,58356,6207,Repairs Day to Day,60233,Housing Repairs - Work Given To External Contractors,685.00
Cambridge City Council,Ben Wills,10116100,29/06/20,58408,6012,City Homes Expenditure,60201,Cyclical/Planned Maintenance - Building,700.33
Cambridge City Council,Ben Wills,10116100,29/06/20,58409,6012,City Homes Expenditure,60201,Cyclical/Planned Maintenance - Building,548.52
Cambridge City Council,Ben Wills,10116100,28/07/20,59871,6012,City Homes Expenditure,60201,Cyclical/Planned Maintenance - Building,542.15
Cambridge City Council,Bevan Brittan LLP,10012600,29/06/20,59065,300085,New Build Cromwell Road Redevelopment (HRA),70010,CAPEX - Other Professional Fees,"3,282.50"
Cambridge City Council,Biochemica Water Ltd,10218600,30/06/20,58761,6205,Citywide Schemes,60235,Housing Repairs - Other Premises Related Costs,"1,132.20"
Cambridge City Council,Blyth Equipment Ltd,10511600,23/07/20,59654,1031,Fleet Management - Operational,61702,"Maintenance - Equipment, Furniture And Materials","1,260.00"
Cambridge City Council,Boldfield Computing Ltd,10306300,01/06/20,59150,1263,Cambridge Live - Central,64071,Ict Software,"1,255.42"
Cambridge City Council,Boldfield Computing Ltd,10306300,01/06/20,59151,1263,Cambridge Live - Central,64073,ICT Maintenance and Support,"2,836.09"
Cambridge City Council,Boldfield Computing Ltd,10306300,01/07/20,59153,1263,Cambridge Live - Central,64071,Ict Software,"1,255.42"
Cambridge City Council,Boldfield Computing Ltd,10306300,01/07/20,59154,1263,Cambridge Live - Central,64073,ICT Maintenance and Support,"1,456.09"
Cambridge City Council,Border Food Machinery Ltd,10551100,10/07/20,59582,6000,Housing Revenue Account - Net Cost of Service,61703,"Purchase - Equipment, Furniture And Materials","6,042.00"
Cambridge City Council,Borley Brothers Engineering,10116600,16/07/20,59438,300088,Estate Investment,70002,CAPEX - Building Contractor/Works,"2,389.83"
Cambridge City Council,British Parking Association,10015500,09/07/20,59083,1651,Grand Arcade Car Park,64800,Membership And Subscriptions,"1,602.00"
Cambridge City Council,Bryan Lecoche Limted,10180100,20/07/20,59457,1862,Open Space Asset Management,63200,Legal Fees,532.50
Cambridge City Council,Bryan Lecoche Limted,10180100,20/07/20,59458,1862,Open Space Asset Management,63200,Legal Fees,"1,236.50"
Cambridge City Council,Bryan Lecoche Limted,10180100,27/07/20,59786,1862,Open Space Asset Management,63200,Legal Fees,551.00
Cambridge City Council,Bsg Property Services Ltd,10015900,20/12/19,59692,200001,Mandatory Disabled Facilities Grants (Tenants),70015,CAPEX - Grants Paid,"2,936.09"
Cambridge City Council,Businessclean (Cambridge) Ltd,10016800,15/07/20,59415,6208,Voids,60222,Housing Repairs - Internal Decorations,"1,229.00"
Cambridge City Council,Calfordseaden LLP,10339400,28/05/20,58511,300064,New Build - Akeman Street,70010,CAPEX - Other Professional Fees,"1,171.87"
Cambridge City Council,Calfordseaden LLP,10339400,28/05/20,58513,300064,New Build - Akeman Street,70010,CAPEX - Other Professional Fees,"1,932.38"
Cambridge City Council,Calfordseaden LLP,10339400,28/05/20,58797,300069,New Build - Ventress Close,70010,CAPEX - Other Professional Fees,"1,710.71"
Cambridge City Council,Calfordseaden LLP,10339400,28/05/20,58798,300069,New Build - Ventress Close,70010,CAPEX - Other Professional Fees,"1,083.33"
Cambridge City Council,Calfordseaden LLP,10339400,28/05/20,59583,1506,Housing Development Agency,62400,Consultancy Fees,"1,440.00"
Cambridge City Council,Calfordseaden LLP,10339400,24/07/20,59828,300064,New Build - Akeman Street,70010,CAPEX - Other Professional Fees,"1,171.87"
Cambridge City Council,Calfordseaden LLP,10339400,24/07/20,59829,300069,New Build - Ventress Close,70010,CAPEX - Other Professional Fees,"1,083.33"
Cambridge City Council,Calfordseaden LLP,10339400,24/07/20,59830,300069,New Build - Ventress Close,70010,CAPEX - Other Professional Fees,"1,710.71"
Cambridge City Council,Calfordseaden LLP,10339400,24/07/20,59832,300064,New Build - Akeman Street,70010,CAPEX - Other Professional Fees,"1,932.38"
Cambridge City Council,Cambridge & District Citizen's Advice Bureau,10017500,03/07/20,58688,1057,Community Development Voluntary Support,64600,Grants And Contributions,"75,000.00"
Cambridge City Council,Cambridge & District Citizen's Advice Bureau,10017500,03/07/20,58688,1509,Grants to Housing Agencies,64600,Grants And Contributions,"8,750.00"
Cambridge City Council,Cambridge & District Citizen's Advice Bureau,10017500,01/06/20,59044,1802,Housing Benefits,63900,Miscellaneous Expenses,"9,812.75"
Cambridge City Council,Cambridge Bid Limited,10017900,30/06/20,58438,5106,Business Improvement Districts Support Grants,64600,Grants And Contributions,"46,035.00"
Cambridge City Council,Cambridge Bid Limited,10017900,20/07/20,59492,5025,Business Improvement District (BID) Collection Fund,58702,BID Levy - Payment to BID Company,"137,649.00"
Cambridge City Council,Cambridge Council For Voluntary Service CVS,10018500,03/07/20,58680,1057,Community Development Voluntary Support,64600,Grants And Contributions,"18,000.00"
Cambridge City Council,Cambridge Discount Electrical Ltd,10019100,02/07/20,59175,1522,Flexible Homelessness Support Grant,63900,Miscellaneous Expenses,500.00
Cambridge City Council,Cambridge Ethnic Community Forum,10019300,26/06/20,58474,1517,Syrian Resettlement,62900,Events,"8,500.00"
Cambridge City Council,Cambridge Ethnic Community Forum,10019300,24/07/20,59709,1057,Community Development Voluntary Support,64600,Grants And Contributions,"11,000.00"
Cambridge City Council,Cambridge Garage Doors,10117100,23/07/20,59637,6208,Voids,60233,Housing Repairs - Work Given To External Contractors,720.00
Cambridge City Council,Cambridge Housing Society Ltd,10019600,03/07/20,58683,1057,Community Development Voluntary Support,64600,Grants And Contributions,"4,250.00"
Cambridge City Council,Cambridge Housing Society Ltd,10019600,03/07/20,58683,1509,Grants to Housing Agencies,64600,Grants And Contributions,"7,500.00"
Cambridge City Council,Cambridge Housing Society Ltd,10019600,03/07/20,58683,1509,Grants to Housing Agencies,64600,Grants And Contributions,"3,750.00"
Cambridge City Council,Cambridge Housing Society Ltd,10019600,03/07/20,58683,1509,Grants to Housing Agencies,64600,Grants And Contributions,"3,500.00"
Cambridge City Council,Cambridge Investment Partnership LLP,10145700,01/07/20,58538,300069,New Build - Ventress Close,70002,CAPEX - Building Contractor/Works,"175,722.12"
Cambridge City Council,Cambridge Investment Partnership LLP,10145700,01/07/20,58539,300064,New Build - Akeman Street,70002,CAPEX - Building Contractor/Works,"210,610.12"
Cambridge City Council,Cambridge Investment Partnership LLP,10145700,01/07/20,58540,300073,New Build - Wulfstan Way,70002,CAPEX - Building Contractor/Works,"197,923.15"
Cambridge City Council,Cambridge Investment Partnership LLP,10145700,01/07/20,58541,300074,New Build - Colville Road Garages,70002,CAPEX - Building Contractor/Works,"89,672.08"
Cambridge City Council,Cambridge Investment Partnership LLP,10145700,01/07/20,58550,300079,New Build - Markham Close,70002,CAPEX - Building Contractor/Works,"118,274.90"
Cambridge City Council,Cambridge Investment Partnership LLP,10145700,01/07/20,58554,300072,New Build In-Fill - Queensmeadow,70002,CAPEX - Building Contractor/Works,"22,931.52"
Cambridge City Council,Cambridge Investment Partnership LLP,10145700,01/07/20,58555,300078,New Build - Gunhild Way,70002,CAPEX - Building Contractor/Works,"114,905.17"
Cambridge City Council,Cambridge Investment Partnership LLP,10145700,05/05/20,58745,300090,Meadows and Buchan Street,70002,CAPEX - Building Contractor/Works,"6,253.88"
Cambridge City Council,Cambridge Investment Partnership LLP,10145700,09/07/20,59272,300090,Meadows and Buchan Street,70002,CAPEX - Building Contractor/Works,"9,381.63"
Cambridge City Council,Cambridge Master Locksmiths,10020000,02/07/20,58637,6110,City Homes Estate Management,60503,Grounds Maintenance,646.00
Cambridge City Council,Cambridge Online,10154400,03/07/20,58682,1057,Community Development Voluntary Support,64600,Grants And Contributions,"7,500.00"
Cambridge City Council,Cambridge TV Ltd,10534900,03/07/20,58868,790004,,61910,Artist Fees,"1,495.00"
Cambridge City Council,Cambridge Womens Aid,10022300,03/07/20,58673,1057,Community Development Voluntary Support,64600,Grants And Contributions,"2,500.00"
Cambridge City Council,Cambridge Womens Aid,10022300,03/07/20,58673,1509,Grants to Housing Agencies,64600,Grants And Contributions,"21,500.00"
Cambridge City Council,Cambridge Womens Resource Centre,10022400,03/07/20,58706,1057,Community Development Voluntary Support,64600,Grants And Contributions,"8,750.00"
Cambridge City Council,Cambridgeshire County Council,10022802,03/07/20,58713,1509,Grants to Housing Agencies,64600,Grants And Contributions,"5,000.00"
Cambridge City Council,Cambridgeshire County Council,10022802,02/07/20,58762,1509,Grants to Housing Agencies,64600,Grants And Contributions,"3,543.00"
Cambridge City Council,Cambridgeshire County Council,10022802,07/07/20,58860,1050,Community Safety,64600,Grants And Contributions,"3,552.72"
Cambridge City Council,Cambridgeshire County Council,10022802,30/06/20,58908,1450,Central Provisions to be Allocated,64600,Grants And Contributions,"1,949,141.90"
Cambridge City Council,Cambridgeshire County Council,10022802,14/07/20,59426,6505,Ditchburn Extra Care,64300,Conference Expenses,510.00
Cambridge City Council,Cambridgeshire County Council,10022802,18/07/20,59522,1888,Open Space Mgt Salaries,60011,Agency Staff,"2,816.58"
Cambridge City Council,Cambs & Peterborough NHS Foundation Trust,10023101,01/05/20,58391,1522,Flexible Homelessness Support Grant,64600,Grants And Contributions,"9,558.00"
Cambridge City Council,Cambs & Peterborough NHS Foundation Trust,10023101,01/06/20,58392,1522,Flexible Homelessness Support Grant,64600,Grants And Contributions,"9,558.00"
Cambridge City Council,Carter Jonas LLP,10141403,26/06/20,58558,1506,Housing Development Agency,62400,Consultancy Fees,"8,500.00"
Cambridge City Council,CCPM Ltd,10283000,07/06/20,58445,1206,Business Transformation Departmental Management,60011,Agency Staff,"4,950.00"
Cambridge City Council,CCPM Ltd,10283000,07/07/20,59765,1206,Business Transformation Departmental Management,60011,Agency Staff,"4,950.00"
Cambridge City Council,Centre 33,10025400,06/07/20,58711,1057,Community Development Voluntary Support,64600,Grants And Contributions,"9,125.00"
Cambridge City Council,Centre 33,10025400,06/07/20,58711,1509,Grants to Housing Agencies,64600,Grants And Contributions,"10,750.00"
Cambridge City Council,CFH Docmail Ltd,10025900,30/06/20,59819,1352,Electoral Registration,62001,Printing,538.15
Cambridge City Council,CG LEE LTD t/a LEES Chartered Certified Accountants & Registered Auditors,10443400,09/07/20,58998,1890,2 Seas,62400,Consultancy Fees,"1,300.00"
